Workbook

Sheet Base Line Rates
B2: Metrics encompass 2012-13 to 2014015 663+ 5v5 mins (390 FWDS --> 30 TMS * 13 Fwds per TM) | P2: Points
B3: Category (Min Rank/390) | C3: TOI/GAME | D3: UA CF60 | E3: UACA60 | F3: UA Corsi% | G3: G60 | H3: A60 | I3: P60 | J3: Sh60 | P3: Player | Q3: 2013-14 | R3: 2011-12 | S3: 2010-11 | T3: Avg
B4: 1st Line (90/390) | C4: 13.6 | D4: 57.8 | E4: 51 | F4: 52.5 | G4: 0.78 | H4: 1.12 | I4: 1.85 | J4: 8.2 | O4: 2nd | P4: 90th | Q4: 48 | R4: 51 | S4: 49 | T4: 49
B5: 2nd Line (180/390) | C5: 12.6 | D5: 54.8 | E5: 52.9 | F5: 50.8 | G5: 0.64 | H5: 0.91 | I5: 1.58 | J5: 7.1 | O5: 3rd | P5: 180th | Q5: 32 | R5: 32 | S5: 34 | T5: 33
B6: 3rd Line (270/390) | C6: 11.5 | D6: 51.3 | E6: 54.6 | F6: 48.6 | G6: 0.53 | H6: 0.74 | I6: 1.3 | J6: 6.2 | O6: 4th | P6: 270th | Q6: 20 | R6: 18 | S6: 20 | T6: 19
B7: 4th Line (360/390) | C7: 9.2 | D7: 45.1 | E7: 57.6 | F7: 45.2 | G7: 0.3 | H7: 0.47 | I7: 0.93 | J7: 4.7
P8: Goals
P9: Player | Q9: 2013-14 | R9: 2011-12 | S9: 2010-11 | T9: Avg
B10: Metrics encompass 2012-13 to 2014-15 874+ 5v5 mins (210 Dmen --> 30 tms * 7 dmen per Tm | O10: 1st | P10: 90th | Q10: 20 | R10: 20 | S10: 21 | T10: 20
B11: Category (Min Rank/390) | C11: TOI/GAME | D11: UA CF60 | E11: UACA60 | F11: UA Corsi% | G11: G60 | H11: A60 | I11: P60 | J11: Sh60 | K11: UA FF60 | L11: UA FA60 | M11: UA Fen% | O11: 2nd | P11: 180th | Q11: 13 | R11: 14 | S11: 14 | T11: 14
B12: Top Pair (60/120) | C12: 16.9 | D12: 55.1 | E12: 51.2 | F12: 51.6 | I12: 0.83 | K12: 41.2 | L12: 38.5 | M12: 51.5 | O12: 3rd | P12: 270th | Q12: 8 | R12: 7 | S12: 8 | T12: 8
B13: Top 4 Pair (120/210) | C13: 15.7 | D13: 52.6 | E13: 53.6 | F13: 49.3 | I13: 0.67 | K13: 39.5 | L13: 40.5 | M13: 49.5
B14: Bottom Pair (180/210) | C14: 14.2 | D14: 49.2 | E14: 57.7 | F14: 47 | I14: 0.51 | K14: 37 | L14: 43.1 | M14: 47.1
Q15: G/60 | S15: A/60 | U15: Pts/60 | W15: SOG/60
B16: Line - 2014-15 - Per 60 | C16: TOI | D16: G | E16: A1 | F16: A2 | G16: PTS | K16: Corsi% | L16: P/60 | Q16: Mean | R16: Median | S16: Mean | T16: Median | U16: Mean | V16: Median | W16: Mean | X16: Median
B17: 1st line | C17: 14.53655556 | D17: 0.792 | E17: 0.7202222222 | F17: 0.4418888889 | G17: 1.954666667 | J17: 1st | K17: 0.518 | L17: 2 | P17: 1st | Q17: 0.88 | R17: 0.85 | S17: 1.24 | T17: 1.19 | U17: 2.12 | V17: 2.07
B18: 2nd line | C18: 13.24733333 | D18: 0.7422222222 | E18: 0.6074444444 | F18: 0.3964444444 | G18: 1.746222222 | J18: 2nd | K18: 0.505 | L18: 1.7 | P18: 2nd | Q18: 0.76 | R18: 0.75 | S18: 1 | T18: 0.98 | U18: 1.76 | V18: 1.72
B19: 3rd line | C19: 11.881 | D19: 0.6767777778 | E19: 0.5291111111 | F19: 0.3598888889 | G19: 1.567222222 | J19: 3rd | K19: 0.493 | L19: 1.5 | P19: 3rd | Q19: 0.61 | R19: 0.59 | S19: 0.86 | T19: 0.83 | U19: 1.48 | V19: 1.46
B20: 4th line | C20: 9.704942529 | D20: 0.4317241379 | E20: 0.3597701149 | F20: 0.263908046 | G20: 1.056091954 | J20: 4th | K20: 0.481 | L20: 1 | P20: 4th | Q20: 0.44 | R20: 0.41 | S20: 0.63 | T20: 0.58 | U20: 1.08 | V20: 1.04
B21: 2014-15 5v5 base lines
B22: Line - 2014-15 - Per 60 | C22: TOI | D22: G | E22: A1 | F22: A2 | G22: PTS
B23: 1st pair | C23: 18.375 | D23: 0.2091666667 | E23: 0.28 | F23: 0.3518333333 | G23: 0.8398333333
B24: 2nd pair | C24: 16.43083333 | D24: 0.1951666667 | E24: 0.2738333333 | F24: 0.3651666667 | G24: 0.835
B25: 3rd pair | C25: 14.29461538 | D25: 0.16 | E25: 0.2335897436 | F25: 0.2953846154 | G25: 0.6894871795
B27: LINE | C27: TOI/60 | D27: G/60 | E27: A1/60 | F27: A2/60 | G27: P/60
B28: 1st | C28: 2.712666667 | D28: 2.044555556 | E28: 1.568 | F28: 1.411444444 | G28: 5.025222222
B29: 2nd | C29: 2.287341772 | D29: 0.9601265823 | E29: 0.9262025316 | F29: 0.7449367089 | G29: 2.631392405
B30: 2014-15 PP base lines
B31: LINE | C31: TOI/60 | D31: G/60 | E31: A1/60 | F31: A2/60 | G31: P/60
B32: 1st | C32: 2.647333333 | D32: 0.8485 | E32: 1.559166667 | F32: 1.5795 | G32: 3.987
B33: 2nd | C33: 2.193888889 | D33: 0.44 | E33: 0.5833333333 | F33: 0.6383333333 | G33: 1.661111111
B38: Dmen - Per 60 | C38: G | D38: A | E38: A1 | F38: A2 | G38: PTS | H38: Total Time
B39: =H39/60 -> 0.8084837963 | C39: 0.21 | D39: 0.624 | E39: 0.27 | G39: 0.83 | H39: 48.50902778
B40: =H40/60 -> 0.654849537 | C40: 0.18 | D40: 0.54 | E40: 0.23 | G40: 0.72 | H40: 39.29097222
B41: =H41/60 -> 0.4951273148 | C41: 0.18 | D41: 0.57 | E41: 0.25 | G41: 0.75 | H41: 29.70763889
B43: Fwds - Per 60 | C43: G | D43: A | E43: A1 | F43: A2 | G43: PTS | H43: Total Time
B44: =H44/60 -> 0.6404050926 | C44: 0.71 | D44: 1.07 | E44: 0.65 | G44: 1.77 | H44: 38.42430556
B45: =H45/60 -> 0.5588078704 | C45: 0.74 | D45: 0.99 | E45: 0.61 | G45: 1.73 | H45: 33.52847222
B46: =H46/60 -> 0.4698611111 | C46: 0.57 | D46: 0.85 | E46: 0.49 | G46: 1.42 | H46: 28.19166667
B47: =H47/60 -> 0.3536574074 | C47: 0.55 | D47: 0.7 | E47: 0.42 | G47: 1.25 | H47: 21.21944444

Sheet 1 Yr PP - BTN
A1: NAME | B1: TEAM | C1: POS | D1: GP | E1: TOI/60 | F1: G/60 | G1: A1/60 | H1: A2/60 | I1: P/60 | K1: NAME | L1: TEAM | M1: POS | N1: GP | O1: TOI/60 | P1: G/60 | Q1: A1/60 | R1: A2/60 | S1: P/60 | U1: NAME | V1: TEAM | W1: POS | X1: GP | Y1: TOI/60 | Z1: G/60 | AA1: A1/60 | AB1: A2/60 | AC1: P/60 | AE1: LINE | AF1: TOI/60 | AG1: G/60 | AH1: A1/60 | AI1: A2/60 | AJ1: P/60
A2: NAME | B2: TEAM | C2: POS | K2: KEVINSHATTENKIRK | L2: STL | M2: D | N2: 49 | O2: 3.19 | P2: 1.53 | Q2: 3.45 | R2: 2.68 | S2: 7.67 | U2: NICKFOLIGNO | V2: CBJ | W2: LW | X2: 66 | Y2: 2.49 | Z2: 3.28 | AA2: 3.28 | AB2: 1.82 | AC2: 8.39 | AE2: 1st | AF2: =AVERAGE(Y2:Y91) -> 2.712666667 | AG2: =AVERAGE(Z2:Z91) -> 2.044555556 | AH2: =AVERAGE(AA2:AA91) -> 1.568 | AI2: =AVERAGE(AB2:AB91) -> 1.411444444 | AJ2: =AVERAGE(AC2:AC91) -> 5.025222222
A3: SETHHELGESON | B3: N.J | C3: D | D3: 21 | E3: 0 | F3: 0 | G3: 0 | H3: 0 | I3: 0 | K3: JUSTINFAULK | L3: CAR | M3: D | N3: 66 | O3: 2.57 | P3: 2.13 | Q3: 2.13 | R3: 1.77 | S3: 6.02 | U3: PAVELDATSYUK | V3: DET | W3: C | X3: 53 | Y3: 2.7 | Z3: 2.94 | AA3: 2.52 | AB3: 2.52 | AC3: 7.98 | AE3: 2nd | AF3: =AVERAGE(Y92:Y181) -> 2.287341772 | AG3: =AVERAGE(Z92:Z181) -> 0.9601265823 | AH3: =AVERAGE(AA92:AA181) -> 0.9262025316 | AI3: =AVERAGE(AB92:AB181) -> 0.7449367089 | AJ3: =AVERAGE(AC92:AC181) -> 2.631392405
A4: JORDANSCHROEDER | B4: MIN | C4: RW | D4: 15 | E4: 0.01 | F4: 0 | G4: 0 | H4: 0 | I4: 0 | K4: JASONGARRISON | L4: T.B | M4: D | N4: 62 | O4: 1.61 | P4: 0.6 | Q4: 1.8 | R4: 3.61 | S4: 6.01 | U4: CLAUDEGIROUX | V4: PHI | W4: RW | X4: 69 | Y4: 3.08 | Z4: 1.98 | AA4: 1.69 | AB4: 3.67 | AC4: 7.34
A5: ANDREWCAMPBELL | B5: PHX | C5: D | D5: 21 | E5: 0.01 | F5: 0 | G5: 0 | H5: 0 | I5: 0 | K5: JACKJOHNSON | L5: CBJ | M5: D | N5: 66 | O5: 2.67 | P5: 0.68 | Q5: 2.04 | R5: 3.06 | S5: 5.79 | U5: NICKLASBACKSTROM | V5: WSH | W5: C | X5: 70 | Y5: 3.08 | Z5: 0.83 | AA5: 2.78 | AB5: 3.61 | AC5: 7.23
A6: KARLSTOLLERY | B6: COL | C6: D | D6: 5 | E6: 0.27 | F6: 0 | G6: 0 | H6: 0 | I6: 0 | K6: SAMIVATANEN | L6: ANA | M6: D | N6: 58 | O6: 3.16 | P6: 2.29 | Q6: 0.65 | R6: 2.62 | S6: 5.56 | U6: ANZEKOPITAR | V6: L.A | W6: C | X6: 65 | Y6: 2.9 | Z6: 1.59 | AA6: 3.18 | AB6: 2.23 | AC6: 7.01 | AE6: LINE | AF6: TOI/60 | AG6: G/60 | AH6: A1/60 | AI6: A2/60 | AJ6: P/60
A7: JOSHLEIVO | B7: TOR | C7: LW | D7: 9 | E7: 0.1 | F7: 0 | G7: 0 | H7: 0 | I7: 0 | K7: JOHNCARLSON | L7: WSH | M7: D | N7: 70 | O7: 1.7 | P7: 1.01 | Q7: 2.52 | R7: 2.02 | S7: 5.54 | U7: JOEPAVELSKI | V7: S.J | W7: LW | X7: 70 | Y7: 3.06 | Z7: 4.2 | AA7: 2.24 | AB7: 0.56 | AC7: 6.99 | AE7: 1st | AF7: =AVERAGE(O2:O61) -> 2.647333333 | AG7: =AVERAGE(P2:P61) -> 0.8485 | AH7: =AVERAGE(Q2:Q61) -> 1.559166667 | AI7: =AVERAGE(R2:R61) -> 1.5795 | AJ7: =AVERAGE(S2:S61) -> 3.987
A8: SVENBAERTSCHI | B8: CGY | C8: LW | D8: 15 | E8: 0.15 | F8: 0 | G8: 0 | H8: 0 | I8: 0 | K8: ANDREIMARKOV | L8: MTL | M8: D | N8: 70 | O8: 3.05 | P8: 1.12 | Q8: 2.53 | R8: 1.69 | S8: 5.34 | U8: ADAMHENRIQUE | V8: N.J | W8: C | X8: 63 | Y8: 1.78 | Z8: 2.68 | AA8: 2.68 | AB8: 1.61 | AC8: 6.96 | AE8: 2nd | AF8: =AVERAGE(O62:O121) -> 2.193888889 | AG8: =AVERAGE(P62:P121) -> 0.44 | AH8: =AVERAGE(Q62:Q121) -> 0.5833333333 | AI8: =AVERAGE(R62:R121) -> 0.6383333333 | AJ8: =AVERAGE(S62:S121) -> 1.661111111
A9: ERICBOULTON | B9: NYI | C9: LW | D9: 5 | E9: 0.06 | F9: 0 | G9: 0 | H9: 0 | I9: 0 | K9: NIKLASKRONWALL | L9: DET | M9: D | N9: 66 | O9: 2.93 | P9: 0.31 | Q9: 2.18 | R9: 2.8 | S9: 5.28 | U9: GUSTAVNYQUIST | V9: DET | W9: C | X9: 66 | Y9: 2.8 | Z9: 3.9 | AA9: 0.65 | AB9: 2.27 | AC9: 6.82
A10: JOHNSCOTT | B10: S.J | C10: D | D10: 30 | E10: 0.01 | F10: 0 | G10: 0 | H10: 0 | I10: 0 | K10: BRENTSEABROOK | L10: CHI | M10: D | N10: 68 | O10: 2.52 | P10: 1.4 | Q10: 1.4 | R10: 2.46 | S10: 5.26 | U10: RYANJOHANSEN | V10: CBJ | W10: C | X10: 69 | Y10: 2.76 | Z10: 2.2 | AA10: 2.2 | AB10: 2.2 | AC10: 6.61
A11: NATESCHMIDT | B11: WSH | C11: D | D11: 38 | E11: 0.01 | F11: 0 | G11: 0 | H11: 0 | I11: 0 | K11: MIKEGREEN | L11: WSH | M11: D | N11: 60 | O11: 2.88 | P11: 0.35 | Q11: 3.48 | R11: 1.39 | S11: 5.22 | U11: HENRIKZETTERBERG | V11: DET | W11: C | X11: 62 | Y11: 2.95 | Z11: 0.98 | AA11: 3.94 | AB11: 1.64 | AC11: 6.56
A12: BOBBYFARNHAM | B12: PIT | C12: LW | D12: 11 | E12: 0.1 | F12: 0 | G12: 0 | H12: 0 | I12: 0 | K12: KRISTOPHERLETANG | L12: PIT | M12: D | N12: 63 | O12: 3.67 | P12: 0.52 | Q12: 2.86 | R12: 1.82 | S12: 5.19 | U12: TOMASTATAR | V12: DET | W12: C | X12: 66 | Y12: 2.32 | Z12: 3.13 | AA12: 1.57 | AB12: 1.57 | AC12: 6.27
A13: TIMGLEASON | B13: WSH | C13: D | D13: 61 | E13: 0.02 | F13: 0 | G13: 0 | H13: 0 | I13: 0 | K13: BRENTBURNS | L13: S.J | M13: D | N13: 70 | O13: 3.19 | P13: 1.34 | Q13: 2.15 | R13: 1.61 | S13: 5.1 | U13: WAYNESIMMONDS | V13: PHI | W13: RW | X13: 70 | Y13: 2.96 | Z13: 3.77 | AA13: 1.45 | AB13: 0.87 | AC13: 6.09
A14: MARKPYSYK | B14: BUF | C14: D | D14: 6 | E14: 0.46 | F14: 0 | G14: 0 | H14: 0 | I14: 0 | K14: MAREKZIDLICKY | L14: DET | M14: D | N14: 68 | O14: 2.5 | P14: 1.06 | Q14: 1.77 | R14: 2.12 | S14: 4.95 | U14: ALEXOVECHKIN | V14: WSH | W14: LW | X14: 69 | Y14: 3.87 | Z14: 4.49 | AA14: 1.35 | AB14: 0.22 | AC14: 6.07
A15: ALEXPETROVIC | B15: FLA | C15: D | D15: 18 | E15: 0.1 | F15: 0 | G15: 0 | H15: 0 | I15: 0 | K15: KEITHYANDLE | L15: NYR | M15: D | N15: 68 | O15: 4.28 | P15: 0.21 | Q15: 1.44 | R15: 3.09 | S15: 4.74 | U15: SIDNEYCROSBY | V15: PIT | W15: C | X15: 65 | Y15: 3.54 | Z15: 2.09 | AA15: 1.04 | AB15: 2.87 | AC15: 6
A16: VICTORBARTLEY | B16: NSH | C16: D | D16: 34 | E16: 0.01 | F16: 0 | G16: 0 | H16: 0 | I16: 0 | K16: CODYFRANSON | L16: NSH | M16: D | N16: 67 | O16: 2.51 | P16: 1.07 | Q16: 1.43 | R16: 2.14 | S16: 4.64 | U16: JOETHORNTON | V16: S.J | W16: C | X16: 67 | Y16: 3 | Z16: 0.9 | AA16: 2.09 | AB16: 2.98 | AC16: 5.97
A17: BOYDGORDON | B17: EDM | C17: C | D17: 58 | E17: 0.48 | F17: 2.16 | G17: 0 | H17: 0 | I17: 2.16 | K17: MARKSTREIT | L17: PHI | M17: D | N17: 70 | O17: 3.4 | P17: 0.76 | Q17: 2.27 | R17: 1.51 | S17: 4.54 | U17: JUSTINWILLIAMS | V17: L.A | W17: RW | X17: 67 | Y17: 1.66 | Z17: 2.16 | AA17: 1.62 | AB17: 2.16 | AC17: 5.94
A18: PATRICEBERGERON | B18: BOS | C18: C | D18: 59 | E18: 2.08 | F18: 0.98 | G18: 1.46 | H18: 0.98 | I18: 3.42 | K18: RYANMCDONAGH | L18: NYR | M18: D | N18: 56 | O18: 2.12 | P18: 1.01 | Q18: 1.51 | R18: 2.02 | S18: 4.54 | U18: JORDANEBERLE | V18: EDM | W18: C | X18: 62 | Y18: 2.63 | Z18: 1.84 | AA18: 1.84 | AB18: 2.21 | AC18: 5.89
A19: MIKEKOSTKA | B19: NYR | C19: D | D19: 7 | E19: 0.06 | F19: 0 | G19: 0 | H19: 0 | I19: 0 | K19: ERIKKARLSSON | L19: OTT | M19: D | N19: 67 | O19: 4.58 | P19: 0.78 | Q19: 2.15 | R19: 1.56 | S19: 4.49 | U19: TYLERSEGUIN | V19: DAL | W19: C | X19: 62 | Y19: 3.64 | Z19: 2.66 | AA19: 2.39 | AB19: 0.8 | AC19: 5.85
A20: SHAWNTHORNTON | B20: FLA | C20: RW | D20: 34 | E20: 0.05 | F20: 0 | G20: 0 | H20: 0 | I20: 0 | K20: TOREYKRUG | L20: BOS | M20: D | N20: 56 | O20: 2.15 | P20: 1 | Q20: 1.5 | R20: 2 | S20: 4.49 | U20: MARIANGABORIK | V20: L.A | W20: LW | X20: 55 | Y20: 2.83 | Z20: 4.23 | AA20: 1.15 | AB20: 0.38 | AC20: 5.77
A21: MAGNUSPAAJARVI-SVENSSON | B21: STL | C21: LW | D21: 10 | E21: 0.32 | F21: 0 | G21: 0 | H21: 18.65 | I21: 18.65 | K21: DAVIDSAVARD | L21: CBJ | M21: D | N21: 69 | O21: 1.94 | P21: 1.34 | Q21: 1.79 | R21: 1.34 | S21: 4.47 | U21: PATRICKMARLEAU | V21: S.J | W21: C | X21: 70 | Y21: 3.14 | Z21: 1.91 | AA21: 2.18 | AB21: 1.64 | AC21: 5.73
A22: RYANSPOONER | B22: BOS | C22: C | D22: 8 | E22: 2.02 | F22: 0 | G22: 0 | H22: 0 | I22: 0 | K22: JAMESWISNIEWSKI | L22: ANA | M22: D | N22: 60 | O22: 3.03 | P22: 1.65 | Q22: 1.32 | R22: 1.32 | S22: 4.29 | U22: ALEXANDERSTEEN | V22: STL | W22: C | X22: 68 | Y22: 3.28 | Z22: 1.35 | AA22: 3.23 | AB22: 1.08 | AC22: 5.66
A23: BRANDONBOLLIG | B23: CGY | C23: RW | D23: 55 | E23: 0.07 | F23: 0 | G23: 0 | H23: 0 | I23: 0 | K23: VICTORHEDMAN | L23: T.B | M23: D | N23: 48 | O23: 2.33 | P23: 1.07 | Q23: 1.07 | R23: 2.14 | S23: 4.29 | U23: DANIELSEDIN | V23: VAN | W23: LW | X23: 69 | Y23: 2.92 | Z23: 0.89 | AA23: 2.38 | AB23: 2.38 | AC23: 5.66
A24: LOUIERIKSSON | B24: BOS | C24: LW | D24: 59 | E24: 2.13 | F24: 1.43 | G24: 0.96 | H24: 0.48 | I24: 2.87 | K24: JAKEMUZZIN | L24: L.A | M24: D | N24: 62 | O24: 2.73 | P24: 1.06 | Q24: 0.35 | R24: 2.84 | S24: 4.26 | U24: TYLERJOHNSON | V24: T.B | W24: C | X24: 66 | Y24: 2.1 | Z24: 3.03 | AA24: 2.16 | AB24: 0.43 | AC24: 5.62
A25: STEVEKAMPFER | B25: FLA | C25: D | D25: 13 | E25: 0.44 | F25: 0 | G25: 10.43 | H25: 0 | I25: 10.43 | K25: DENNISWIDEMAN | L25: CGY | M25: D | N25: 67 | O25: 2.97 | P25: 1.21 | Q25: 0.91 | R25: 2.11 | S25: 4.23 | U25: JAKUBVORACEK | V25: PHI | W25: RW | X25: 70 | Y25: 3.06 | Z25: 2.24 | AA25: 0.84 | AB25: 2.52 | AC25: 5.61
A26: DOUGIEHAMILTON | B26: BOS | C26: D | D26: 60 | E26: 2.28 | F26: 1.75 | G26: 0.88 | H26: 1.32 | I26: 3.95 | K26: SETHJONES | L26: NSH | M26: D | N26: 70 | O26: 2.08 | P26: 0.83 | Q26: 1.24 | R26: 2.06 | S26: 4.13 | U26: T.J.OSHIE | V26: STL | W26: LW | X26: 62 | Y26: 2.25 | Z26: 1.29 | AA26: 2.15 | AB26: 2.15 | AC26: 5.59
A27: JOETHORNTON | B27: S.J | C27: C | D27: 67 | E27: 3 | F27: 0.9 | G27: 2.09 | H27: 2.98 | I27: 5.97 | K27: P.K.SUBBAN | L27: MTL | M27: D | N27: 70 | O27: 3.34 | P27: 1.28 | Q27: 2.31 | R27: 0.51 | S27: 4.11 | U27: RADIMVRBATA | V27: VAN | W27: RW | X27: 66 | Y27: 2.82 | Z27: 2.58 | AA27: 0.97 | AB27: 1.93 | AC27: 5.47
A28: DAVIDSCHLEMKO | B28: CGY | C28: D | D28: 32 | E28: 0.46 | F28: 0 | G28: 0 | H28: 8.17 | I28: 8.17 | K28: ROMANJOSI | L28: NSH | M28: D | N28: 70 | O28: 3.01 | P28: 0.86 | Q28: 2 | R28: 1.14 | S28: 3.99 | U28: LOGANCOUTURE | V28: S.J | W28: C | X28: 70 | Y28: 3.04 | Z28: 1.41 | AA28: 1.41 | AB28: 2.54 | AC28: 5.36
A29: GRANTCLITSOME | B29: WPG | C29: D | D29: 24 | E29: 0.53 | F29: 0 | G29: 4.71 | H29: 0 | I29: 4.71 | K29: DOUGIEHAMILTON | L29: BOS | M29: D | N29: 60 | O29: 2.28 | P29: 1.75 | Q29: 0.88 | R29: 1.32 | S29: 3.95 | U29: FILIPFORSBERG | V29: NSH | W29: RW | X29: 70 | Y29: 2.72 | Z29: 1.58 | AA29: 1.58 | AB29: 2.21 | AC29: 5.36
A30: RILEYSMITH | B30: BOS | C30: RW | D30: 60 | E30: 1.9 | F30: 0.53 | G30: 2.1 | H30: 1.58 | I30: 4.21 | K30: TREVORDALEY | L30: DAL | M30: D | N30: 58 | O30: 2.9 | P30: 2.14 | Q30: 1.43 | R30: 0.36 | S30: 3.92 | U30: BRYANLITTLE | V30: WPG | W30: C | X30: 62 | Y30: 2.75 | Z30: 2.47 | AA30: 1.76 | AB30: 1.06 | AC30: 5.29
A31: JOEPAVELSKI | B31: S.J | C31: LW | D31: 70 | E31: 3.06 | F31: 4.2 | G31: 2.24 | H31: 0.56 | I31: 6.99 | K31: MARKGIORDANO | L31: CGY | M31: D | N31: 60 | O31: 3.13 | P31: 0.32 | Q31: 1.59 | R31: 1.91 | S31: 3.83 | U31: JOHNTAVARES | V31: NYI | W31: C | X31: 64 | Y31: 3.59 | Z31: 2.09 | AA31: 0.52 | AB31: 2.61 | AC31: 5.22
A32: CARLSODERBERG | B32: BOS | C32: C | D32: 60 | E32: 1.97 | F32: 2.03 | G32: 1.53 | H32: 0 | I32: 3.56 | K32: ANTONSTRALMAN | L32: T.B | M32: D | N32: 68 | O32: 2.54 | P32: 0.69 | Q32: 1.39 | R32: 1.74 | S32: 3.82 | U32: ERICSTAAL | V32: CAR | W32: C | X32: 61 | Y32: 2.45 | Z32: 2.81 | AA32: 1.61 | AB32: 0.8 | AC32: 5.22
A33: WAYNESIMMONDS | B33: PHI | C33: RW | D33: 70 | E33: 2.96 | F33: 3.77 | G33: 1.45 | H33: 0.87 | I33: 6.09 | K33: SHEAWEBER | L33: NSH | M33: D | N33: 70 | O33: 2.92 | P33: 1.17 | Q33: 1.47 | R33: 1.17 | S33: 3.81 | U33: CURTISGLENCROSS | V33: WSH | W33: RW | X33: 59 | Y33: 2.15 | Z33: 1.89 | AA33: 2.37 | AB33: 0.95 | AC33: 5.21
A34: LOGANCOUTURE | B34: S.J | C34: C | D34: 70 | E34: 3.04 | F34: 1.41 | G34: 1.41 | H34: 2.54 | I34: 5.36 | K34: MORGANRIELLY | L34: TOR | M34: D | N34: 71 | O34: 2.23 | P34: 0.38 | Q34: 1.52 | R34: 1.9 | S34: 3.79 | U34: STEVENSTAMKOS | V34: T.B | W34: C | X34: 68 | Y34: 3.4 | Z34: 2.34 | AA34: 2.08 | AB34: 0.78 | AC34: 5.19
A35: DOMINICMOORE | B35: NYR | C35: C | D35: 67 | E35: 0.04 | F35: 0 | G35: 0 | H35: 22.93 | I35: 22.93 | K35: JOHNNYBOYCHUK | L35: NYI | M35: D | N35: 54 | O35: 2.73 | P35: 0.82 | Q35: 1.63 | R35: 1.22 | S35: 3.67 | U35: PATRICKKANE | V35: CHI | W35: RW | X35: 60 | Y35: 3.5 | Z35: 1.72 | AA35: 1.43 | AB35: 2 | AC35: 5.15
A36: PATRICKMARLEAU | B36: S.J | C36: C | D36: 70 | E36: 3.14 | F36: 1.91 | G36: 2.18 | H36: 1.64 | I36: 5.73 | K36: ERICGELINAS | L36: N.J | M36: D | N36: 51 | O36: 2.3 | P36: 1.54 | Q36: 2.05 | R36: 0 | S36: 3.59 | U36: HENRIKSEDIN | V36: VAN | W36: C | X36: 69 | Y36: 2.89 | Z36: 1.21 | AA36: 2.41 | AB36: 1.51 | AC36: 5.12
A37: KIMMOTIMONEN | B37: CHI | C37: D | D37: 6 | E37: 0.61 | F37: 0 | G37: 0 | H37: 0 | I37: 0 | K37: DUSTINBYFUGLIEN | L37: WPG | M37: D | N37: 62 | O37: 3.53 | P37: 0.55 | Q37: 1.37 | R37: 1.65 | S37: 3.57 | U37: PAULSTASTNY | V37: STL | W37: C | X37: 62 | Y37: 2.27 | Z37: 2.56 | AA37: 0.43 | AB37: 2.13 | AC37: 5.11
A38: BRENTBURNS | B38: S.J | C38: D | D38: 70 | E38: 3.19 | F38: 1.34 | G38: 2.15 | H38: 1.61 | I38: 5.1 | K38: NICKLEDDY | L38: NYI | M38: D | N38: 60 | O38: 2.32 | P38: 0 | Q38: 1.72 | R38: 1.72 | S38: 3.44 | U38: TOMASPLEKANEC | V38: MTL | W38: C | X38: 70 | Y38: 2.02 | Z38: 1.7 | AA38: 0.85 | AB38: 2.55 | AC38: 5.1
A39: MARKFAYNE | B39: EDM | C39: D | D39: 63 | E39: 0.22 | F39: 0 | G39: 0 | H39: 0 | I39: 0 | K39: MICHAELDELZOTTO | L39: PHI | M39: D | N39: 52 | O39: 1.7 | P39: 0.68 | Q39: 1.36 | R39: 1.36 | S39: 3.39 | U39: SCOTTHARTNELL | V39: CBJ | W39: RW | X39: 64 | Y39: 2.6 | Z39: 2.53 | AA39: 1.08 | AB39: 1.44 | AC39: 5.06
A40: CLAUDEGIROUX | B40: PHI | C40: RW | D40: 69 | E40: 3.08 | F40: 1.98 | G40: 1.69 | H40: 3.67 | I40: 7.34 | K40: T.J.BRODIE | L40: CGY | M40: D | N40: 68 | O40: 2.38 | P40: 1.11 | Q40: 0.74 | R40: 1.49 | S40: 3.34 | U40: JADENSCHWARTZ | V40: STL | W40: C | X40: 63 | Y40: 2.26 | Z40: 2.95 | AA40: 0.84 | AB40: 1.26 | AC40: 5.06
A41: JAKUBVORACEK | B41: PHI | C41: RW | D41: 70 | E41: 3.06 | F41: 2.24 | G41: 0.84 | H41: 2.52 | I41: 5.61 | K41: KRISRUSSELL | L41: CGY | M41: D | N41: 66 | O41: 2.22 | P41: 0.41 | Q41: 0.82 | R41: 2.05 | S41: 3.28 | U41: PHILKESSEL | V41: TOR | W41: LW | X41: 72 | Y41: 3.49 | Z41: 1.43 | AA41: 2.15 | AB41: 1.43 | AC41: 5.02
A42: BRAYDENSCHENN | B42: PHI | C42: C | D42: 70 | E42: 2.86 | F42: 1.2 | G42: 2.7 | H42: 0.3 | I42: 4.2 | K42: OLIVEREKMAN-LARSSON | L42: PHX | M42: D | N42: 68 | O42: 3.81 | P42: 1.62 | Q42: 0.7 | R42: 0.93 | S42: 3.24 | U42: JIMMYHAYES | V42: FLA | W42: RW | X42: 53 | Y42: 2.04 | Z42: 2.22 | AA42: 2.22 | AB42: 0.56 | AC42: 5
A43: NICKLASBACKSTROM | B43: WSH | C43: C | D43: 70 | E43: 3.08 | F43: 0.83 | G43: 2.78 | H43: 3.61 | I43: 7.23 | K43: DIONPHANEUF | L43: TOR | M43: D | N43: 61 | O43: 3.35 | P43: 0.29 | Q43: 1.76 | R43: 1.17 | S43: 3.23 | U43: ANDREWLADD | V43: WPG | W43: LW | X43: 68 | Y43: 2.86 | Z43: 2.78 | AA43: 0.31 | AB43: 1.85 | AC43: 4.94
A44: DMITRIJASKIN | B44: STL | C44: RW | D44: 43 | E44: 0.91 | F44: 3.05 | G44: 0 | H44: 0 | I44: 3.05 | K44: TYSONBARRIE | L44: COL | M44: D | N44: 66 | O44: 2.84 | P44: 0.32 | Q44: 0.96 | R44: 1.92 | S44: 3.2 | U44: DAVIDBACKES | V44: STL | W44: C | X44: 69 | Y44: 2.3 | Z44: 3.41 | AA44: 0.76 | AB44: 0.76 | AC44: 4.92
A45: XAVIEROUELLET | B45: DET | C45: D | D45: 21 | E45: 0.13 | F45: 0 | G45: 0 | H45: 0 | I45: 0 | K45: JACOBTROUBA | L45: WPG | M45: D | N45: 52 | O45: 1.82 | P45: 0 | Q45: 1.9 | R45: 1.27 | S45: 3.17 | U45: JOHNGAUDREAU | V45: CGY | W45: LW | X45: 67 | Y45: 2.74 | Z45: 1.31 | AA45: 2.62 | AB45: 0.98 | AC45: 4.91
A46: TOMASVINCOUR | B46: COL | C46: RW | D46: 7 | E46: 0.08 | F46: 0 | G46: 0 | H46: 0 | I46: 0 | K46: JOHNKLINGBERG | L46: DAL | M46: D | N46: 51 | O46: 2.61 | P46: 0.45 | Q46: 1.35 | R46: 1.35 | S46: 3.15 | U46: MILANMICHALEK | V46: OTT | W46: LW | X46: 62 | Y46: 1.97 | Z46: 2.46 | AA46: 0.98 | AB46: 1.47 | AC46: 4.91
A47: TROYBROUWER | B47: WSH | C47: RW | D47: 70 | E47: 2.97 | F47: 2.31 | G47: 0.58 | H47: 0.87 | I47: 3.76 | K47: RYANELLIS | L47: NSH | M47: D | N47: 48 | O47: 2 | P47: 0.62 | Q47: 1.87 | R47: 0.62 | S47: 3.12 | U47: JASONSPEZZA | V47: DAL | W47: C | X47: 68 | Y47: 3.46 | Z47: 0.51 | AA47: 1.78 | AB47: 2.55 | AC47: 4.84
A48: CARLOCOLAIACOVO | B48: PHI | C48: D | D48: 24 | E48: 0.88 | F48: 0 | G48: 2.85 | H48: 2.85 | I48: 5.7 | K48: KEVINCONNAUTON | L48: CBJ | M48: D | N48: 51 | O48: 1.52 | P48: 0.77 | Q48: 1.55 | R48: 0.77 | S48: 3.09 | U48: PATRICKSHARP | V48: CHI | W48: RW | X48: 54 | Y48: 3 | Z48: 2.59 | AA48: 1.48 | AB48: 0.74 | AC48: 4.82
A49: TEEMUPULKKINEN | B49: DET | C49: RW | D49: 16 | E49: 2.29 | F49: 1.63 | G49: 0 | H49: 0 | I49: 1.63 | K49: DANBOYLE | L49: NYR | M49: D | N49: 50 | O49: 2.77 | P49: 1.3 | Q49: 0.87 | R49: 0.87 | S49: 3.03 | U49: SEANMONAHAN | V49: CGY | W49: C | X49: 68 | Y49: 2.77 | Z49: 2.55 | AA49: 1.6 | AB49: 0.64 | AC49: 4.79
A50: OSCARKLEFBOM | B50: EDM | C50: D | D50: 41 | E50: 0.5 | F50: 0 | G50: 2.91 | H50: 2.91 | I50: 5.81 | K50: ALEXGOLIGOSKI | L50: DAL | M50: D | N50: 68 | O50: 2.05 | P50: 0 | Q50: 1.72 | R50: 1.29 | S50: 3.02 | U50: DERICKBRASSARD | V50: NYR | W50: C | X50: 65 | Y50: 2.7 | Z50: 1.02 | AA50: 1.37 | AB50: 2.39 | AC50: 4.78
A51: MARTINERAT | B51: PHX | C51: RW | D51: 65 | E51: 1.61 | F51: 1.72 | G51: 0.57 | H51: 1.15 | I51: 3.45 | K51: ALEXPIETRANGELO | L51: STL | M51: D | N51: 70 | O51: 2.36 | P51: 0.36 | Q51: 1.81 | R51: 0.73 | S51: 2.9 | U51: VLADIMIRTARASENKO | V51: STL | W51: RW | X51: 70 | Y51: 2.52 | Z51: 2.04 | AA51: 1.7 | AB51: 1.02 | AC51: 4.77
A52: BRYANLITTLE | B52: WPG | C52: C | D52: 62 | E52: 2.75 | F52: 2.47 | G52: 1.76 | H52: 1.06 | I52: 5.29 | K52: NIKITAZADOROV | L52: BUF | M52: D | N52: 49 | O52: 1.72 | P52: 0.71 | Q52: 0.71 | R52: 1.43 | S52: 2.85 | U52: EVGENIMALKIN | V52: PIT | W52: C | X52: 60 | Y52: 3.57 | Z52: 1.96 | AA52: 1.68 | AB52: 1.12 | AC52: 4.76
A53: MARKSTREIT | B53: PHI | C53: D | D53: 70 | E53: 3.4 | F53: 0.76 | G53: 2.27 | H53: 1.51 | I53: 4.54 | K53: JAKEGARDINER | L53: TOR | M53: D | N53: 69 | O53: 2.47 | P53: 0 | Q53: 0.35 | R53: 2.47 | S53: 2.82 | U53: FRANSNIELSEN | V53: NYI | W53: C | X53: 63 | Y53: 2.85 | Z53: 0.67 | AA53: 3 | AB53: 1 | AC53: 4.67
A54: ALEXOVECHKIN | B54: WSH | C54: LW | D54: 69 | E54: 3.87 | F54: 4.49 | G54: 1.35 | H54: 0.22 | I54: 6.07 | K54: DUNCANKEITH | L54: CHI | M54: D | N54: 67 | O54: 3.21 | P54: 0.56 | Q54: 1.67 | R54: 0.56 | S54: 2.79 | U54: MARIANHOSSA | V54: CHI | W54: RW | X54: 68 | Y54: 2.27 | Z54: 1.94 | AA54: 1.17 | AB54: 1.55 | AC54: 4.66
A55: MARCUSJOHANSSON | B55: WSH | C55: C | D55: 70 | E55: 3.06 | F55: 0.84 | G55: 0.28 | H55: 3.09 | I55: 4.21 | K55: DREWDOUGHTY | L55: L.A | M55: D | N55: 68 | O55: 3.55 | P55: 0 | Q55: 1.99 | R55: 0.75 | S55: 2.74 | U55: MARKSCHEIFELE | V55: WPG | W55: C | X55: 68 | Y55: 2.28 | Z55: 1.16 | AA55: 1.55 | AB55: 1.94 | AC55: 4.65
A56: ANDREWLADD | B56: WPG | C56: LW | D56: 68 | E56: 2.86 | F56: 2.78 | G56: 0.31 | H56: 1.85 | I56: 4.94 | K56: JASONDEMERS | L56: DAL | M56: D | N56: 67 | O56: 1.66 | P56: 1.08 | Q56: 0 | R56: 1.62 | S56: 2.7 | U56: ANTOINEVERMETTE | V56: CHI | W56: C | X56: 66 | Y56: 2.56 | Z56: 2.13 | AA56: 1.42 | AB56: 1.07 | AC56: 4.62
A57: IIROPAKARINEN | B57: EDM | C57: RW | D57: 14 | E57: 0.94 | F57: 0 | G57: 0 | H57: 4.57 | I57: 4.57 | K57: AARONEKBLAD | L57: FLA | M57: D | N57: 63 | O57: 2.94 | P57: 1.29 | Q57: 0.32 | R57: 0.97 | S57: 2.59 | U57: NIKITAKUCHEROV | V57: T.B | W57: RW | X57: 68 | Y57: 2.11 | Z57: 0.83 | AA57: 2.09 | AB57: 1.67 | AC57: 4.59
A58: BRETTRITCHIE | B58: DAL | C58: RW | D58: 22 | E58: 2 | F58: 0 | G58: 0 | H58: 0 | I58: 0 | K58: ANDREJSEKERA | L58: L.A | M58: D | N58: 65 | O58: 1.82 | P58: 0.51 | Q58: 1.02 | R58: 1.02 | S58: 2.54 | U58: GABRIELLANDESKOG | V58: COL | W58: LW | X58: 67 | Y58: 2.36 | Z58: 1.52 | AA58: 0.76 | AB58: 2.28 | AC58: 4.55
A59: JONATHANTOEWS | B59: CHI | C59: C | D59: 68 | E59: 3.31 | F59: 1.33 | G59: 1.33 | H59: 1.33 | I59: 4 | K59: HAMPUSLINDHOLM | L59: ANA | M59: D | N59: 68 | O59: 1.74 | P59: 0 | Q59: 2.03 | R59: 0.51 | S59: 2.54 | U59: CHRISSTEWART | V59: MIN | W59: RW | X59: 70 | Y59: 1.9 | Z59: 2.26 | AA59: 1.36 | AB59: 0.9 | AC59: 4.52
A60: ZBYNEKMICHALEK | B60: STL | C60: D | D60: 58 | E60: 0.04 | F60: 0 | G60: 0 | H60: 0 | I60: 0 | K60: ERIKJOHNSON | L60: COL | M60: D | N60: 47 | O60: 2.54 | P60: 1 | Q60: 1 | R60: 0.5 | S60: 2.51 | U60: BROCKNELSON | V60: NYI | W60: C | X60: 64 | Y60: 2.92 | Z60: 2.89 | AA60: 1.28 | AB60: 0.32 | AC60: 4.5
A61: MARTINHANZAL | B61: PHX | C61: C | D61: 37 | E61: 2.08 | F61: 0.78 | G61: 1.56 | H61: 0.78 | I61: 3.12 | K61: JUSTINSCHULTZ | L61: EDM | M61: D | N61: 62 | O61: 2.77 | P61: 0 | Q61: 1.75 | R61: 0.7 | S61: 2.45 | U61: JIRITLUSTY | V61: WPG | W61: LW | X61: 59 | Y61: 2.04 | Z61: 2.49 | AA61: 0.5 | AB61: 1.49 | AC61: 4.48
A62: RYANWHITE | B62: PHI | C62: C | D62: 22 | E62: 0.05 | F62: 0 | G62: 0 | H62: 0 | I62: 0 | K62: BRIANCAMPBELL | L62: FLA | M62: D | N62: 63 | O62: 3.13 | P62: 0.3 | Q62: 1.22 | R62: 0.91 | S62: 2.43 | U62: JUSTINABDELKADER | V62: DET | W62: C | X62: 59 | Y62: 2.5 | Z62: 2.44 | AA62: 1.63 | AB62: 0.41 | AC62: 4.47
A63: MARKSTUART | B63: WPG | C63: D | D63: 57 | E63: 0.02 | F63: 0 | G63: 0 | H63: 0 | I63: 0 | K63: NICKHOLDEN | L63: COL | M63: D | N63: 63 | O63: 1.96 | P63: 0.49 | Q63: 0.97 | R63: 0.97 | S63: 2.43 | U63: TYLERENNIS | V63: BUF | W63: C | X63: 67 | Y63: 2.87 | Z63: 1.87 | AA63: 2.18 | AB63: 0.31 | AC63: 4.37
A64: PATRICKKANE | B64: CHI | C64: RW | D64: 60 | E64: 3.5 | F64: 1.72 | G64: 1.43 | H64: 2 | I64: 5.15 | K64: RASMUSRISTOLAINEN | L64: BUF | M64: D | N64: 66 | O64: 1.88 | P64: 0.97 | Q64: 0.97 | R64: 0.48 | S64: 2.41 | U64: MICHAELCAMMALLERI | V64: N.J | W64: C | X64: 56 | Y64: 2.21 | Z64: 3.87 | AA64: 0.48 | AB64: 0 | AC64: 4.36
A65: DAVIDLEGWAND | B65: OTT | C65: C | D65: 65 | E65: 2.28 | F65: 2.03 | G65: 1.22 | H65: 0.41 | I65: 3.65 | K65: RYANSUTER | L65: MIN | M65: D | N65: 64 | O65: 3.96 | P65: 0.24 | Q65: 1.18 | R65: 0.95 | S65: 2.37 | U65: THOMASVANEK | V65: MIN | W65: LW | X65: 67 | Y65: 3.09 | Z65: 1.45 | AA65: 2.03 | AB65: 0.87 | AC65: 4.35
A66: ANDREWSHAW | B66: CHI | C66: C | D66: 65 | E66: 2.77 | F66: 0.67 | G66: 0 | H66: 0.33 | I66: 1 | K66: ALEXANDEREDLER | L66: VAN | M66: D | N66: 63 | O66: 2.88 | P66: 1.32 | Q66: 0.33 | R66: 0.66 | S66: 2.31 | U66: NICKBJUGSTAD | V66: FLA | W66: C | X66: 63 | Y66: 2.25 | Z66: 2.96 | AA66: 0.85 | AB66: 0.42 | AC66: 4.24
A67: MIKEGREEN | B67: WSH | C67: D | D67: 60 | E67: 2.88 | F67: 0.35 | G67: 3.48 | H67: 1.39 | I67: 5.22 | K67: CAMFOWLER | L67: ANA | M67: D | N67: 70 | O67: 2.49 | P67: 0.34 | Q67: 0.69 | R67: 1.03 | S67: 2.06 | U67: MARCUSJOHANSSON | V67: WSH | W67: C | X67: 70 | Y67: 3.06 | Z67: 0.84 | AA67: 0.28 | AB67: 3.09 | AC67: 4.21
A68: JORDANSTAAL | B68: CAR | C68: C | D68: 30 | E68: 1.9 | F68: 1.05 | G68: 1.05 | H68: 3.15 | I68: 5.25 | K68: DMITRYKULIKOV | L68: FLA | M68: D | N68: 55 | O68: 1.59 | P68: 0.69 | Q68: 0.69 | R68: 0.69 | S68: 2.06 | U68: RILEYSMITH | V68: BOS | W68: RW | X68: 60 | Y68: 1.9 | Z68: 0.53 | AA68: 2.1 | AB68: 1.58 | AC68: 4.21
A69: RYANKESLER | B69: ANA | C69: C | D69: 71 | E69: 2.55 | F69: 1 | G69: 1.33 | H69: 0.33 | I69: 2.65 | K69: TOBIASENSTROM | L69: WPG | M69: D | N69: 49 | O69: 3.03 | P69: 0.4 | Q69: 1.21 | R69: 0.4 | S69: 2.02 | U69: CHRISKUNITZ | V69: PIT | W69: LW | X69: 61 | Y69: 3.05 | Z69: 1.94 | AA69: 1.29 | AB69: 0.97 | AC69: 4.2
A70: MATTMARTIN | B70: NYI | C70: LW | D70: 63 | E70: 0.13 | F70: 0 | G70: 0 | H70: 0 | I70: 0 | K70: JAREDSPURGEON | L70: MIN | M70: D | N70: 54 | O70: 2.23 | P70: 1.5 | Q70: 0.5 | R70: 0 | S70: 2 | U70: BRAYDENSCHENN | V70: PHI | W70: C | X70: 70 | Y70: 2.86 | Z70: 1.2 | AA70: 2.7 | AB70: 0.3 | AC70: 4.2
A71: PATRICKSHARP | B71: CHI | C71: RW | D71: 54 | E71: 3 | F71: 2.59 | G71: 1.48 | H71: 0.74 | I71: 4.82 | K71: SERGEIGONCHAR | L71: MTL | M71: D | N71: 47 | O71: 1.92 | P71: 0 | Q71: 0.66 | R71: 1.33 | S71: 1.99 | U71: EDWARDPURCELL | V71: EDM | W71: C | X71: 63 | Y71: 2.29 | Z71: 1.25 | AA71: 2.5 | AB71: 0.42 | AC71: 4.16
A72: JORDANEBERLE | B72: EDM | C72: C | D72: 62 | E72: 2.63 | F72: 1.84 | G72: 1.84 | H72: 2.21 | I72: 5.89 | K72: TYLERMYERS | L72: WPG | M72: D | N72: 59 | O72: 2.78 | P72: 0.37 | Q72: 0.73 | R72: 0.73 | S72: 1.83 | U72: MILANLUCIC | V72: BOS | W72: LW | X72: 59 | Y72: 1.72 | Z72: 1.18 | AA72: 1.18 | AB72: 1.77 | AC72: 4.14
A73: MATTBELESKY | B73: ANA | C73: LW | D73: 60 | E73: 1.55 | F73: 2.58 | G73: 0 | H73: 0 | I73: 2.58 | K73: FRANCOISBEAUCHEMIN | L73: ANA | M73: D | N73: 53 | O73: 1.54 | P73: 0.74 | Q73: 0 | R73: 0.74 | S73: 1.47 | U73: MARTINST.LOUIS | V73: NYR | W73: RW | X73: 65 | Y73: 2.7 | Z73: 1.71 | AA73: 1.71 | AB73: 0.68 | AC73: 4.11
A74: TAYLORHALL | B74: EDM | C74: LW | D74: 42 | E74: 2.67 | F74: 1.07 | G74: 1.6 | H74: 0 | I74: 2.67 | K74: CHRISTIANEHRHOFF | L74: PIT | M74: D | N74: 47 | O74: 2 | P74: 0 | Q74: 0 | R74: 1.28 | S74: 1.28 | U74: CHRISKREIDER | V74: NYR | W74: LW | X74: 65 | Y74: 1.8 | Z74: 3.59 | AA74: 0 | AB74: 0.51 | AC74: 4.1
A75: STUARTPERCY | B75: TOR | C75: D | D75: 9 | E75: 1.46 | F75: 0 | G75: 9.13 | H75: 0 | I75: 9.13 | K75: DANGIRARDI | L75: NYR | M75: D | N75: 67 | O75: 1.59 | P75: 0.56 | Q75: 0 | R75: 0.56 | S75: 1.13 | U75: ZACHPARISE | V75: MIN | W75: LW | X75: 62 | Y75: 3.33 | Z75: 2.62 | AA75: 0.58 | AB75: 0.87 | AC75: 4.07
A76: DANYHEATLEY | B76: ANA | C76: RW | D76: 6 | E76: 0.9 | F76: 0 | G76: 0 | H76: 0 | I76: 0 | K76: KEVINBIEKSA | L76: VAN | M76: D | N76: 49 | O76: 1.62 | P76: 0 | Q76: 0 | R76: 0.76 | S76: 0.76 | U76: JEFFCARTER | V76: L.A | W76: C | X76: 68 | Y76: 2.82 | Z76: 2.5 | AA76: 0.94 | AB76: 0.62 | AC76: 4.06
A77: JOHNCARLSON | B77: WSH | C77: D | D77: 70 | E77: 1.7 | F77: 1.01 | G77: 2.52 | H77: 2.02 | I77: 5.54 | K77: DANHAMHUIS | L77: VAN | M77: D | N77: 47 | O77: 1.77 | P77: 0 | Q77: 0.72 | R77: 0 | S77: 0.72 | U77: TYLERBOZAK | V77: TOR | W77: C | X77: 72 | Y77: 3.31 | Z77: 2.77 | AA77: 0.76 | AB77: 0.5 | AC77: 4.03
A78: ANDREWEBBETT | B78: PIT | C78: C | D78: 24 | E78: 0.05 | F78: 0 | G78: 0 | H78: 0 | I78: 0 | K78: PAULMARTIN | L78: PIT | M78: D | N78: 61 | O78: 1.57 | P78: 0 | Q78: 0.63 | R78: 0 | S78: 0.63 | U78: JONATHANTOEWS | V78: CHI | W78: C | X78: 68 | Y78: 3.31 | Z78: 1.33 | AA78: 1.33 | AB78: 1.33 | AC78: 4
A79: NICKLASJENSEN | B79: VAN | C79: RW | D79: 5 | E79: 0.12 | F79: 0 | G79: 0 | H79: 0 | I79: 0 | K79: ANDREJMESZAROS | L79: BUF | M79: D | N79: 48 | O79: 1.55 | P79: 0 | Q79: 0 | R79: 0 | S79: 0 | U79: KYLEOKPOSO | V79: NYI | W79: RW | X79: 50 | Y79: 3.63 | Z79: 1.32 | AA79: 1.32 | AB79: 1.32 | AC79: 3.97
A80: TEUVOTERAVAINEN | B80: CHI | C80: LW | D80: 23 | E80: 0.57 | F80: 0 | G80: 0 | H80: 0 | I80: 0 | U80: MATHIEUPERREAULT | V80: WPG | W80: C | X80: 54 | Y80: 2.85 | Z80: 1.95 | AA80: 1.95 | AB80: 0 | AC80: 3.89
A81: SHANEO'BRIEN | B81: FLA | C81: D | D81: 7 | E81: 0.09 | F81: 0 | G81: 0 | H81: 0 | I81: 0 | U81: ERIKCOLE | V81: DET | W81: RW | X81: 62 | Y81: 1.79 | Z81: 1.62 | AA81: 1.62 | AB81: 0.54 | AC81: 3.79
A82: JAKUBKINDL | B82: DET | C82: D | D82: 32 | E82: 1.84 | F82: 2.04 | G82: 2.04 | H82: 2.04 | I82: 6.12 | U82: BOBBYRYAN | V82: OTT | W82: RW | X82: 63 | Y82: 3.03 | Z82: 1.26 | AA82: 0.94 | AB82: 1.57 | AC82: 3.78
A83: MICHAELSTONE | B83: PHX | C83: D | D83: 67 | E83: 1.04 | F83: 0 | G83: 2.58 | H83: 0 | I83: 2.58 | U83: ALEXGALCHENYUK | V83: MTL | W83: C | X83: 69 | Y83: 2.08 | Z83: 0.84 | AA83: 1.26 | AB83: 1.67 | AC83: 3.77
A84: MATHIEUPERREAULT | B84: WPG | C84: C | D84: 54 | E84: 2.85 | F84: 1.95 | G84: 1.95 | H84: 0 | I84: 3.89 | U84: TROYBROUWER | V84: WSH | W84: RW | X84: 70 | Y84: 2.97 | Z84: 2.31 | AA84: 0.58 | AB84: 0.87 | AC84: 3.76
A85: RYANNUGENT-HOPKINS | B85: EDM | C85: C | D85: 61 | E85: 2.63 | F85: 0.37 | G85: 0.75 | H85: 2.25 | I85: 3.37 | U85: JAMESVANRIEMSDYK | V85: TOR | W85: RW | X85: 72 | Y85: 3.34 | Z85: 2.25 | AA85: 1 | AB85: 0.5 | AC85: 3.75
A86: PAULSTASTNY | B86: STL | C86: C | D86: 62 | E86: 2.27 | F86: 2.56 | G86: 0.43 | H86: 2.13 | I86: 5.11 | U86: JOECOLBORNE | V86: CGY | W86: LW | X86: 50 | Y86: 1.61 | Z86: 1.49 | AA86: 0.75 | AB86: 1.49 | AC86: 3.73
A87: RAPHAELDIAZ | B87: CGY | C87: D | D87: 46 | E87: 1.03 | F87: 1.27 | G87: 1.27 | H87: 0 | I87: 2.54 | U87: MARKSTONE | V87: OTT | W87: RW | X87: 65 | Y87: 2.25 | Z87: 1.23 | AA87: 0.41 | AB87: 2.05 | AC87: 3.7
A88: VINCENTTROCHECK | B88: FLA | C88: C | D88: 34 | E88: 1.07 | F88: 1.65 | G88: 0 | H88: 0 | I88: 1.65 | U88: JAMIEBENN | V88: DAL | W88: LW | X88: 68 | Y88: 3.35 | Z88: 1.58 | AA88: 1.05 | AB88: 1.05 | AC88: 3.68
A89: ERICSTAAL | B89: CAR | C89: C | D89: 61 | E89: 2.45 | F89: 2.81 | G89: 1.61 | H89: 0.8 | I89: 5.22 | U89: MIKKOKOIVU | V89: MIN | W89: C | X89: 68 | Y89: 3.38 | Z89: 0.78 | AA89: 1.31 | AB89: 1.57 | AC89: 3.66
A90: OLLIMAATTA | B90: PIT | C90: D | D90: 20 | E90: 1.31 | F90: 0 | G90: 0 | H90: 4.57 | I90: 4.57 | U90: DAVIDLEGWAND | V90: OTT | W90: C | X90: 65 | Y90: 2.28 | Z90: 2.03 | AA90: 1.22 | AB90: 0.41 | AC90: 3.65
A91: JEFFCARTER | B91: L.A | C91: C | D91: 68 | E91: 2.82 | F91: 2.5 | G91: 0.94 | H91: 0.62 | I91: 4.06 | U91: MIKAZIBANEJAD | V91: OTT | W91: C | X91: 65 | Y91: 2.54 | Z91: 0.73 | AA91: 1.45 | AB91: 1.45 | AC91: 3.63
A92: JAKOBSILFVERBERG | B92: ANA | C92: RW | D92: 70 | E92: 0.66 | F92: 2.61 | G92: 2.61 | H92: 0 | I92: 5.22 | U92: RILEYSHEAHAN | V92: DET | W92: C | X92: 66 | Y92: 2.28 | Z92: 1.6 | AA92: 1.6 | AB92: 0.4 | AC92: 3.6
A93: DUNCANKEITH | B93: CHI | C93: D | D93: 67 | E93: 3.21 | F93: 0.56 | G93: 1.67 | H93: 0.56 | I93: 2.79 | U93: CAMATKINSON | V93: CBJ | W93: RW | X93: 65 | Y93: 2.32 | Z93: 2.38 | AA93: 0.4 | AB93: 0.79 | AC93: 3.58
A94: DEVINSETOGUCHI | B94: CGY | C94: RW | D94: 12 | E94: 1.38 | F94: 0 | G94: 0 | H94: 0 | I94: 0 | U94: PATRIKELIAS | V94: N.J | W94: LW | X94: 57 | Y94: 2.07 | Z94: 1.53 | AA94: 1.02 | AB94: 1.02 | AC94: 3.56
A95: TANNERPEARSON | B95: L.A | C95: LW | D95: 42 | E95: 1.49 | F95: 0.96 | G95: 0 | H95: 0 | I95: 0.96 | U95: CARLSODERBERG | V95: BOS | W95: C | X95: 60 | Y95: 1.97 | Z95: 2.03 | AA95: 1.53 | AB95: 0 | AC95: 3.56
A96: DARRENHELM | B96: DET | C96: C | D96: 61 | E96: 1.19 | F96: 1.65 | G96: 0.83 | H96: 1.65 | I96: 4.13 | U96: NATHANGERBE | V96: CAR | W96: C | X96: 62 | Y96: 1.64 | Z96: 1.18 | AA96: 0.59 | AB96: 1.77 | AC96: 3.55
A97: KEVINSHATTENKIRK | B97: STL | C97: D | D97: 49 | E97: 3.19 | F97: 1.53 | G97: 3.45 | H97: 2.68 | I97: 7.67 | U97: PATRICHORNQVIST | V97: PIT | W97: LW | X97: 53 | Y97: 3.2 | Z97: 1.42 | AA97: 1.06 | AB97: 1.06 | AC97: 3.54
A98: JASONPOMINVILLE | B98: MIN | C98: LW | D98: 68 | E98: 3.43 | F98: 0.51 | G98: 1.54 | H98: 1.03 | I98: 3.09 | U98: DEREKSTEPAN | V98: NYR | W98: C | X98: 53 | Y98: 2.57 | Z98: 0.88 | AA98: 0.88 | AB98: 1.76 | AC98: 3.52
A99: JYRKIJOKIPAKKA | B99: DAL | C99: D | D99: 38 | E99: 0.07 | F99: 0 | G99: 0 | H99: 0 | I99: 0 | U99: ALEXTANGUAY | V99: COL | W99: LW | X99: 65 | Y99: 2.37 | Z99: 0.78 | AA99: 1.17 | AB99: 1.56 | AC99: 3.51
A100: KRISVERSTEEG | B100: CHI | C100: RW | D100: 47 | E100: 1.7 | F100: 0.75 | G100: 0 | H100: 1.51 | I100: 2.26 | U100: JIRIHUDLER | V100: CGY | W100: LW | X100: 65 | Y100: 2.92 | Z100: 1.26 | AA100: 1.26 | AB100: 0.95 | AC100: 3.47
A101: TOREYKRUG | B101: BOS | C101: D | D101: 56 | E101: 2.15 | F101: 1 | G101: 1.5 | H101: 2 | I101: 4.49 | U101: DAVIDDESHARNAIS | V101: MTL | W101: C | X101: 70 | Y101: 2.22 | Z101: 0.77 | AA101: 0.77 | AB101: 1.93 | AC101: 3.47
A102: ANZEKOPITAR | B102: L.A | C102: C | D102: 65 | E102: 2.9 | F102: 1.59 | G102: 3.18 | H102: 2.23 | I102: 7.01 | U102: ELIASLINDHOLM | V102: CAR | W102: C | X102: 65 | Y102: 2.41 | Z102: 1.15 | AA102: 1.15 | AB102: 1.15 | AC102: 3.45
A103: RYANGETZLAF | B103: ANA | C103: C | D103: 68 | E103: 3.06 | F103: 0.58 | G103: 1.73 | H103: 0.87 | I103: 3.17 | U103: ALEXBURROWS | V103: VAN | W103: RW | X103: 58 | Y103: 2.1 | Z103: 1.97 | AA103: 0.98 | AB103: 0.49 | AC103: 3.45
A104: JUSTINSCHULTZ | B104: EDM | C104: D | D104: 62 | E104: 2.77 | F104: 0 | G104: 1.75 | H104: 0.7 | I104: 2.45 | U104: MARTINERAT | V104: PHX | W104: RW | X104: 65 | Y104: 1.61 | Z104: 1.72 | AA104: 0.57 | AB104: 1.15 | AC104: 3.45
A105: KYLETURRIS | B105: OTT | C105: C | D105: 67 | E105: 2.91 | F105: 0.62 | G105: 1.54 | H105: 0.92 | I105: 3.08 | U105: PATRICEBERGERON | V105: BOS | W105: C | X105: 59 | Y105: 2.08 | Z105: 0.98 | AA105: 1.46 | AB105: 0.98 | AC105: 3.42
A106: MATTCALVERT | B106: CBJ | C106: LW | D106: 47 | E106: 1.01 | F106: 0 | G106: 0 | H106: 1.26 | I106: 1.26 | U106: ALESHEMSKY | V106: DAL | W106: RW | X106: 62 | Y106: 1.99 | Z106: 0.49 | AA106: 1.95 | AB106: 0.97 | AC106: 3.41
A107: SAMGAGNER | B107: PHX | C107: C | D107: 67 | E107: 2.22 | F107: 1.62 | G107: 1.62 | H107: 0 | I107: 3.23 | U107: DEREKROY | V107: EDM | W107: C | X107: 53 | Y107: 1.67 | Z107: 1.36 | AA107: 1.36 | AB107: 0.68 | AC107: 3.39
A108: MATTHUNWICK | B108: NYR | C108: D | D108: 42 | E108: 0.7 | F108: 0 | G108: 2.03 | H108: 2.03 | I108: 4.07 | U108: RYANNUGENT-HOPKINS | V108: EDM | W108: C | X108: 61 | Y108: 2.63 | Z108: 0.37 | AA108: 0.75 | AB108: 2.25 | AC108: 3.37
A109: RILEYSHEAHAN | B109: DET | C109: C | D109: 66 | E109: 2.28 | F109: 1.6 | G109: 1.6 | H109: 0.4 | I109: 3.6 | U109: BRADBOYES | V109: FLA | W109: RW | X109: 61 | Y109: 2.06 | Z109: 1.43 | AA109: 0.96 | AB109: 0.96 | AC109: 3.35
A110: CAMATKINSON | B110: CBJ | C110: RW | D110: 65 | E110: 2.32 | F110: 2.38 | G110: 0.4 | H110: 0.79 | I110: 3.58 | U110: TRAVISZAJAC | V110: N.J | W110: C | X110: 62 | Y110: 2.06 | Z110: 1.88 | AA110: 0.47 | AB110: 0.94 | AC110: 3.29
A111: MATTFRASER | B111: EDM | C111: LW | D111: 47 | E111: 0.48 | F111: 2.64 | G111: 0 | H111: 0 | I111: 2.64 | U111: BRANDONSAAD | V111: CHI | W111: LW | X111: 68 | Y111: 2.15 | Z111: 0.82 | AA111: 1.23 | AB111: 1.23 | AC111: 3.28
A112: MICHAELBOURNIVAL | B112: MTL | C112: C | D112: 27 | E112: 0.05 | F112: 0 | G112: 0 | H112: 0 | I112: 0 | U112: RYANCALLAHAN | V112: T.B | W112: RW | X112: 63 | Y112: 2.91 | Z112: 2.29 | AA112: 0.65 | AB112: 0.33 | AC112: 3.27
A113: CHRISSUMMERS | B113: PHX | C113: D | D113: 17 | E113: 0.04 | F113: 0 | G113: 0 | H113: 0 | I113: 0 | U113: SAMGAGNER | V113: PHX | W113: C | X113: 67 | Y113: 2.22 | Z113: 1.62 | AA113: 1.62 | AB113: 0 | AC113: 3.23
A114: ERIKKARLSSON | B114: OTT | C114: D | D114: 67 | E114: 4.58 | F114: 0.78 | G114: 2.15 | H114: 1.56 | I114: 4.49 | U114: RYANGETZLAF | V114: ANA | W114: C | X114: 68 | Y114: 3.06 | Z114: 0.58 | AA114: 1.73 | AB114: 0.87 | AC114: 3.17
A115: BLAKEWHEELER | B115: WPG | C115: RW | D115: 66 | E115: 2.9 | F115: 0.31 | G115: 1.57 | H115: 0.94 | I115: 2.82 | U115: RICKNASH | V115: NYR | W115: RW | X115: 66 | Y115: 2.6 | Z115: 1.4 | AA115: 1.4 | AB115: 0.35 | AC115: 3.15
A116: LUCASBISA | B116: VAN | C116: D | D116: 63 | E116: 0.07 | F116: 0 | G116: 0 | H116: 0 | I116: 0 | U116: ANDERSLEE | V116: NYI | W116: C | X116: 58 | Y116: 1.98 | Z116: 2.61 | AA116: 0.52 | AB116: 0 | AC116: 3.13
A117: JOHN-MICHAELLILES | B117: CAR | C117: D | D117: 42 | E117: 1.93 | F117: 0 | G117: 2.96 | H117: 0.74 | I117: 3.7 | U117: JASONPOMINVILLE | V117: MIN | W117: LW | X117: 68 | Y117: 3.43 | Z117: 0.51 | AA117: 1.54 | AB117: 1.03 | AC117: 3.09
A118: SAMIVATANEN | B118: ANA | C118: D | D118: 58 | E118: 3.16 | F118: 2.29 | G118: 0.65 | H118: 2.62 | I118: 5.56 | U118: KYLETURRIS | V118: OTT | W118: C | X118: 67 | Y118: 2.91 | Z118: 0.62 | AA118: 1.54 | AB118: 0.92 | AC118: 3.08
A119: ZACRINALDO | B119: PHI | C119: LW | D119: 46 | E119: 0.08 | F119: 0 | G119: 0 | H119: 0 | I119: 0 | U119: VICTORRASK | V119: CAR | W119: C | X119: 65 | Y119: 2.4 | Z119: 0.77 | AA119: 1.54 | AB119: 0.77 | AC119: 3.08
A120: DUSTINBYFUGLIEN | B120: WPG | C120: D | D120: 62 | E120: 3.53 | F120: 0.55 | G120: 1.37 | H120: 1.65 | I120: 3.57 | U120: MATTMOULSON | V120: BUF | W120: LW | X120: 66 | Y120: 2.66 | Z120: 0.68 | AA120: 1.37 | AB120: 1.02 | AC120: 3.07
A121: ZACHPARISE | B121: MIN | C121: LW | D121: 62 | E121: 3.33 | F121: 2.62 | G121: 0.58 | H121: 0.87 | I121: 4.07 | U121: JAROMEIGINLA | V121: COL | W121: RW | X121: 67 | Y121: 2.68 | Z121: 1.34 | AA121: 1 | AB121: 0.67 | AC121: 3.01
A122: ZACHTROTMAN | B122: BOS | C122: D | D122: 17 | E122: 1.02 | F122: 0 | G122: 0 | H122: 0 | I122: 0 | U122: PATRICKMAROON | V122: ANA | W122: LW | X122: 62 | Y122: 2.26 | Z122: 0.43 | AA122: 1.71 | AB122: 0.86 | AC122: 3
A123: ALEXBIEGA | B123: VAN | C123: D | D123: 5 | E123: 0.26 | F123: 0 | G123: 0 | H123: 0 | I123: 0 | U123: VALTTERIFILPPULA | V123: T.B | W123: C | X123: 68 | Y123: 3.27 | Z123: 0.54 | AA123: 0.81 | AB123: 1.62 | AC123: 2.97
A124: BOONEJENNER | B124: CBJ | C124: C | D124: 21 | E124: 2.41 | F124: 2.37 | G124: 1.18 | H124: 1.18 | I124: 4.73 | U124: DREWSTAFFORD | V124: WPG | W124: RW | X124: 63 | Y124: 2.24 | Z124: 1.7 | AA124: 0.42 | AB124: 0.85 | AC124: 2.97
A125: DAVIDBACKES | B125: STL | C125: C | D125: 69 | E125: 2.3 | F125: 3.41 | G125: 0.76 | H125: 0.76 | I125: 4.92 | U125: JONATHANHUBERDEAU | V125: FLA | W125: C | X125: 60 | Y125: 2.37 | Z125: 0 | AA125: 1.27 | AB125: 1.69 | AC125: 2.96
A126: CLARKEMACARTHUR | B126: OTT | C126: LW | D126: 52 | E126: 2.99 | F126: 1.93 | G126: 0.39 | H126: 0.39 | I126: 2.7 | U126: LOUIERIKSSON | V126: BOS | W126: LW | X126: 59 | Y126: 2.13 | Z126: 1.43 | AA126: 0.96 | AB126: 0.48 | AC126: 2.87
A127: KEITHYANDLE | B127: NYR | C127: D | D127: 68 | E127: 4.28 | F127: 0.21 | G127: 1.44 | H127: 3.09 | I127: 4.74 | U127: RYANO'REILLY | V127: COL | W127: C | X127: 67 | Y127: 2.52 | Z127: 0.71 | AA127: 1.42 | AB127: 0.71 | AC127: 2.84
A128: SEANMONAHAN | B128: CGY | C128: C | D128: 68 | E128: 2.77 | F128: 2.55 | G128: 1.6 | H128: 0.64 | I128: 4.79 | U128: JORILEHTERA | V128: STL | W128: LW | X128: 63 | Y128: 2.36 | Z128: 0.4 | AA128: 0.81 | AB128: 1.62 | AC128: 2.83
A129: ALEXCHIASSON | B129: OTT | C129: RW | D129: 61 | E129: 2.1 | F129: 1.41 | G129: 0.94 | H129: 0 | I129: 2.34 | U129: BLAKEWHEELER | V129: WPG | W129: RW | X129: 66 | Y129: 2.9 | Z129: 0.31 | AA129: 1.57 | AB129: 0.94 | AC129: 2.82
A130: VICTORRASK | B130: CAR | C130: C | D130: 65 | E130: 2.4 | F130: 0.77 | G130: 1.54 | H130: 0.77 | I130: 3.08 | U130: CRAIGSMITH | V130: NSH | W130: C | X130: 70 | Y130: 2.45 | Z130: 2.1 | AA130: 0.35 | AB130: 0.35 | AC130: 2.8
A131: ALEXANDERSTEEN | B131: STL | C131: C | D131: 68 | E131: 3.28 | F131: 1.35 | G131: 3.23 | H131: 1.08 | I131: 5.66 | U131: BRADRICHARDS | V131: CHI | W131: C | X131: 65 | Y131: 1.98 | Z131: 0.47 | AA131: 2.34 | AB131: 0 | AC131: 2.8
A132: KYLEOKPOSO | B132: NYI | C132: RW | D132: 50 | E132: 3.63 | F132: 1.32 | G132: 1.32 | H132: 1.32 | I132: 3.97 | U132: MAXPACIORETTY | V132: MTL | W132: LW | X132: 70 | Y132: 2.47 | Z132: 1.74 | AA132: 0.69 | AB132: 0.35 | AC132: 2.78
A133: JAKEMUZZIN | B133: L.A | C133: D | D133: 62 | E133: 2.73 | F133: 1.06 | G133: 0.35 | H133: 2.84 | I133: 4.26 | U133: SHANEDOAN | V133: PHX | W133: RW | X133: 66 | Y133: 2.64 | Z133: 1.03 | AA133: 1.38 | AB133: 0.34 | AC133: 2.75
A134: JOHNTAVARES | B134: NYI | C134: C | D134: 64 | E134: 3.59 | F134: 2.09 | G134: 0.52 | H134: 2.61 | I134: 5.22 | U134: RILEYNASH | V134: CAR | W134: C | X134: 60 | Y134: 1.84 | Z134: 0.54 | AA134: 1.63 | AB134: 0.54 | AC134: 2.72
A135: T.J.OSHIE | B135: STL | C135: LW | D135: 62 | E135: 2.25 | F135: 1.29 | G135: 2.15 | H135: 2.15 | I135: 5.59 | U135: CLARKEMACARTHUR | V135: OTT | W135: LW | X135: 52 | Y135: 2.99 | Z135: 1.93 | AA135: 0.39 | AB135: 0.39 | AC135: 2.7
A136: ANDYANDREOFF | B136: L.A | C136: C | D136: 17 | E136: 0.08 | F136: 0 | G136: 0 | H136: 0 | I136: 0 | U136: LINDENVEY | V136: VAN | W136: RW | X136: 62 | Y136: 2.17 | Z136: 1.78 | AA136: 0.45 | AB136: 0.45 | AC136: 2.67
A137: CHRISMUELLER | B137: NYR | C137: C | D137: 7 | E137: 1.86 | F137: 4.62 | G137: 0 | H137: 0 | I137: 4.62 | U137: RYANKESLER | V137: ANA | W137: C | X137: 71 | Y137: 2.55 | Z137: 1 | AA137: 1.33 | AB137: 0.33 | AC137: 2.65
A138: CHRISBUTLER | B138: STL | C138: D | D138: 31 | E138: 0.36 | F138: 0 | G138: 0 | H138: 0 | I138: 0 | U138: SEANCOUTURIER | V138: PHI | W138: C | X138: 70 | Y138: 1.63 | Z138: 0.53 | AA138: 0.53 | AB138: 1.58 | AC138: 2.63
A139: PATRICKEAVES | B139: DAL | C139: RW | D139: 35 | E139: 1.64 | F139: 4.19 | G139: 0 | H139: 2.09 | I139: 6.28 | U139: JAROMIRJAGR | V139: FLA | W139: RW | X139: 59 | Y139: 2.34 | Z139: 0.43 | AA139: 1.74 | AB139: 0.43 | AC139: 2.61
A140: MIKKELBOEDKER | B140: PHX | C140: LW | D140: 45 | E140: 2.78 | F140: 1.44 | G140: 1.44 | H140: 2.4 | I140: 5.28 | U140: COREYPERRY | V140: ANA | W140: RW | X140: 56 | Y140: 2.89 | Z140: 1.48 | AA140: 0.74 | AB140: 0.37 | AC140: 2.6
A141: MARCMETHOT | B141: OTT | C141: D | D141: 30 | E141: 0.17 | F141: 0 | G141: 0 | H141: 0 | I141: 0 | U141: JUSSIJOKINEN | V141: FLA | W141: LW | X141: 62 | Y141: 2.24 | Z141: 0.43 | AA141: 1.3 | AB141: 0.86 | AC141: 2.59
A142: LAURIKORPIKOSKI | B142: PHX | C142: LW | D142: 63 | E142: 0.95 | F142: 5 | G142: 2 | H142: 0 | I142: 7 | U142: ONDREJPALAT | V142: T.B | W142: LW | X142: 62 | Y142: 2.28 | Z142: 0.42 | AA142: 1.27 | AB142: 0.85 | AC142: 2.54
A143: EVGENYKUZNETSOV | B143: WSH | C143: C | D143: 68 | E143: 1.44 | F143: 1.83 | G143: 3.06 | H143: 1.83 | I143: 6.73 | U143: MIKERIBEIRO | V143: NSH | W143: C | X143: 70 | Y143: 2.75 | Z143: 0 | AA143: 0.94 | AB143: 1.56 | AC143: 2.49
A144: MIKKOKOIVU | B144: MIN | C144: C | D144: 68 | E144: 3.38 | F144: 0.78 | G144: 1.31 | H144: 1.57 | I144: 3.66 | U144: MATSZUCCARELLO | V144: NYR | W144: RW | X144: 65 | Y144: 1.89 | Z144: 0 | AA144: 1.96 | AB144: 0.49 | AC144: 2.45
A145: HENRIKSEDIN | B145: VAN | C145: C | D145: 69 | E145: 2.89 | F145: 1.21 | G145: 2.41 | H145: 1.51 | I145: 5.12 | U145: NAILYAKUPOV | V145: EDM | W145: RW | X145: 62 | Y145: 1.99 | Z145: 0.97 | AA145: 0.49 | AB145: 0.97 | AC145: 2.44
A146: DAVIDKREJCI | B146: BOS | C146: C | D146: 37 | E146: 2.11 | F146: 0.77 | G146: 3.08 | H146: 0.77 | I146: 4.62 | U146: ALEXCHIASSON | V146: OTT | W146: RW | X146: 61 | Y146: 2.1 | Z146: 1.41 | AA146: 0.94 | AB146: 0 | AC146: 2.34
A147: FRANSNIELSEN | B147: NYI | C147: C | D147: 63 | E147: 2.85 | F147: 0.67 | G147: 3 | H147: 1 | I147: 4.67 | U147: COLINWILSON | V147: NSH | W147: C | X147: 66 | Y147: 2.38 | Z147: 1.15 | AA147: 0.77 | AB147: 0.38 | AC147: 2.3
A148: DANIELSEDIN | B148: VAN | C148: LW | D148: 69 | E148: 2.92 | F148: 0.89 | G148: 2.38 | H148: 2.38 | I148: 5.66 | U148: SHAWNHORCOFF | V148: DAL | W148: C | X148: 64 | Y148: 1.65 | Z148: 1.71 | AA148: 0 | AB148: 0.57 | AC148: 2.27
A149: DREWDOUGHTY | B149: L.A | C149: D | D149: 68 | E149: 3.55 | F149: 0 | G149: 1.99 | H149: 0.75 | I149: 2.74 | U149: NAZEMKADRI | V149: TOR | W149: C | X149: 65 | Y149: 2.45 | Z149: 0.75 | AA149: 0.75 | AB149: 0.75 | AC149: 2.26
A150: TOMASTATAR | B150: DET | C150: C | D150: 66 | E150: 2.32 | F150: 3.13 | G150: 1.57 | H150: 1.57 | I150: 6.27 | U150: BRENDANGALLAGHER | V150: MTL | W150: RW | X150: 70 | Y150: 2.27 | Z150: 1.13 | AA150: 0.38 | AB150: 0.75 | AC150: 2.26
A151: RENEBOURQUE | B151: MTL | C151: LW | D151: 50 | E151: 0.91 | F151: 2.65 | G151: 0 | H151: 1.32 | I151: 3.97 | U151: DAVIDPERRON | V151: PIT | W151: RW | X151: 69 | Y151: 2.7 | Z151: 0.64 | AA151: 1.29 | AB151: 0.32 | AC151: 2.25
A152: DAVIDPASTRNAK | B152: BOS | C152: LW | D152: 24 | E152: 1.95 | F152: 1.29 | G152: 0 | H152: 0 | I152: 1.29 | U152: NATHANMACKINNON | V152: COL | W152: C | X152: 60 | Y152: 2.3 | Z152: 1.31 | AA152: 0.87 | AB152: 0 | AC152: 2.18
A153: MARKGIORDANO | B153: CGY | C153: D | D153: 60 | E153: 3.13 | F153: 0.32 | G153: 1.59 | H153: 1.91 | I153: 3.83 | U153: MATTREAD | V153: PHI | W153: RW | X153: 68 | Y153: 1.66 | Z153: 1.06 | AA153: 0.53 | AB153: 0.53 | AC153: 2.13
A154: TOBIASENSTROM | B154: WPG | C154: D | D154: 49 | E154: 3.03 | F154: 0.4 | G154: 1.21 | H154: 0.4 | I154: 2.02 | U154: JONATHANDROUIN | V154: T.B | W154: LW | X154: 57 | Y154: 1.98 | Z154: 0.53 | AA154: 0.53 | AB154: 1.06 | AC154: 2.12
A155: BRENTSEABROOK | B155: CHI | C155: D | D155: 68 | E155: 2.52 | F155: 1.4 | G155: 1.4 | H155: 2.46 | I155: 5.26 | U155: ZEMGUSGIRGENSONS | V155: BUF | W155: LW | X155: 60 | Y155: 1.99 | Z155: 0.5 | AA155: 0.5 | AB155: 1.01 | AC155: 2.02
A156: TYLERTOFFOLI | B156: L.A | C156: RW | D156: 62 | E156: 1.47 | F156: 1.32 | G156: 0 | H156: 0.66 | I156: 1.98 | U156: MIKAELGRANLUND | V156: MIN | W156: C | X156: 55 | Y156: 2.2 | Z156: 0 | AA156: 0.99 | AB156: 0.99 | AC156: 1.99
A157: JORDANLEOPOLD | B157: MIN | C157: D | D157: 34 | E157: 0.33 | F157: 5.36 | G157: 0 | H157: 0 | I157: 5.36 | U157: VINCENTLECAVALIER | V157: PHI | W157: C | X157: 51 | Y157: 1.9 | Z157: 0.62 | AA157: 1.24 | AB157: 0 | AC157: 1.86
A158: JIRIHUDLER | B158: CGY | C158: LW | D158: 65 | E158: 2.92 | F158: 1.26 | G158: 1.26 | H158: 0.95 | I158: 3.47 | U158: BRIANGIONTA | V158: BUF | W158: RW | X158: 56 | Y158: 1.82 | Z158: 0 | AA158: 0 | AB158: 1.77 | AC158: 1.77
A159: BENOITPOULIOT | B159: EDM | C159: C | D159: 40 | E159: 2.11 | F159: 2.84 | G159: 0 | H159: 0 | I159: 2.84 | U159: JAMESNEAL | V159: NSH | W159: LW | X159: 61 | Y159: 2.79 | Z159: 1.41 | AA159: 0.35 | AB159: 0 | AC159: 1.76
A160: BRADHUNT | B160: EDM | C160: D | D160: 11 | E160: 2.46 | F160: 2.22 | G160: 0 | H160: 0 | I160: 2.22 | U160: MIKEHOFFMAN | V160: OTT | W160: C | X160: 64 | Y160: 1.66 | Z160: 0.56 | AA160: 0.56 | AB160: 0.56 | AC160: 1.69
A161: RADIMVRBATA | B161: VAN | C161: RW | D161: 66 | E161: 2.82 | F161: 2.58 | G161: 0.97 | H161: 1.93 | I161: 5.47 | U161: ALEXANDERKILLORN | V161: T.B | W161: C | X161: 60 | Y161: 1.94 | Z161: 0.52 | AA161: 0.52 | AB161: 0.52 | AC161: 1.55
A162: JASONZUCKER | B162: MIN | C162: LW | D162: 46 | E162: 0.85 | F162: 0 | G162: 0 | H162: 0 | I162: 0 | U162: ALEKSANDERBARKOV | V162: FLA | W162: C | X162: 52 | Y162: 2.27 | Z162: 0 | AA162: 0.51 | AB162: 1.01 | AC162: 1.52
A163: ANTOINEROUSSEL | B163: DAL | C163: LW | D163: 66 | E163: 0.68 | F163: 0 | G163: 1.33 | H163: 2.66 | I163: 3.99 | U163: JEFFSKINNER | V163: CAR | W163: C | X163: 61 | Y163: 2.07 | Z163: 0.47 | AA163: 0.95 | AB163: 0 | AC163: 1.42
A164: COREYPERRY | B164: ANA | C164: RW | D164: 56 | E164: 2.89 | F164: 1.48 | G164: 0.74 | H164: 0.37 | I164: 2.6 | U164: JOSHBAILEY | V164: NYI | W164: C | X164: 52 | Y164: 1.69 | Z164: 0.68 | AA164: 0 | AB164: 0.68 | AC164: 1.36
A165: STEPHENWEISS | B165: DET | C165: C | D165: 39 | E165: 2.13 | F165: 1.44 | G165: 0.72 | H165: 2.88 | I165: 5.05 | U165: CHRISTOPHERHIGGINS | V165: VAN | W165: LW | X165: 65 | Y165: 1.71 | Z165: 0.54 | AA165: 0.54 | AB165: 0 | AC165: 1.08
A166: JEFFSKINNER | B166: CAR | C166: C | D166: 61 | E166: 2.07 | F166: 0.47 | G166: 0.95 | H166: 0 | I166: 1.42 | U166: ANDREWSHAW | V166: CHI | W166: C | X166: 65 | Y166: 2.77 | Z166: 0.67 | AA166: 0 | AB166: 0.33 | AC166: 1
A167: BRENDANSHINNIMIN | B167: PHX | C167: C | D167: 12 | E167: 0.11 | F167: 0 | G167: 0 | H167: 0 | I167: 0 | U167: NICKBONINO | V167: VAN | W167: C | X167: 64 | Y167: 1.87 | Z167: 0.5 | AA167: 0 | AB167: 0.5 | AC167: 1
A168: MARKSTONE | B168: OTT | C168: RW | D168: 65 | E168: 2.25 | F168: 1.23 | G168: 0.41 | H168: 2.05 | I168: 3.7 | U168: MATTDUCHENE | V168: COL | W168: C | X168: 67 | Y168: 2.37 | Z168: 0.38 | AA168: 0.38 | AB168: 0 | AC168: 0.76
A169: OLIVEREKMAN-LARSSON | B169: PHX | C169: D | D169: 68 | E169: 3.81 | F169: 1.62 | G169: 0.7 | H169: 0.93 | I169: 3.24 | U169: DAVIDCLARKSON | V169: CBJ | W169: RW | X169: 60 | Y169: 1.91 | Z169: 0.52 | AA169: 0 | AB169: 0 | AC169: 0.52
A170: PAVELDATSYUK | B170: DET | C170: C | D170: 53 | E170: 2.7 | F170: 2.94 | G170: 2.52 | H170: 2.52 | I170: 7.98 | U170: RYANSTROME | V170: NYI | W170: C | X170: 63 | Y170: 1.93 | Z170: 0 | AA170: 0 | AB170: 0.49 | AC170: 0.49
A171: MIKAELBACKLUND | B171: CGY | C171: C | D171: 38 | E171: 1.86 | F171: 0 | G171: 0 | H171: 0.85 | I171: 0.85
A172: MARIANGABORIK | B172: L.A | C172: LW | D172: 55 | E172: 2.83 | F172: 4.23 | G172: 1.15 | H172: 0.38 | I172: 5.77
A173: JIRITLUSTY | B173: WPG | C173: LW | D173: 59 | E173: 2.04 | F173: 2.49 | G173: 0.5 | H173: 1.49 | I173: 4.48
A174: DERICKBRASSARD | B174: NYR | C174: C | D174: 65 | E174: 2.7 | F174: 1.02 | G174: 1.37 | H174: 2.39 | I174: 4.78
A175: ANDREBURAKOVSKY | B175: WSH | C175: LW | D175: 49 | E175: 1.23 | F175: 1.99 | G175: 0 | H175: 0.99 | I175: 2.98
A176: BRANDONDUBINSKY | B176: CBJ | C176: C | D176: 36 | E176: 1.89 | F176: 0 | G176: 1.77 | H176: 2.65 | I176: 4.42
A177: ANTOINEVERMETTE | B177: CHI | C177: C | D177: 66 | E177: 2.56 | F177: 2.13 | G177: 1.42 | H177: 1.07 | I177: 4.62
A178: PATRICKMAROON | B178: ANA | C178: LW | D178: 62 | E178: 2.26 | F178: 0.43 | G178: 1.71 | H178: 0.86 | I178: 3
A179: NICKSHORE | B179: L.A | C179: C | D179: 22 | E179: 0.37 | F179: 0 | G179: 0 | H179: 7.42 | I179: 7.42
A180: MARTINST.LOUIS | B180: NYR | C180: RW | D180: 65 | E180: 2.7 | F180: 1.71 | G180: 1.71 | H180: 0.68 | I180: 4.11
A181: BROCKNELSON | B181: NYI | C181: C | D181: 64 | E181: 2.92 | F181: 2.89 | G181: 1.28 | H181: 0.32 | I181: 4.5
A182: DEREKSTEPAN | B182: NYR | C182: C | D182: 53 | E182: 2.57 | F182: 0.88 | G182: 0.88 | H182: 1.76 | I182: 3.52
A183: RYANSUTER | B183: MIN | C183: D | D183: 64 | E183: 3.96 | F183: 0.24 | G183: 1.18 | H183: 0.95 | I183: 2.37
A184: MATTNISKANEN | B184: WSH | C184: D | D184: 70 | E184: 1.12 | F184: 1.53 | G184: 2.3 | H184: 2.3 | I184: 6.13
A185: DAVIDJONES | B185: CGY | C185: LW | D185: 54 | E185: 1.13 | F185: 1.97 | G185: 0 | H185: 0 | I185: 1.97
A186: JAMESVANRIEMSDYK | B186: TOR | C186: RW | D186: 72 | E186: 3.34 | F186: 2.25 | G186: 1 | H186: 0.5 | I186: 3.75
A187: JAREDSPURGEON | B187: MIN | C187: D | D187: 54 | E187: 2.23 | F187: 1.5 | G187: 0.5 | H187: 0 | I187: 2
A188: TYLERBOZAK | B188: TOR | C188: C | D188: 72 | E188: 3.31 | F188: 2.77 | G188: 0.76 | H188: 0.5 | I188: 4.03
A189: BORNARENDULIC | B189: COL | C189: RW | D189: 11 | E189: 0.25 | F189: 0 | G189: 0 | H189: 0 | I189: 0
A190: MIKAZIBANEJAD | B190: OTT | C190: C | D190: 65 | E190: 2.54 | F190: 0.73 | G190: 1.45 | H190: 1.45 | I190: 3.63
A191: DENNISWIDEMAN | B191: CGY | C191: D | D191: 67 | E191: 2.97 | F191: 1.21 | G191: 0.91 | H191: 2.11 | I191: 4.23
A192: NATHANGERBE | B192: CAR | C192: C | D192: 62 | E192: 1.64 | F192: 1.18 | G192: 0.59 | H192: 1.77 | I192: 3.55
A193: JOHNGAUDREAU | B193: CGY | C193: LW | D193: 67 | E193: 2.74 | F193: 1.31 | G193: 2.62 | H193: 0.98 | I193: 4.91
A194: JOHANFRANZEN | B194: DET | C194: RW | D194: 33 | E194: 3.12 | F194: 2.33 | G194: 1.16 | H194: 2.91 | I194: 6.4
A195: JUSTINABDELKADER | B195: DET | C195: C | D195: 59 | E195: 2.5 | F195: 2.44 | G195: 1.63 | H195: 0.41 | I195: 4.47
A196: SHANEDOAN | B196: PHX | C196: RW | D196: 66 | E196: 2.64 | F196: 1.03 | G196: 1.38 | H196: 0.34 | I196: 2.75
A197: DAVIDSAVARD | B197: CBJ | C197: D | D197: 69 | E197: 1.94 | F197: 1.34 | G197: 1.79 | H197: 1.34 | I197: 4.47
A198: JUSTINFAULK | B198: CAR | C198: D | D198: 66 | E198: 2.57 | F198: 2.13 | G198: 2.13 | H198: 1.77 | I198: 6.02
A199: PHILKESSEL | B199: TOR | C199: LW | D199: 72 | E199: 3.49 | F199: 1.43 | G199: 2.15 | H199: 1.43 | I199: 5.02
A200: LUCASLESSIO | B200: PHX | C200: LW | D200: 23 | E200: 0.3 | F200: 0 | G200: 0 | H200: 0 | I200: 0
... 551 more rows

Sheet 1 Yr rates - BTN
A1: NAME | B1: TEAM | C1: POS | D1: GP | E1: TOI/60 | F1: G/60 | G1: A1/60 | H1: A2/60 | I1: P/60 | K1: NAME | L1: TEAM | M1: POS | N1: GP | O1: TOI/60 | P1: G/60 | Q1: A1/60 | R1: A2/60 | S1: P/60 | U1: NAME | V1: TEAM | W1: POS | X1: GP | Y1: TOI/60 | Z1: G/60 | AA1: A1/60 | AB1: A2/60 | AC1: P/60 | AE1: LINE | AF1: TOI/60 | AG1: G/60 | AH1: A1/60 | AI1: A2/60 | AJ1: P/60
A2: NAME | B2: TEAM | C2: POS | K2: RYANSUTER | L2: MIN | M2: D | N2: 63 | O2: 22.1 | P2: 0.04 | Q2: 0.22 | R2: 0.65 | S2: 0.91 | U2: JOHNTAVARES | V2: NYI | W2: C | X2: 63 | Y2: 15.96 | Z2: 0.89 | AA2: 0.89 | AB2: 0.24 | AC2: 2.03 | AE2: 1st | AF2: =AVERAGE(Y2:Y91) -> 14.53655556 | AG2: =AVERAGE(Z2:Z91) -> 0.792 | AH2: =AVERAGE(AA2:AA91) -> 0.7202222222 | AI2: =AVERAGE(AB2:AB91) -> 0.4418888889 | AJ2: =AVERAGE(AC2:AC91) -> 1.954666667
A3: TRAVISMORIN | B3: DAL | C3: C | D3: 6 | E3: 10.78 | F3: 0 | G3: 0 | H3: 0 | I3: 0 | K3: DREWDOUGHTY | L3: L.A | M3: D | N3: 67 | O3: 21.77 | P3: 0.21 | Q3: 0.41 | R3: 0.33 | S3: 0.95 | U3: RYANNUGENT-HOPKINS | V3: EDM | W3: C | X3: 61 | Y3: 15.93 | Z3: 0.86 | AA3: 0.62 | AB3: 0.37 | AC3: 1.85 | AE3: 2nd | AF3: =AVERAGE(Y92:Y181) -> 13.24733333 | AG3: =AVERAGE(Z92:Z181) -> 0.7422222222 | AH3: =AVERAGE(AA92:AA181) -> 0.6074444444 | AI3: =AVERAGE(AB92:AB181) -> 0.3964444444 | AJ3: =AVERAGE(AC92:AC181) -> 1.746222222
A4: TREVORVANRIEMSDYK | B4: CHI | C4: D | D4: 18 | E4: 12.77 | F4: 0.26 | G4: 0 | H4: 0 | I4: 0.26 | K4: ERIKKARLSSON | L4: OTT | M4: D | N4: 66 | O4: 20.54 | P4: 0.53 | Q4: 0.27 | R4: 0.35 | S4: 1.15 | U4: JORDANEBERLE | V4: EDM | W4: C | X4: 62 | Y4: 15.87 | Z4: 0.79 | AA4: 0.73 | AB4: 0.37 | AC4: 1.89 | AE4: 3rd | AF4: =AVERAGE(Y182:Y271) -> 11.881 | AG4: =AVERAGE(Z182:Z271) -> 0.6767777778 | AH4: =AVERAGE(AA182:AA271) -> 0.5291111111 | AI4: =AVERAGE(AB182:AB271) -> 0.3598888889 | AJ4: =AVERAGE(AC182:AC271) -> 1.567222222
A5: JORDANSTAAL | B5: CAR | C5: C | D5: 29 | E5: 15.35 | F5: 0.4 | G5: 0.54 | H5: 0.4 | I5: 1.35 | K5: JONASBRODIN | L5: MIN | M5: D | N5: 56 | O5: 20.22 | P5: 0.11 | Q5: 0.16 | R5: 0.26 | S5: 0.53 | U5: TAYLORHALL | V5: EDM | W5: LW | X5: 42 | Y5: 15.81 | Z5: 0.63 | AA5: 0.81 | AB5: 0.54 | AC5: 1.99 | AE5: 4th | AF5: =AVERAGE(Y272:Y361) -> 9.704942529 | AG5: =AVERAGE(Z272:Z361) -> 0.4317241379 | AH5: =AVERAGE(AA272:AA361) -> 0.3597701149 | AI5: =AVERAGE(AB272:AB361) -> 0.263908046 | AJ5: =AVERAGE(AC272:AC361) -> 1.056091954
A6: PATRICEBERGERON | B6: BOS | C6: C | D6: 59 | E6: 13.39 | F6: 0.99 | G6: 0.91 | H6: 0.46 | I6: 2.35 | K6: SHEAWEBER | L6: NSH | M6: D | N6: 70 | O6: 19.89 | P6: 0.34 | Q6: 0.22 | R6: 0.56 | S6: 1.12 | U6: CLAUDEGIROUX | V6: PHI | W6: RW | X6: 69 | Y6: 15.79 | Z6: 0.44 | AA6: 0.66 | AB6: 0.55 | AC6: 1.65
A7: PAVELDATSYUK | B7: DET | C7: C | D7: 53 | E7: 15.05 | F7: 0.9 | G7: 0.83 | H7: 0.38 | I7: 2.11 | K7: ROMANJOSI | L7: NSH | M7: D | N7: 70 | O7: 19.89 | P7: 0.43 | Q7: 0.39 | R7: 0.47 | S7: 1.29 | U7: ERICSTAAL | V7: CAR | W7: C | X7: 60 | Y7: 15.58 | Z7: 0.77 | AA7: 0.45 | AB7: 0.32 | AC7: 1.54
A8: TOMASTATAR | B8: DET | C8: C | D8: 66 | E8: 12.97 | F8: 1.12 | G8: 0.49 | H8: 0.35 | I8: 1.96 | K8: T.J.BRODIE | L8: CGY | M8: D | N8: 67 | O8: 19.7 | P8: 0.18 | Q8: 0.23 | R8: 0.32 | S8: 0.73 | U8: NICKLASBACKSTROM | V8: WSH | W8: C | X8: 69 | Y8: 15.48 | Z8: 0.73 | AA8: 0.67 | AB8: 0.62 | AC8: 2.02 | AE8: LINE | AF8: TOI/60 | AG8: G/60 | AH8: A1/60 | AI8: A2/60 | AJ8: P/60
A9: TEEMUPULKKINEN | B9: DET | C9: RW | D9: 16 | E9: 9.63 | F9: 1.17 | G9: 0 | H9: 0 | I9: 1.17 | K9: P.K.SUBBAN | L9: MTL | M9: D | N9: 69 | O9: 19.53 | P9: 0.27 | Q9: 0.4 | R9: 0.67 | S9: 1.34 | U9: ALEXOVECHKIN | V9: WSH | W9: LW | X9: 68 | Y9: 15.44 | Z9: 1.26 | AA9: 0.74 | AB9: 0.17 | AC9: 2.17 | AE9: 1st | AF9: =AVERAGE(O2:O61) -> 18.375 | AG9: =AVERAGE(P2:P61) -> 0.2091666667 | AH9: =AVERAGE(Q2:Q61) -> 0.28 | AI9: =AVERAGE(R2:R61) -> 0.3518333333 | AJ9: =AVERAGE(S2:S61) -> 0.8398333333
A10: TYLERTOFFOLI | B10: L.A | C10: RW | D10: 61 | E10: 11.49 | F10: 1.2 | G10: 1.11 | H10: 0.43 | I10: 2.74 | K10: KRISRUSSELL | L10: CGY | M10: D | N10: 65 | O10: 19.13 | P10: 0.1 | Q10: 0.24 | R10: 0.29 | S10: 0.63 | U10: KYLEOKPOSO | V10: NYI | W10: RW | X10: 49 | Y10: 15.31 | Z10: 0.8 | AA10: 0.8 | AB10: 0.56 | AC10: 2.16 | AE10: 2nd | AF10: =AVERAGE(O62:O121) -> 16.43083333 | AG10: =AVERAGE(P62:P121) -> 0.1951666667 | AH10: =AVERAGE(Q62:Q121) -> 0.2738333333 | AI10: =AVERAGE(R62:R121) -> 0.3651666667 | AJ10: =AVERAGE(S62:S121) -> 0.835
A11: BRETTRITCHIE | B11: DAL | C11: RW | D11: 21 | E11: 11.8 | F11: 1.21 | G11: 0.24 | H11: 0.24 | I11: 1.69 | K11: MARKGIORDANO | L11: CGY | M11: D | N11: 60 | O11: 18.98 | P11: 0.21 | Q11: 0.42 | R11: 0.63 | S11: 1.26 | U11: PATRICKKANE | V11: CHI | W11: RW | X11: 60 | Y11: 15.31 | Z11: 1.37 | AA11: 0.98 | AB11: 0.26 | AC11: 2.61 | AE11: 3rd | AF11: =AVERAGE(O122:O181) -> 14.29461538 | AG11: =AVERAGE(P122:P181) -> 0.16 | AH11: =AVERAGE(Q122:Q181) -> 0.2335897436 | AI11: =AVERAGE(R122:R181) -> 0.2953846154 | AJ11: =AVERAGE(S122:S181) -> 0.6894871795
A12: BRADMARCHAND | B12: BOS | C12: C | D12: 55 | E12: 13.83 | F12: 1.1 | G12: 0.87 | H12: 0.24 | I12: 2.21 | K12: DENNISWIDEMAN | L12: CGY | M12: D | N12: 66 | O12: 18.97 | P12: 0.38 | Q12: 0.34 | R12: 0.43 | S12: 1.15 | U12: MIKERIBEIRO | V12: NSH | W12: C | X12: 70 | Y12: 15.12 | Z12: 0.68 | AA12: 0.96 | AB12: 0.68 | AC12: 2.32
A13: JOETHORNTON | B13: S.J | C13: C | D13: 66 | E13: 14.34 | F13: 0.57 | G13: 1.33 | H13: 0.63 | I13: 2.54 | K13: ALEXPIETRANGELO | L13: STL | M13: D | N13: 69 | O13: 18.9 | P13: 0.18 | Q13: 0.37 | R13: 0.69 | S13: 1.24 | U13: SEANMONAHAN | V13: CGY | W13: C | X13: 67 | Y13: 15.11 | Z13: 0.89 | AA13: 0.36 | AB13: 0.36 | AC13: 1.6
A14: CHRISKUNITZ | B14: PIT | C14: LW | D14: 60 | E14: 14.16 | F14: 0.49 | G14: 0.85 | H14: 0.28 | I14: 1.62 | K14: NIKLASHJALMARSSON | L14: CHI | M14: D | N14: 67 | O14: 18.8 | P14: 0.1 | Q14: 0.24 | R14: 0.38 | S14: 0.71 | U14: MATTDUCHENE | V14: COL | W14: C | X14: 67 | Y14: 15.1 | Z14: 0.83 | AA14: 0.83 | AB14: 0.53 | AC14: 2.19
A15: JONATHANTOEWS | B15: CHI | C15: C | D15: 67 | E15: 14.19 | F15: 0.88 | G15: 1.07 | H15: 0.5 | I15: 2.46 | K15: DUNCANKEITH | L15: CHI | M15: D | N15: 66 | O15: 18.79 | P15: 0.29 | Q15: 0.39 | R15: 0.44 | S15: 1.11 | U15: HENRIKZETTERBERG | V15: DET | W15: C | X15: 62 | Y15: 15.09 | Z15: 0.71 | AA15: 0.71 | AB15: 0.45 | AC15: 1.86
A16: MARIANGABORIK | B16: L.A | C16: LW | D16: 54 | E16: 13.43 | F16: 0.74 | G16: 0.66 | H16: 0.25 | I16: 1.66 | K16: DENNISSEIDENBERG | L16: BOS | M16: D | N16: 60 | O16: 18.69 | P16: 0.16 | Q16: 0.05 | R16: 0.32 | S16: 0.54 | U16: SHANEDOAN | V16: PHX | W16: RW | X16: 65 | Y16: 15.07 | Z16: 0.55 | AA16: 0.61 | AB16: 0.24 | AC16: 1.41
A17: DAVIDPASTRNAK | B17: BOS | C17: LW | D17: 24 | E17: 12.56 | F17: 1.19 | G17: 0.6 | H17: 0.2 | I17: 1.99 | K17: JUSTINFAULK | L17: CAR | M17: D | N17: 65 | O17: 18.67 | P17: 0.25 | Q17: 0.45 | R17: 0.45 | S17: 1.14 | U17: RYANJOHANSEN | V17: CBJ | W17: C | X17: 68 | Y17: 15.06 | Z17: 0.76 | AA17: 0.64 | AB17: 0.47 | AC17: 1.87
A18: ANZEKOPITAR | B18: L.A | C18: C | D18: 64 | E18: 13.95 | F18: 0.34 | G18: 0.74 | H18: 0.6 | I18: 1.68 | K18: JAKEMUZZIN | L18: L.A | M18: D | N18: 61 | O18: 18.47 | P18: 0.21 | Q18: 0.37 | R18: 0.43 | S18: 1.01 | U18: PAVELDATSYUK | V18: DET | W18: C | X18: 53 | Y18: 15.05 | Z18: 0.9 | AA18: 0.83 | AB18: 0.38 | AC18: 2.11
A19: RYANMALONE | B19: NYR | C19: LW | D19: 6 | E19: 7.78 | F19: 0 | G19: 0 | H19: 0 | I19: 0 | K19: TYLERMYERS | L19: WPG | M19: D | N19: 58 | O19: 18.46 | P19: 0.22 | Q19: 0.34 | R19: 0.28 | S19: 0.84 | U19: TYLERSEGUIN | V19: DAL | W19: C | X19: 61 | Y19: 15.05 | Z19: 1.31 | AA19: 0.98 | AB19: 0.13 | AC19: 2.42
A20: DAVIDRUNDBLAD | B20: CHI | C20: D | D20: 42 | E20: 11.46 | F20: 0.37 | G20: 0.62 | H20: 0.37 | I20: 1.37 | K20: MARCSTAAL | L20: NYR | M20: D | N20: 66 | O20: 18.45 | P20: 0.25 | Q20: 0.15 | R20: 0.3 | S20: 0.69 | U20: TYLERENNIS | V20: BUF | W20: C | X20: 67 | Y20: 15.05 | Z20: 0.6 | AA20: 0.54 | AB20: 0.18 | AC20: 1.31
A21: ROCCOGRIMALDI | B21: FLA | C21: C | D21: 7 | E21: 11.44 | F21: 0.75 | G21: 0 | H21: 0 | I21: 0.75 | K21: MARCOSCANDELLA | L21: MIN | M21: D | N21: 49 | O21: 18.39 | P21: 0.4 | Q21: 0.2 | R21: 0.07 | S21: 0.67 | U21: SIDNEYCROSBY | V21: PIT | W21: C | X21: 64 | Y21: 15.01 | Z21: 0.87 | AA21: 1 | AB21: 0.69 | AC21: 2.56
A22: NIKITANESTEROV | B22: T.B | C22: D | D22: 16 | E22: 14.36 | F22: 0 | G22: 0 | H22: 0.78 | I22: 0.78 | K22: ERIKJOHNSON | L22: COL | M22: D | N22: 47 | O22: 18.34 | P22: 0.56 | Q22: 0.14 | R22: 0.35 | S22: 1.04 | U22: STEVENSTAMKOS | V22: T.B | W22: C | X22: 68 | Y22: 14.99 | Z22: 1.53 | AA22: 0.71 | AB22: 0.12 | AC22: 2.36
A23: PATRICKSHARP | B23: CHI | C23: RW | D23: 53 | E23: 13.31 | F23: 0.26 | G23: 0.85 | H23: 0.68 | I23: 1.79 | K23: ANDREIMARKOV | L23: MTL | M23: D | N23: 69 | O23: 18.3 | P23: 0.19 | Q23: 0.38 | R23: 0.33 | S23: 0.9 | U23: GABRIELLANDESKOG | V23: COL | W23: LW | X23: 67 | Y23: 14.8 | Z23: 0.79 | AA23: 0.85 | AB23: 0.36 | AC23: 2
A24: JAKEMUZZIN | B24: L.A | C24: D | D24: 61 | E24: 18.47 | F24: 0.21 | G24: 0.37 | H24: 0.43 | I24: 1.01 | K24: KEITHYANDLE | L24: NYR | M24: D | N24: 67 | O24: 18.3 | P24: 0.15 | Q24: 0.24 | R24: 0.39 | S24: 0.78 | U24: JAROMIRJAGR | V24: FLA | W24: RW | X24: 59 | Y24: 14.79 | Z24: 0.69 | AA24: 0.82 | AB24: 0.21 | AC24: 1.72
A25: ERICSTAAL | B25: CAR | C25: C | D25: 60 | E25: 15.58 | F25: 0.77 | G25: 0.45 | H25: 0.32 | I25: 1.54 | K25: FRANCOISBEAUCHEMIN | L25: ANA | M25: D | N25: 53 | O25: 18.27 | P25: 0.43 | Q25: 0.19 | R25: 0.25 | S25: 0.87 | U25: MARKSCHEIFELE | V25: WPG | W25: C | X25: 67 | Y25: 14.77 | Z25: 0.42 | AA25: 0.36 | AB25: 0.61 | AC25: 1.39
A26: DUNCANKEITH | B26: CHI | C26: D | D26: 66 | E26: 18.79 | F26: 0.29 | G26: 0.39 | H26: 0.44 | I26: 1.11 | K26: ZACHBOGOSIAN | L26: BUF | M26: D | N26: 51 | O26: 18.25 | P26: 0.19 | Q26: 0.32 | R26: 0.52 | S26: 1.03 | U26: JOEPAVELSKI | V26: S.J | W26: LW | X26: 69 | Y26: 14.74 | Z26: 0.88 | AA26: 0.71 | AB26: 0.41 | AC26: 2.01
A27: MIKERIBEIRO | B27: NSH | C27: C | D27: 70 | E27: 15.12 | F27: 0.68 | G27: 0.96 | H27: 0.68 | I27: 2.32 | K27: ANDYGREENE | L27: N.J | M27: D | N27: 69 | O27: 18.24 | P27: 0.1 | Q27: 0.19 | R27: 0.48 | S27: 0.76 | U27: ZACHPARISE | V27: MIN | W27: LW | X27: 61 | Y27: 14.74 | Z27: 1 | AA27: 0.67 | AB27: 0.73 | AC27: 2.4
A28: JAMESNEAL | B28: NSH | C28: LW | D28: 61 | E28: 14.54 | F28: 1.08 | G28: 0.54 | H28: 0.27 | I28: 1.89 | K28: BRIANCAMPBELL | L28: FLA | M28: D | N28: 63 | O28: 18.22 | P28: 0.1 | Q28: 0.31 | R28: 0.21 | S28: 0.63 | U28: MAXPACIORETTY | V28: MTL | W28: LW | X28: 69 | Y28: 14.69 | Z28: 1.36 | AA28: 0.65 | AB28: 0.53 | AC28: 2.54
A29: JOHNNYBOYCHUK | B29: NYI | C29: D | D29: 53 | E29: 16.16 | F29: 0.07 | G29: 0.42 | H29: 0.42 | I29: 0.91 | K29: JUSTINSCHULTZ | L29: EDM | M29: D | N29: 62 | O29: 18.2 | P29: 0.21 | Q29: 0.37 | R29: 0.27 | S29: 0.85 | U29: EVGENIMALKIN | V29: PIT | W29: C | X29: 60 | Y29: 14.67 | Z29: 1.02 | AA29: 0.68 | AB29: 0.89 | AC29: 2.59
A30: JAKUBKINDL | B30: DET | C30: D | D30: 32 | E30: 13.2 | F30: 0 | G30: 0 | H30: 0.28 | I30: 0.28 | K30: MAREKZIDLICKY | L30: DET | M30: D | N30: 68 | O30: 18.13 | P30: 0.05 | Q30: 0.24 | R30: 0.29 | S30: 0.58 | U30: JAKUBVORACEK | V30: PHI | W30: RW | X30: 70 | Y30: 14.65 | Z30: 0.59 | AA30: 1.05 | AB30: 0.7 | AC30: 2.34
A31: NICKLEDDY | B31: NYI | C31: D | D31: 59 | E31: 16.38 | F31: 0.56 | G31: 0.31 | H31: 0.31 | I31: 1.18 | K31: BRENTBURNS | L31: S.J | M31: D | N31: 69 | O31: 18.07 | P31: 0.39 | Q31: 0.48 | R31: 0.34 | S31: 1.2 | U31: T.J.OSHIE | V31: STL | W31: LW | X31: 61 | Y31: 14.65 | Z31: 1.01 | AA31: 0.94 | AB31: 0.47 | AC31: 2.42
A32: KRISTOPHERLETANG | B32: PIT | C32: D | D32: 62 | E32: 17.93 | F32: 0.38 | G32: 0.32 | H32: 0.54 | I32: 1.24 | K32: TRAVISHAMONIC | L32: NYI | M32: D | N32: 53 | O32: 18.07 | P32: 0.13 | Q32: 0.38 | R32: 0.38 | S32: 0.88 | U32: TRAVISZAJAC | V32: N.J | W32: C | X32: 61 | Y32: 14.64 | Z32: 0.27 | AA32: 0.4 | AB32: 0.2 | AC32: 0.87
A33: TANNERPEARSON | B33: L.A | C33: LW | D33: 42 | E33: 11.12 | F33: 1.41 | G33: 0.26 | H33: 0.26 | I33: 1.93 | K33: BROOKSORPIK | L33: WSH | M33: D | N33: 66 | O33: 18.04 | P33: 0 | Q33: 0.2 | R33: 0.5 | S33: 0.71 | U33: SCOTTHARTNELL | V33: CBJ | W33: RW | X33: 63 | Y33: 14.59 | Z33: 0.98 | AA33: 1.11 | AB33: 0.2 | AC33: 2.29
A34: DMITRIJASKIN | B34: STL | C34: RW | D34: 42 | E34: 12.12 | F34: 0.83 | G34: 0.24 | H34: 0.24 | I34: 1.3 | K34: JOHNODUYAODUYA | L34: CHI | M34: D | N34: 62 | O34: 18.03 | P34: 0.11 | Q34: 0.11 | R34: 0.11 | S34: 0.32 | U34: RYANGETZLAF | V34: ANA | W34: C | X34: 68 | Y34: 14.57 | Z34: 0.97 | AA34: 1.21 | AB34: 0.42 | AC34: 2.6
A35: TOMASJURCO | B35: DET | C35: RW | D35: 53 | E35: 10.33 | F35: 0.11 | G35: 0.66 | H35: 0.55 | I35: 1.31 | K35: ALEXGOLIGOSKI | L35: DAL | M35: D | N35: 67 | O35: 17.97 | P35: 0.15 | Q35: 0.45 | R35: 0.45 | S35: 1.05 | U35: MILANLUCIC | V35: BOS | W35: LW | X35: 59 | Y35: 14.56 | Z35: 0.7 | AA35: 0.63 | AB35: 0.35 | AC35: 1.68
A36: MARIANHOSSA | B36: CHI | C36: RW | D36: 67 | E36: 13.97 | F36: 0.9 | G36: 0.83 | H36: 0.51 | I36: 2.24 | K36: ALEXANDEREDLER | L36: VAN | M36: D | N36: 62 | O36: 17.96 | P36: 0.11 | Q36: 0.16 | R36: 0.38 | S36: 0.65 | U36: ZEMGUSGIRGENSONS | V36: BUF | W36: LW | X36: 60 | Y36: 14.56 | Z36: 0.76 | AA36: 0.21 | AB36: 0.48 | AC36: 1.44
A37: DARRENHELM | B37: DET | C37: C | D37: 61 | E37: 11.98 | F37: 0.82 | G37: 0.9 | H37: 0.08 | I37: 1.81 | K37: KRISTOPHERLETANG | L37: PIT | M37: D | N37: 62 | O37: 17.93 | P37: 0.38 | Q37: 0.32 | R37: 0.54 | S37: 1.24 | U37: JAMESNEAL | V37: NSH | W37: LW | X37: 61 | Y37: 14.54 | Z37: 1.08 | AA37: 0.54 | AB37: 0.27 | AC37: 1.89
A38: ANDREJNESTRASIL | B38: CAR | C38: C | D38: 37 | E38: 11.89 | F38: 0.55 | G38: 0.68 | H38: 0.27 | I38: 1.5 | K38: MATTNISKANEN | L38: WSH | M38: D | N38: 69 | O38: 17.92 | P38: 0 | Q38: 0.49 | R38: 0.15 | S38: 0.63 | U38: KYLETURRIS | V38: OTT | W38: C | X38: 66 | Y38: 14.54 | Z38: 0.81 | AA38: 0.94 | AB38: 0.25 | AC38: 2
A39: SIDNEYCROSBY | B39: PIT | C39: C | D39: 64 | E39: 15.01 | F39: 0.87 | G39: 1 | H39: 0.69 | I39: 2.56 | K39: JOHNKLINGBERG | L39: DAL | M39: D | N39: 50 | O39: 17.86 | P39: 0.54 | Q39: 0.6 | R39: 0.27 | S39: 1.41 | U39: NICKFOLIGNO | V39: CBJ | W39: LW | X39: 65 | Y39: 14.54 | Z39: 0.89 | AA39: 0.44 | AB39: 0.76 | AC39: 2.1
A40: FILIPFORSBERG | B40: NSH | C40: RW | D40: 70 | E40: 13.76 | F40: 0.93 | G40: 0.62 | H40: 0.62 | I40: 2.18 | K40: ANDREJSEKERA | L40: L.A | M40: D | N40: 64 | O40: 17.82 | P40: 0.11 | Q40: 0.16 | R40: 0.37 | S40: 0.63 | U40: MIKAELGRANLUND | V40: MIN | W40: C | X40: 54 | Y40: 14.53 | Z40: 0.46 | AA40: 0.69 | AB40: 0.54 | AC40: 1.68
A41: CHRISTIANTHOMAS | B41: MTL | C41: RW | D41: 16 | E41: 8.93 | F41: 0.42 | G41: 0 | H41: 0 | I41: 0.42 | K41: DANGIRARDI | L41: NYR | M41: D | N41: 66 | O41: 17.82 | P41: 0.1 | Q41: 0.36 | R41: 0.2 | S41: 0.66 | U41: SCOTTGOMEZ | V41: N.J | W41: C | X41: 45 | Y41: 14.51 | Z41: 0.46 | AA41: 0.64 | AB41: 0.28 | AC41: 1.38
A42: JORDANMARTINOOK | B42: PHX | C42: LW | D42: 5 | E42: 10.26 | F42: 0 | G42: 0 | H42: 0 | I42: 0 | K42: RYANMCDONAGH | L42: NYR | M42: D | N42: 55 | O42: 17.8 | P42: 0.18 | Q42: 0.12 | R42: 0.12 | S42: 0.43 | U42: MATSZUCCARELLO | V42: NYR | W42: RW | X42: 64 | Y42: 14.48 | Z42: 0.78 | AA42: 0.71 | AB42: 0.65 | AC42: 2.14
A43: ANDERSLEE | B43: NYI | C43: C | D43: 57 | E43: 11.55 | F43: 1.46 | G43: 0.46 | H43: 0.55 | I43: 2.46 | K43: AARONEKBLAD | L43: FLA | M43: D | N43: 63 | O43: 17.79 | P43: 0.32 | Q43: 0.48 | R43: 0.54 | S43: 1.34 | U43: JAROMEIGINLA | V43: COL | W43: RW | X43: 67 | Y43: 14.46 | Z43: 1.18 | AA43: 0.87 | AB43: 0.19 | AC43: 2.23
A44: MICHAELRAFFL | B44: PHI | C44: LW | D44: 55 | E44: 12.55 | F44: 1.39 | G44: 0.17 | H44: 0.35 | I44: 1.91 | K44: OLIVEREKMAN-LARSSON | L44: PHX | M44: D | N44: 67 | O44: 17.78 | P44: 0.35 | Q44: 0.3 | R44: 0.15 | S44: 0.81 | U44: ALEXANDERSTEEN | V44: STL | W44: C | X44: 67 | Y44: 14.45 | Z44: 0.93 | AA44: 0.93 | AB44: 0.37 | AC44: 2.23
A45: EVGENIMALKIN | B45: PIT | C45: C | D45: 60 | E45: 14.67 | F45: 1.02 | G45: 0.68 | H45: 0.89 | I45: 2.59 | K45: JOSHGORGES | L45: BUF | M45: D | N45: 46 | O45: 17.76 | P45: 0 | Q45: 0.07 | R45: 0.29 | S45: 0.37 | U45: PATRICKMARLEAU | V45: S.J | W45: C | X45: 69 | Y45: 14.45 | Z45: 0.48 | AA45: 0.54 | AB45: 0.42 | AC45: 1.44
A46: DOUGIEHAMILTON | B46: BOS | C46: D | D46: 60 | E46: 17.43 | F46: 0.23 | G46: 0.23 | H46: 0.63 | I46: 1.09 | K46: JAREDSPURGEON | L46: MIN | M46: D | N46: 53 | O46: 17.75 | P46: 0.32 | Q46: 0.38 | R46: 0.38 | S46: 1.08 | U46: RYANO'REILLY | V46: COL | W46: C | X46: 67 | Y46: 14.44 | Z46: 0.56 | AA46: 0.74 | AB46: 0.43 | AC46: 1.74
A47: XAVIEROUELLET | B47: DET | C47: D | D47: 21 | E47: 15.16 | F47: 0.38 | G47: 0.19 | H47: 0 | I47: 0.57 | K47: RONHAINSEY | L47: CAR | M47: D | N47: 64 | O47: 17.75 | P47: 0.11 | Q47: 0.11 | R47: 0.16 | S47: 0.37 | U47: TOMASPLEKANEC | V47: MTL | W47: C | X47: 69 | Y47: 14.41 | Z47: 0.78 | AA47: 0.84 | AB47: 0.24 | AC47: 1.87
A48: JOEPAVELSKI | B48: S.J | C48: LW | D48: 69 | E48: 14.74 | F48: 0.88 | G48: 0.71 | H48: 0.41 | I48: 2.01 | K48: MARC-EDOUARDVLASIC | L48: S.J | M48: D | N48: 64 | O48: 17.74 | P48: 0.32 | Q48: 0.26 | R48: 0.32 | S48: 0.9 | U48: DAVIDPERRON | V48: PIT | W48: RW | X48: 68 | Y48: 14.4 | Z48: 0.86 | AA48: 0.55 | AB48: 0.49 | AC48: 1.9
A49: CARLOCOLAIACOVO | B49: PHI | C49: D | D49: 24 | E49: 15.37 | F49: 0 | G49: 0.33 | H49: 0.16 | I49: 0.49 | K49: JEFFPETRY | L49: MTL | M49: D | N49: 66 | O49: 17.73 | P49: 0.15 | Q49: 0.15 | R49: 0.15 | S49: 0.46 | U49: COREYPERRY | V49: ANA | W49: RW | X49: 56 | Y49: 14.4 | Z49: 1.71 | AA49: 0.6 | AB49: 0.37 | AC49: 2.68
A50: BRAYDENMCNABB | B50: L.A | C50: D | D50: 61 | E50: 13.78 | F50: 0.14 | G50: 0.43 | H50: 0.64 | I50: 1.21 | K50: JAYBOUWMEESTER | L50: STL | M50: D | N50: 59 | O50: 17.67 | P50: 0.12 | Q50: 0.12 | R50: 0.06 | S50: 0.29 | U50: JAMESVANRIEMSDYK | V50: TOR | W50: RW | X50: 71 | Y50: 14.38 | Z50: 0.71 | AA50: 0.76 | AB50: 0.18 | AC50: 1.65
A51: CRAIGSMITH | B51: NSH | C51: C | D51: 70 | E51: 12.7 | F51: 0.94 | G51: 0.54 | H51: 0.54 | I51: 2.02 | K51: JANHEJDA | L51: COL | M51: D | N51: 67 | O51: 17.67 | P51: 0.05 | Q51: 0.2 | R51: 0.3 | S51: 0.56 | U51: SAMGAGNER | V51: PHX | W51: C | X51: 66 | Y51: 14.35 | Z51: 0.44 | AA51: 0.63 | AB51: 0.25 | AC51: 1.33
A52: ALEXEYMARCHENKO | B52: DET | C52: D | D52: 10 | E52: 13.78 | F52: 0 | G52: 0 | H52: 0 | I52: 0 | K52: WILLIEMITCHELL | L52: FLA | M52: D | N52: 50 | O52: 17.63 | P52: 0.14 | Q52: 0.14 | R52: 0.07 | S52: 0.34 | U52: JOETHORNTON | V52: S.J | W52: C | X52: 66 | Y52: 14.34 | Z52: 0.57 | AA52: 1.33 | AB52: 0.63 | AC52: 2.54
A53: COLINWILSON | B53: NSH | C53: C | D53: 66 | E53: 13.22 | F53: 1.1 | G53: 0.96 | H53: 0.14 | I53: 2.2 | K53: MARKSTREIT | L53: PHI | M53: D | N53: 70 | O53: 17.58 | P53: 0.24 | Q53: 0.29 | R53: 0.34 | S53: 0.88 | U53: RYANCALLAHAN | V53: T.B | W53: RW | X53: 63 | Y53: 14.31 | Z53: 0.67 | AA53: 0.93 | AB53: 0.47 | AC53: 2.06
A54: DANBOYLE | B54: NYR | C54: D | D54: 49 | E54: 15.94 | F54: 0.38 | G54: 0 | H54: 0.23 | I54: 0.61 | K54: ROMANPOLAK | L54: TOR | M54: D | N54: 55 | O54: 17.58 | P54: 0.31 | Q54: 0.06 | R54: 0.19 | S54: 0.56 | U54: MICHAELCAMMALLERI | V54: N.J | W54: C | X54: 56 | Y54: 14.31 | Z54: 1.2 | AA54: 0.3 | AB54: 0.37 | AC54: 1.87
A55: MIKHAILGRABOVSKI | B55: NYI | C55: C | D55: 49 | E55: 12.62 | F55: 0.87 | G55: 0.29 | H55: 0.49 | I55: 1.65 | K55: JUSTINBRAUN | L55: S.J | M55: D | N55: 58 | O55: 17.54 | P55: 0.06 | Q55: 0.29 | R55: 0.65 | S55: 1 | U55: NAZEMKADRI | V55: TOR | W55: C | X55: 65 | Y55: 14.29 | Z55: 0.77 | AA55: 0.52 | AB55: 0.45 | AC55: 1.74
A56: JAKUBVORACEK | B56: PHI | C56: RW | D56: 70 | E56: 14.65 | F56: 0.59 | G56: 1.05 | H56: 0.7 | I56: 2.34 | K56: JACKJOHNSON | L56: CBJ | M56: D | N56: 65 | O56: 17.49 | P56: 0.11 | Q56: 0.16 | R56: 0.32 | S56: 0.58 | U56: PHILKESSEL | V56: TOR | W56: LW | X56: 71 | Y56: 14.29 | Z56: 0.83 | AA56: 0.41 | AB56: 0.41 | AC56: 1.66
A57: TYRATTIE | B57: STL | C57: LW | D57: 5 | E57: 8.28 | F57: 0 | G57: 0 | H57: 1.45 | I57: 1.45 | K57: CHRISTIANEHRHOFF | L57: PIT | M57: D | N57: 47 | O57: 17.47 | P57: 0.22 | Q57: 0.44 | R57: 0.22 | S57: 0.88 | U57: JASONPOMINVILLE | V57: MIN | W57: LW | X57: 67 | Y57: 14.27 | Z57: 0.82 | AA57: 0.82 | AB57: 0.38 | AC57: 2.01
A58: JEFFCARTER | B58: L.A | C58: C | D58: 67 | E58: 13.02 | F58: 0.89 | G58: 0.69 | H58: 0.83 | I58: 2.41 | K58: DOUGIEHAMILTON | L58: BOS | M58: D | N58: 60 | O58: 17.43 | P58: 0.23 | Q58: 0.23 | R58: 0.63 | S58: 1.09 | U58: ANDREWLADD | V58: WPG | W58: LW | X58: 67 | Y58: 14.26 | Z58: 0.75 | AA58: 1.26 | AB58: 0.31 | AC58: 2.32
A59: RYANELLIS | B59: NSH | C59: D | D59: 48 | E59: 15.68 | F59: 0.4 | G59: 0.48 | H59: 0.4 | I59: 1.28 | K59: CHRISTANEV | L59: VAN | M59: D | N59: 58 | O59: 17.43 | P59: 0.06 | Q59: 0.3 | R59: 0.36 | S59: 0.71 | U59: JIRIHUDLER | V59: CGY | W59: LW | X59: 64 | Y59: 14.24 | Z59: 0.92 | AA59: 1.18 | AB59: 0.46 | AC59: 2.57
A60: NIKITAKUCHEROV | B60: T.B | C60: RW | D60: 68 | E60: 12.44 | F60: 1.63 | G60: 0.85 | H60: 0.5 | I60: 2.98 | K60: BRENDENDILLON | L60: S.J | M60: D | N60: 67 | O60: 17.43 | P60: 0.05 | Q60: 0.1 | R60: 0.21 | S60: 0.36 | U60: VLADIMIRTARASENKO | V60: STL | W60: RW | X60: 69 | Y60: 14.23 | Z60: 1.59 | AA60: 0.67 | AB60: 0.67 | AC60: 2.93
A61: BLAKEWHEELER | B61: WPG | C61: RW | D61: 65 | E61: 13.98 | F61: 1.12 | G61: 0.86 | H61: 0.33 | I61: 2.31 | K61: JOHNCARLSON | L61: WSH | M61: D | N61: 69 | O61: 17.4 | P61: 0.35 | Q61: 0.65 | R61: 0.55 | S61: 1.55 | U61: JAMIEBENN | V61: DAL | W61: LW | X61: 67 | Y61: 14.21 | Z61: 0.95 | AA61: 0.95 | AB61: 0.63 | AC61: 2.52
A62: ANTONSTRALMAN | B62: T.B | C62: D | D62: 68 | E62: 16.29 | F62: 0.27 | G62: 0.43 | H62: 0.38 | I62: 1.08 | K62: TOBIASENSTROM | L62: WPG | M62: D | N62: 48 | O62: 17.38 | P62: 0.22 | Q62: 0.36 | R62: 0.43 | S62: 1.01 | U62: MATTMOULSON | V62: BUF | W62: LW | X62: 66 | Y62: 14.21 | Z62: 0.58 | AA62: 0.7 | AB62: 0.32 | AC62: 1.6
A63: ALEXOVECHKIN | B63: WSH | C63: LW | D63: 68 | E63: 15.44 | F63: 1.26 | G63: 0.74 | H63: 0.17 | I63: 2.17 | K63: DAVIDSAVARD | L63: CBJ | M63: D | N63: 68 | O63: 17.31 | P63: 0.31 | Q63: 0.15 | R63: 0.31 | S63: 0.76 | U63: JONATHANTOEWS | V63: CHI | W63: C | X63: 67 | Y63: 14.19 | Z63: 0.88 | AA63: 1.07 | AB63: 0.5 | AC63: 2.46
A64: PATRICHORNQVIST | B64: PIT | C64: LW | D64: 53 | E64: 13.63 | F64: 1.25 | G64: 0.58 | H64: 0.42 | I64: 2.24 | K64: HAMPUSLINDHOLM | L64: ANA | M64: D | N64: 68 | O64: 17.3 | P64: 0.31 | Q64: 0.51 | R64: 0.46 | S64: 1.28 | U64: CHRISKUNITZ | V64: PIT | W64: LW | X64: 60 | Y64: 14.16 | Z64: 0.49 | AA64: 0.85 | AB64: 0.28 | AC64: 1.62
A65: MATTIASEKHOLM | B65: NSH | C65: D | D65: 68 | E65: 16.17 | F65: 0.16 | G65: 0.11 | H65: 0.38 | I65: 0.65 | K65: MICHAELSTONE | L65: PHX | M65: D | N65: 66 | O65: 17.25 | P65: 0.11 | Q65: 0.21 | R65: 0.21 | S65: 0.53 | U65: HENRIKSEDIN | V65: VAN | W65: C | X65: 68 | Y65: 14.16 | Z65: 0.56 | AA65: 0.56 | AB65: 0.87 | AC65: 1.99
A66: JUSTINABDELKADER | B66: DET | C66: C | D66: 59 | E66: 13.82 | F66: 0.74 | G66: 0.52 | H66: 0.37 | I66: 1.62 | K66: JONMERRILL | L66: N.J | M66: D | N66: 55 | O66: 17.23 | P66: 0 | Q66: 0.13 | R66: 0.38 | S66: 0.51 | U66: MARTINST.LOUIS | V66: NYR | W66: RW | X66: 65 | Y66: 14.16 | Z66: 0.78 | AA66: 0.65 | AB66: 0.52 | AC66: 1.96
A67: ALEXANDERSEMIN | B67: CAR | C67: LW | D67: 42 | E67: 14.14 | F67: 0.3 | G67: 0.4 | H67: 0.3 | I67: 1.01 | K67: BRENTSEABROOK | L67: CHI | M67: D | N67: 67 | O67: 17.16 | P67: 0.16 | Q67: 0.31 | R67: 0.26 | S67: 0.73 | U67: ALEXANDERSEMIN | V67: CAR | W67: LW | X67: 42 | Y67: 14.14 | Z67: 0.3 | AA67: 0.4 | AB67: 0.3 | AC67: 1.01
A68: DREWDOUGHTY | B68: L.A | C68: D | D68: 67 | E68: 21.77 | F68: 0.21 | G68: 0.41 | H68: 0.33 | I68: 0.95 | K68: PAULMARTIN | L68: PIT | M68: D | N68: 60 | O68: 17.16 | P68: 0.06 | Q68: 0.58 | R68: 0.23 | S68: 0.87 | U68: DAVIDDESHARNAIS | V68: MTL | W68: C | X68: 69 | Y68: 14.13 | Z68: 0.49 | AA68: 0.74 | AB68: 0.62 | AC68: 1.85
A69: RILEYSMITH | B69: BOS | C69: RW | D69: 60 | E69: 13.46 | F69: 0.74 | G69: 0.52 | H69: 0.45 | I69: 1.71 | K69: ZBYNEKMICHALEK | L69: STL | M69: D | N69: 57 | O69: 17.16 | P69: 0.12 | Q69: 0.12 | R69: 0.25 | S69: 0.49 | U69: JOSHBAILEY | V69: NYI | W69: C | X69: 51 | Y69: 14.11 | Z69: 0.83 | AA69: 0.75 | AB69: 0.83 | AC69: 2.42
A70: JOHNTAVARES | B70: NYI | C70: C | D70: 63 | E70: 15.96 | F70: 0.89 | G70: 0.89 | H70: 0.24 | I70: 2.03 | K70: MATTHEWCARLE | L70: T.B | M70: D | N70: 49 | O70: 17.15 | P70: 0.21 | Q70: 0.36 | R70: 0.36 | S70: 0.93 | U70: JADENSCHWARTZ | V70: STL | W70: C | X70: 62 | Y70: 14.11 | Z70: 0.96 | AA70: 1.03 | AB70: 0.48 | AC70: 2.47
A71: ONDREJPALAT | B71: T.B | C71: LW | D71: 62 | E71: 12.94 | F71: 0.52 | G71: 1.2 | H71: 1.2 | I71: 2.92 | K71: JACOBTROUBA | L71: WPG | M71: D | N71: 51 | O71: 17.13 | P71: 0.14 | Q71: 0.27 | R71: 0.27 | S71: 0.69 | U71: RYANKESLER | V71: ANA | W71: C | X71: 71 | Y71: 14.1 | Z71: 0.6 | AA71: 0.6 | AB71: 0.42 | AC71: 1.62
A72: JEFFSCHULTZ | B72: L.A | C72: D | D72: 9 | E72: 14.57 | F72: 0 | G72: 0.46 | H72: 0 | I72: 0.46 | K72: MICHAELDELZOTTO | L72: PHI | M72: D | N72: 52 | O72: 17.13 | P72: 0.4 | Q72: 0.54 | R72: 0.27 | S72: 1.21 | U72: DAVIDBACKES | V72: STL | W72: C | X72: 68 | Y72: 14.07 | Z72: 1 | AA72: 0.88 | AB72: 0.63 | AC72: 2.51
A73: TREVORLEWIS | B73: L.A | C73: C | D73: 58 | E73: 12.02 | F73: 0.6 | G73: 0.34 | H73: 0.6 | I73: 1.55 | K73: DANHAMHUIS | L73: VAN | M73: D | N73: 46 | O73: 17.11 | P73: 0 | Q73: 0.61 | R73: 0.38 | S73: 0.99 | U73: MIKKELBOEDKER | V73: PHX | W73: LW | X73: 45 | Y73: 14.07 | Z73: 1.04 | AA73: 0.19 | AB73: 0.28 | AC73: 1.52
A74: MATHIEUPERREAULT | B74: WPG | C74: C | D74: 54 | E74: 13.38 | F74: 0.83 | G74: 0.66 | H74: 0.25 | I74: 1.74 | K74: ANDREWFERENCE | L74: EDM | M74: D | N74: 60 | O74: 17.03 | P74: 0.18 | Q74: 0 | R74: 0.41 | S74: 0.59 | U74: DERICKBRASSARD | V74: NYR | W74: C | X74: 64 | Y74: 14.05 | Z74: 0.6 | AA74: 0.73 | AB74: 1 | AC74: 2.34
A75: DAVIDPERRON | B75: PIT | C75: RW | D75: 68 | E75: 14.4 | F75: 0.86 | G75: 0.55 | H75: 0.49 | I75: 1.9 | K75: JAKEGARDINER | L75: TOR | M75: D | N75: 68 | O75: 17.02 | P75: 0.16 | Q75: 0.31 | R75: 0.21 | S75: 0.67 | U75: JOHNGAUDREAU | V75: CGY | W75: LW | X75: 66 | Y75: 14.05 | Z75: 0.78 | AA75: 0.91 | AB75: 0.45 | AC75: 2.13
A76: TYLERKENNEDY | B76: NYI | C76: LW | D76: 29 | E76: 10.98 | F76: 0.94 | G76: 0.75 | H76: 0.38 | I76: 2.07 | K76: TYSONBARRIE | L76: COL | M76: D | N76: 66 | O76: 16.98 | P76: 0.37 | Q76: 0.48 | R76: 0.64 | S76: 1.5 | U76: TYLERBOZAK | V76: TOR | W76: C | X76: 71 | Y76: 14.05 | Z76: 0.42 | AA76: 0.48 | AB76: 0.36 | AC76: 1.26
A77: JASONSPEZZA | B77: DAL | C77: C | D77: 67 | E77: 13.14 | F77: 0.61 | G77: 0.68 | H77: 0.68 | I77: 1.98 | K77: KEVINBIEKSA | L77: VAN | M77: D | N77: 48 | O77: 16.95 | P77: 0.22 | Q77: 0.15 | R77: 0.22 | S77: 0.59 | U77: DANIELSEDIN | V77: VAN | W77: LW | X77: 68 | Y77: 14.04 | Z77: 0.5 | AA77: 0.94 | AB77: 0.57 | AC77: 2.01
A78: MATTHUNWICK | B78: NYR | C78: D | D78: 41 | E78: 14.68 | F78: 0 | G78: 0.4 | H78: 0.2 | I78: 0.6 | K78: VICTORHEDMAN | L78: T.B | M78: D | N78: 48 | O78: 16.81 | P78: 0.52 | Q78: 0.52 | R78: 0.59 | S78: 1.64 | U78: CARLSODERBERG | V78: BOS | W78: C | X78: 60 | Y78: 14.03 | Z78: 0.43 | AA78: 0.78 | AB78: 0.64 | AC78: 1.85
A79: LUBOMIRVISNOVSKY | B79: NYI | C79: D | D79: 40 | E79: 16.08 | F79: 0.19 | G79: 0.56 | H79: 0.37 | I79: 1.12 | K79: TREVORDALEY | L79: DAL | M79: D | N79: 58 | O79: 16.78 | P79: 0.43 | Q79: 0.31 | R79: 0.31 | S79: 1.05 | U79: VALTTERIFILPPULA | V79: T.B | W79: C | X79: 68 | Y79: 14.01 | Z79: 0.63 | AA79: 0.57 | AB79: 0.57 | AC79: 1.76
A80: VLADIMIRTARASENKO | B80: STL | C80: RW | D80: 69 | E80: 14.23 | F80: 1.59 | G80: 0.67 | H80: 0.67 | I80: 2.93 | K80: NIKLASKRONWALL | L80: DET | M80: D | N80: 66 | O80: 16.76 | P80: 0.22 | Q80: 0.16 | R80: 0.43 | S80: 0.81 | U80: BRIANGIONTA | V80: BUF | W80: RW | X80: 56 | Y80: 14 | Z80: 0.54 | AA80: 0.54 | AB80: 0.31 | AC80: 1.38
A81: BRETTCONNOLLY | B81: T.B | C81: C | D81: 47 | E81: 9.69 | F81: 1.19 | G81: 0.26 | H81: 0.13 | I81: 1.58 | K81: KEVINSHATTENKIRK | L81: STL | M81: D | N81: 49 | O81: 16.73 | P81: 0.29 | Q81: 0.44 | R81: 0.37 | S81: 1.1 | U81: LOGANCOUTURE | V81: S.J | W81: C | X81: 69 | Y81: 13.99 | Z81: 0.99 | AA81: 0.68 | AB81: 0.19 | AC81: 1.86
A82: JIRITLUSTY | B82: WPG | C82: LW | D82: 58 | E82: 13.77 | F82: 0.53 | G82: 0.23 | H82: 0.38 | I82: 1.13 | K82: CALVINDEHAAN | L82: NYI | M82: D | N82: 54 | O82: 16.7 | P82: 0 | Q82: 0.27 | R82: 0.33 | S82: 0.6 | U82: BLAKEWHEELER | V82: WPG | W82: RW | X82: 65 | Y82: 13.98 | Z82: 1.12 | AA82: 0.86 | AB82: 0.33 | AC82: 2.31
A83: JONATHANDROUIN | B83: T.B | C83: LW | D83: 57 | E83: 11.22 | F83: 0.09 | G83: 1.31 | H83: 0.75 | I83: 2.16 | K83: DUSTINBYFUGLIEN | L83: WPG | M83: D | N83: 62 | O83: 16.67 | P83: 0.58 | Q83: 0.12 | R83: 0.41 | S83: 1.1 | U83: MARIANHOSSA | V83: CHI | W83: RW | X83: 67 | Y83: 13.97 | Z83: 0.9 | AA83: 0.83 | AB83: 0.51 | AC83: 2.24
A84: BRADRICHARDS | B84: CHI | C84: C | D84: 64 | E84: 12.62 | F84: 0.67 | G84: 0.74 | H84: 0.67 | I84: 2.08 | K84: KYLEQUINCEY | L84: DET | M84: D | N84: 58 | O84: 16.62 | P84: 0.19 | Q84: 0.25 | R84: 0.19 | S84: 0.62 | U84: ANZEKOPITAR | V84: L.A | W84: C | X84: 64 | Y84: 13.95 | Z84: 0.34 | AA84: 0.74 | AB84: 0.6 | AC84: 1.68
A85: JORDIEBENN | B85: DAL | C85: D | D85: 61 | E85: 15.16 | F85: 0.06 | G85: 0.19 | H85: 0.45 | I85: 0.71 | K85: ROBYNREGEHR | L85: L.A | M85: D | N85: 52 | O85: 16.6 | P85: 0.07 | Q85: 0.21 | R85: 0.28 | S85: 0.56 | U85: MIKKOKOIVU | V85: MIN | W85: C | X85: 67 | Y85: 13.94 | Z85: 0.32 | AA85: 0.71 | AB85: 0.58 | AC85: 1.61
A86: KYLEOKPOSO | B86: NYI | C86: RW | D86: 49 | E86: 15.31 | F86: 0.8 | G86: 0.8 | H86: 0.56 | I86: 2.16 | K86: ALEXEIYEMELIN | L86: MTL | M86: D | N86: 56 | O86: 16.58 | P86: 0.13 | Q86: 0.13 | R86: 0.52 | S86: 0.78 | U86: BRYANLITTLE | V86: WPG | W86: C | X86: 62 | Y86: 13.94 | Z86: 0.83 | AA86: 0.42 | AB86: 0.56 | AC86: 1.8
A87: JUSTINWILLIAMS | B87: L.A | C87: RW | D87: 66 | E87: 13.57 | F87: 0.94 | G87: 0.27 | H87: 0.33 | I87: 1.54 | K87: BRADSTUART | L87: COL | M87: D | N87: 51 | O87: 16.55 | P87: 0.14 | Q87: 0.21 | R87: 0.28 | S87: 0.64 | U87: TOBIASRIEDER | V87: PHX | W87: RW | X87: 57 | Y87: 13.93 | Z87: 0.6 | AA87: 0.15 | AB87: 0.23 | AC87: 0.98
A88: ERICODELL | B88: WPG | C88: C | D88: 6 | E88: 7.44 | F88: 0 | G88: 0 | H88: 0 | I88: 0 | K88: KARLALZNER | L88: WSH | M88: D | N88: 69 | O88: 16.49 | P88: 0.26 | Q88: 0.21 | R88: 0.42 | S88: 0.9 | U88: NATHANMACKINNON | V88: COL | W88: C | X88: 60 | Y88: 13.93 | Z88: 0.57 | AA88: 0.93 | AB88: 0.43 | AC88: 1.94
A89: JUSTINFAULK | B89: CAR | C89: D | D89: 65 | E89: 18.67 | F89: 0.25 | G89: 0.45 | H89: 0.45 | I89: 1.14 | K89: DANNYDEKEYSER | L89: DET | M89: D | N89: 64 | O89: 16.47 | P89: 0.11 | Q89: 0.17 | R89: 0.68 | S89: 0.97 | U89: BLAKECOMEAU | V89: PIT | W89: RW | X89: 47 | Y89: 13.89 | Z89: 1.01 | AA89: 0.55 | AB89: 0.46 | AC89: 2.02
A90: RYANSTROME | B90: NYI | C90: C | D90: 62 | E90: 11.47 | F90: 0.76 | G90: 1.35 | H90: 0.42 | I90: 2.53 | K90: ADAMLARSSON | L90: N.J | M90: D | N90: 51 | O90: 16.43 | P90: 0.21 | Q90: 0.43 | R90: 0.64 | S90: 1.29 | U90: SEANCOUTURIER | V90: PHI | W90: C | X90: 70 | Y90: 13.86 | Z90: 0.68 | AA90: 0.49 | AB90: 0.25 | AC90: 1.42
A91: PATRIKBERGLUND | B91: STL | C91: C | D91: 64 | E91: 12.77 | F91: 0.59 | G91: 0.44 | H91: 0.37 | I91: 1.4 | K91: NICKLEDDY | L91: NYI | M91: D | N91: 59 | O91: 16.38 | P91: 0.56 | Q91: 0.31 | R91: 0.31 | S91: 1.18 | U91: ADAMHENRIQUE | V91: N.J | W91: C | X91: 62 | Y91: 13.84 | Z91: 0.7 | AA91: 0.49 | AB91: 0.42 | AC91: 1.61
A92: JOHN-MICHAELLILES | B92: CAR | C92: D | D92: 41 | E92: 16.05 | F92: 0.18 | G92: 0.09 | H92: 0.55 | I92: 0.82 | K92: DIONPHANEUF | L92: TOR | M92: D | N92: 60 | O92: 16.37 | P92: 0.06 | Q92: 0.31 | R92: 0.24 | S92: 0.61 | U92: BRADMARCHAND | V92: BOS | W92: C | X92: 55 | Y92: 13.83 | Z92: 1.1 | AA92: 0.87 | AB92: 0.24 | AC92: 2.21
A93: BRENDANSMITH | B93: DET | C93: D | D93: 61 | E93: 15.93 | F93: 0.25 | G93: 0.12 | H93: 0.19 | I93: 0.56 | K93: DMITRYKULIKOV | L93: FLA | M93: D | N93: 55 | O93: 16.36 | P93: 0.07 | Q93: 0.27 | R93: 0.53 | S93: 0.87 | U93: JUSTINABDELKADER | V93: DET | W93: C | X93: 59 | Y93: 13.82 | Z93: 0.74 | AA93: 0.52 | AB93: 0.37 | AC93: 1.62
A94: MARKODANO | B94: CBJ | C94: C | D94: 22 | E94: 12.54 | F94: 1.3 | G94: 0.65 | H94: 0.43 | I94: 2.39 | K94: ANDREWMACDONALD | L94: PHI | M94: D | N94: 53 | O94: 16.34 | P94: 0.07 | Q94: 0.14 | R94: 0.28 | S94: 0.48 | U94: PAULSTASTNY | V94: STL | W94: C | X94: 61 | Y94: 13.8 | Z94: 0.5 | AA94: 0.93 | AB94: 0.43 | AC94: 1.85
A95: BRANDONSAAD | B95: CHI | C95: LW | D95: 67 | E95: 13.59 | F95: 1.19 | G95: 0.59 | H95: 0.59 | I95: 2.37 | K95: ANTONSTRALMAN | L95: T.B | M95: D | N95: 68 | O95: 16.29 | P95: 0.27 | Q95: 0.43 | R95: 0.38 | S95: 1.08 | U95: MICHAELFROLIK | V95: WPG | W95: LW | X95: 67 | Y95: 13.79 | Z95: 0.65 | AA95: 0.58 | AB95: 0.52 | AC95: 1.75
A96: SETHJONES | B96: NSH | C96: D | D96: 70 | E96: 15.13 | F96: 0.17 | G96: 0.28 | H96: 0.17 | I96: 0.62 | K96: RASMUSRISTOLAINEN | L96: BUF | M96: D | N96: 66 | O96: 16.28 | P96: 0.11 | Q96: 0 | R96: 0.22 | S96: 0.34 | U96: CURTISGLENCROSS | V96: WSH | W96: RW | X96: 58 | Y96: 13.79 | Z96: 0.68 | AA96: 0.45 | AB96: 0.45 | AC96: 1.58
A97: CLAUDEGIROUX | B97: PHI | C97: RW | D97: 69 | E97: 15.79 | F97: 0.44 | G97: 0.66 | H97: 0.55 | I97: 1.65 | K97: JONATHANERICSSON | L97: DET | M97: D | N97: 66 | O97: 16.23 | P97: 0.17 | Q97: 0.28 | R97: 0.17 | S97: 0.62 | U97: LOUIERIKSSON | V97: BOS | W97: LW | X97: 59 | Y97: 13.78 | Z97: 0.59 | AA97: 0.74 | AB97: 0.44 | AC97: 1.77
A98: JORDANSCHROEDER | B98: MIN | C98: RW | D98: 15 | E98: 11.4 | F98: 1.05 | G98: 0.35 | H98: 0.35 | I98: 1.76 | K98: MORGANRIELLY | L98: TOR | M98: D | N98: 70 | O98: 16.18 | P98: 0.32 | Q98: 0.21 | R98: 0.21 | S98: 0.74 | U98: JIRITLUSTY | V98: WPG | W98: LW | X98: 58 | Y98: 13.77 | Z98: 0.53 | AA98: 0.23 | AB98: 0.38 | AC98: 1.13
A99: TOMASHERTL | B99: S.J | C99: C | D99: 69 | E99: 12.86 | F99: 0.68 | G99: 0.27 | H99: 0.68 | I99: 1.62 | K99: MATTIASEKHOLM | L99: NSH | M99: D | N99: 68 | O99: 16.17 | P99: 0.16 | Q99: 0.11 | R99: 0.38 | S99: 0.65 | U99: FILIPFORSBERG | V99: NSH | W99: RW | X99: 70 | Y99: 13.76 | Z99: 0.93 | AA99: 0.62 | AB99: 0.62 | AC99: 2.18
A100: BRYANBICKELL | B100: CHI | C100: LW | D100: 66 | E100: 11.22 | F100: 0.81 | G100: 0.32 | H100: 0.65 | I100: 1.78 | K100: KEVINKLEIN | L100: NYR | M100: D | N100: 63 | O100: 16.17 | P100: 0.35 | Q100: 0.35 | R100: 0.59 | S100: 1.3 | U100: BRENDANGALLAGHER | V100: MTL | W100: RW | X100: 69 | Y100: 13.76 | Z100: 1.01 | AA100: 0.95 | AB100: 0.19 | AC100: 2.15
A101: BROCKNELSON | B101: NYI | C101: C | D101: 63 | E101: 11.67 | F101: 0.65 | G101: 0.41 | H101: 0.57 | I101: 1.63 | K101: JOHNNYBOYCHUK | L101: NYI | M101: D | N101: 53 | O101: 16.16 | P101: 0.07 | Q101: 0.42 | R101: 0.42 | S101: 0.91 | U101: BRAYDENSCHENN | V101: PHI | W101: C | X101: 70 | Y101: 13.75 | Z101: 0.5 | AA101: 0.5 | AB101: 0.25 | AC101: 1.25
A102: KARLSTOLLERY | B102: COL | C102: D | D102: 5 | E102: 10.9 | F102: 0 | G102: 0 | H102: 0 | I102: 0 | K102: CAMFOWLER | L102: ANA | M102: D | N102: 70 | O102: 16.16 | P102: 0.16 | Q102: 0.27 | R102: 0.37 | S102: 0.8 | U102: KRISVERSTEEG | V102: CHI | W102: RW | X102: 46 | Y102: 13.72 | Z102: 1.05 | AA102: 1.05 | AB102: 0.38 | AC102: 2.47
A103: ANDREWSHAW | B103: CHI | C103: C | D103: 64 | E103: 11.72 | F103: 0.56 | G103: 0.24 | H103: 0.32 | I103: 1.12 | K103: LUCASBISA | L103: VAN | M103: D | N103: 62 | O103: 16.14 | P103: 0.12 | Q103: 0.06 | R103: 0.24 | S103: 0.42 | U103: ANTOINEVERMETTE | V103: CHI | W103: C | X103: 65 | Y103: 13.72 | Z103: 0.47 | AA103: 0.67 | AB103: 0.4 | AC103: 1.55
A104: PAULSTASTNY | B104: STL | C104: C | D104: 61 | E104: 13.8 | F104: 0.5 | G104: 0.93 | H104: 0.43 | I104: 1.85 | K104: THOMASHICKEY | L104: NYI | M104: D | N104: 62 | O104: 16.07 | P104: 0.06 | Q104: 0.54 | R104: 0.36 | S104: 0.96 | U104: ALEKSANDERBARKOV | V104: FLA | W104: C | X104: 52 | Y104: 13.7 | Z104: 0.67 | AA104: 0.34 | AB104: 0.51 | AC104: 1.52
A105: JAREDSPURGEON | B105: MIN | C105: D | D105: 53 | E105: 17.75 | F105: 0.32 | G105: 0.38 | H105: 0.38 | I105: 1.08 | K105: NIKITAZADOROV | L105: BUF | M105: D | N105: 49 | O105: 15.99 | P105: 0 | Q105: 0.31 | R105: 0.31 | S105: 0.61 | U105: MELKERKARLSSON | V105: S.J | W105: C | X105: 40 | Y105: 13.7 | Z105: 1.2 | AA105: 0.33 | AB105: 0.55 | AC105: 2.08
A106: J.T.MILLER | B106: NYR | C106: LW | D106: 42 | E106: 11.46 | F106: 0.62 | G106: 0.5 | H106: 0.25 | I106: 1.37 | K106: DANBOYLE | L106: NYR | M106: D | N106: 49 | O106: 15.94 | P106: 0.38 | Q106: 0 | R106: 0.23 | S106: 0.61 | U106: ALEXGALCHENYUK | V106: MTL | W106: C | X106: 68 | Y106: 13.68 | Z106: 1.03 | AA106: 0.65 | AB106: 0.26 | AC106: 1.94
A107: PATRICKWIERCIOCH | B107: OTT | C107: D | D107: 41 | E107: 14.21 | F107: 0.1 | G107: 0.1 | H107: 0.41 | I107: 0.62 | K107: BRENDANSMITH | L107: DET | M107: D | N107: 61 | O107: 15.93 | P107: 0.25 | Q107: 0.12 | R107: 0.19 | S107: 0.56 | U107: BOBBYRYAN | V107: OTT | W107: RW | X107: 62 | Y107: 13.68 | Z107: 0.71 | AA107: 0.85 | AB107: 0.57 | AC107: 2.12
A108: ANDREJSEKERA | B108: L.A | C108: D | D108: 64 | E108: 17.82 | F108: 0.11 | G108: 0.16 | H108: 0.37 | I108: 0.63 | K108: TOREYKRUG | L108: BOS | M108: D | N108: 56 | O108: 15.93 | P108: 0.54 | Q108: 0.34 | R108: 0.34 | S108: 1.21 | U108: PATRICHORNQVIST | V108: PIT | W108: LW | X108: 53 | Y108: 13.63 | Z108: 1.25 | AA108: 0.58 | AB108: 0.42 | AC108: 2.24
A109: ZDENOCHARA | B109: BOS | C109: D | D109: 41 | E109: 17.15 | F109: 0.17 | G109: 0.26 | H109: 0.26 | I109: 0.68 | K109: TOMGILBERT | L109: MTL | M109: D | N109: 65 | O109: 15.93 | P109: 0.17 | Q109: 0.17 | R109: 0.29 | S109: 0.64 | U109: CHRISSTEWART | V109: MIN | W109: RW | X109: 69 | Y109: 13.62 | Z109: 0.51 | AA109: 0.64 | AB109: 0.13 | AC109: 1.28
A110: MATTHEWNIETO | B110: S.J | C110: LW | D110: 59 | E110: 13.01 | F110: 0.47 | G110: 0.55 | H110: 0.31 | I110: 1.33 | K110: FEDORTYUTIN | L110: CBJ | M110: D | N110: 55 | O110: 15.91 | P110: 0.21 | Q110: 0.21 | R110: 0.27 | S110: 0.69 | U110: CHRISKREIDER | V110: NYR | W110: LW | X110: 64 | Y110: 13.61 | Z110: 0.62 | AA110: 0.76 | AB110: 0.34 | AC110: 1.72
A111: CALLEJARNKROK | B111: NSH | C111: C | D111: 63 | E111: 10.93 | F111: 0.52 | G111: 0.35 | H111: 0.35 | I111: 1.22 | K111: BENLOVEJOY | L111: PIT | M111: D | N111: 47 | O111: 15.89 | P111: 0.08 | Q111: 0.24 | R111: 0.48 | S111: 0.8 | U111: BRANDONSAAD | V111: CHI | W111: LW | X111: 67 | Y111: 13.59 | Z111: 1.19 | AA111: 0.59 | AB111: 0.59 | AC111: 2.37
A112: STEPHANEVEILLEUX | B112: MIN | C112: LW | D112: 10 | E112: 6.33 | F112: 0 | G112: 0 | H112: 0.95 | I112: 0.95 | K112: JAMESWISNIEWSKI | L112: ANA | M112: D | N112: 60 | O112: 15.84 | P112: 0.06 | Q112: 0.44 | R112: 0.44 | S112: 0.95 | U112: JUSTINWILLIAMS | V112: L.A | W112: RW | X112: 66 | Y112: 13.57 | Z112: 0.94 | AA112: 0.27 | AB112: 0.33 | AC112: 1.54
A113: MARCMETHOT | B113: OTT | C113: D | D113: 29 | E113: 19.49 | F113: 0.11 | G113: 0.21 | H113: 0.53 | I113: 0.85 | K113: CARLGUNNARSSON | L113: STL | M113: D | N113: 52 | O113: 15.83 | P113: 0.15 | Q113: 0.22 | R113: 0.36 | S113: 0.73 | U113: ALEXTANGUAY | V113: COL | W113: LW | X113: 65 | Y113: 13.56 | Z113: 0.95 | AA113: 0.61 | AB113: 0.54 | AC113: 2.11
A114: ALEXANDERKILLORN | B114: T.B | C114: C | D114: 60 | E114: 13.24 | F114: 0.91 | G114: 0.83 | H114: 0.6 | I114: 2.34 | K114: SAMIVATANEN | L114: ANA | M114: D | N114: 58 | O114: 15.78 | P114: 0.26 | Q114: 0.26 | R114: 0.52 | S114: 1.05 | U114: DEREKSTEPAN | V114: NYR | W114: C | X114: 52 | Y114: 13.49 | Z114: 0.51 | AA114: 0.94 | AB114: 0.43 | AC114: 1.88
A115: PATRICKKANE | B115: CHI | C115: RW | D115: 60 | E115: 15.31 | F115: 1.37 | G115: 0.98 | H115: 0.26 | I115: 2.61 | K115: JASONGARRISON | L115: T.B | M115: D | N115: 62 | O115: 15.73 | P115: 0.12 | Q115: 0.31 | R115: 0.62 | S115: 1.05 | U115: DAVIDJONES | V115: CGY | W115: LW | X115: 53 | Y115: 13.48 | Z115: 0.76 | AA115: 0.67 | AB115: 0.42 | AC115: 1.85
A116: MIKKOKOIVU | B116: MIN | C116: C | D116: 67 | E116: 13.94 | F116: 0.32 | G116: 0.71 | H116: 0.58 | I116: 1.61 | K116: RYANELLIS | L116: NSH | M116: D | N116: 48 | O116: 15.68 | P116: 0.4 | Q116: 0.48 | R116: 0.4 | S116: 1.28 | U116: MIKEFISHER | V116: NSH | W116: C | X116: 49 | Y116: 13.47 | Z116: 0.82 | AA116: 0.91 | AB116: 0.36 | AC116: 2.09
A117: JAMIEMCBANE | B117: L.A | C117: D | D117: 24 | E117: 10.75 | F117: 0.47 | G117: 0.23 | H117: 0.7 | I117: 1.4 | K117: ANDREJSUSTR | L117: T.B | M117: D | N117: 64 | O117: 15.65 | P117: 0 | Q117: 0.18 | R117: 0.36 | S117: 0.54 | U117: MICHAELSANTORELLI | V117: NSH | W117: C | X117: 69 | Y117: 13.47 | Z117: 0.65 | AA117: 0.45 | AB117: 0.58 | AC117: 1.68
A118: JOSHMANSON | B118: ANA | C118: D | D118: 27 | E118: 16.19 | F118: 0 | G118: 0.14 | H118: 0.27 | I118: 0.41 | K118: NICKSCHULTZ | L118: PHI | M118: D | N118: 68 | O118: 15.49 | P118: 0.11 | Q118: 0.11 | R118: 0.46 | S118: 0.68 | U118: RILEYSMITH | V118: BOS | W118: RW | X118: 60 | Y118: 13.46 | Z118: 0.74 | AA118: 0.52 | AB118: 0.45 | AC118: 1.71
A119: JOSHBAILEY | B119: NYI | C119: C | D119: 51 | E119: 14.11 | F119: 0.83 | G119: 0.75 | H119: 0.83 | I119: 2.42 | K119: JASONDEMERS | L119: DAL | M119: D | N119: 66 | O119: 15.47 | P119: 0.12 | Q119: 0.29 | R119: 0.47 | S119: 0.88 | U119: MATTREAD | V119: PHI | W119: RW | X119: 68 | Y119: 13.46 | Z119: 0.33 | AA119: 0.52 | AB119: 0.59 | AC119: 1.44
A120: JAMIEBENN | B120: DAL | C120: LW | D120: 67 | E120: 14.21 | F120: 0.95 | G120: 0.95 | H120: 0.63 | I120: 2.52 | K120: MIKEWEBER | L120: BUF | M120: D | N120: 57 | O120: 15.47 | P120: 0.07 | Q120: 0.07 | R120: 0.27 | S120: 0.41 | U120: JEFFSKINNER | V120: CAR | W120: C | X120: 60 | Y120: 13.45 | Z120: 0.82 | AA120: 0.52 | AB120: 0.22 | AC120: 1.56
A121: ZACHTROTMAN | B121: BOS | C121: D | D121: 17 | E121: 13.96 | F121: 0 | G121: 0 | H121: 1.01 | I121: 1.01 | K121: CODYFRANSON | L121: NSH | M121: D | N121: 67 | O121: 15.45 | P121: 0.12 | Q121: 0.46 | R121: 0.46 | S121: 1.04 | U121: CAMATKINSON | V121: CBJ | W121: RW | X121: 64 | Y121: 13.45 | Z121: 0.7 | AA121: 0.35 | AB121: 0.35 | AC121: 1.39
A122: JASONPOMINVILLE | B122: MIN | C122: LW | D122: 67 | E122: 14.27 | F122: 0.82 | G122: 0.82 | H122: 0.38 | I122: 2.01 | K122: DALTONPROUT | L122: CBJ | M122: D | N122: 51 | O122: 15.44 | P122: 0 | Q122: 0.15 | R122: 0.3 | S122: 0.46 | U122: MARIANGABORIK | V122: L.A | W122: LW | X122: 54 | Y122: 13.43 | Z122: 0.74 | AA122: 0.66 | AB122: 0.25 | AC122: 1.66
A123: TOREYKRUG | B123: BOS | C123: D | D123: 56 | E123: 15.93 | F123: 0.54 | G123: 0.34 | H123: 0.34 | I123: 1.21 | K123: MARKSTUART | L123: WPG | M123: D | N123: 56 | O123: 15.33 | P123: 0.07 | Q123: 0.35 | R123: 0.21 | S123: 0.63 | U123: DUSTINBROWN | V123: L.A | W123: RW | X123: 67 | Y123: 13.42 | Z123: 0.6 | AA123: 0.67 | AB123: 0 | AC123: 1.27
A124: MATTHEWCARLE | B124: T.B | C124: D | D124: 49 | E124: 17.15 | F124: 0.21 | G124: 0.36 | H124: 0.36 | I124: 0.93 | K124: CLAYTONSTONER | L124: ANA | M124: D | N124: 62 | O124: 15.32 | P124: 0.06 | Q124: 0.38 | R124: 0 | S124: 0.44 | U124: PATRICEBERGERON | V124: BOS | W124: C | X124: 59 | Y124: 13.39 | Z124: 0.99 | AA124: 0.91 | AB124: 0.46 | AC124: 2.35
A125: ANDREBURAKOVSKY | B125: WSH | C125: LW | D125: 49 | E125: 11.49 | F125: 0.75 | G125: 0.64 | H125: 0.75 | I125: 2.13 | K125: LUKESCHENN | L125: PHI | M125: D | N125: 57 | O125: 15.29 | P125: 0.21 | Q125: 0.34 | R125: 0.34 | S125: 0.89 | U125: TOMMYWINGELS | V125: S.J | W125: C | X125: 62 | Y125: 13.39 | Z125: 0.65 | AA125: 0.29 | AB125: 0.36 | AC125: 1.3
A126: PASCALDUPUIS | B126: PIT | C126: LW | D126: 16 | E126: 12.43 | F126: 1.51 | G126: 0.3 | H126: 0.6 | I126: 2.41 | K126: ANDREBENOIT | L126: BUF | M126: D | N126: 48 | O126: 15.27 | P126: 0 | Q126: 0.08 | R126: 0.41 | S126: 0.49 | U126: MATHIEUPERREAULT | V126: WPG | W126: C | X126: 54 | Y126: 13.38 | Z126: 0.83 | AA126: 0.66 | AB126: 0.25 | AC126: 1.74
A127: COLTONSCEVIOUR | B127: DAL | C127: RW | D127: 59 | E127: 11.25 | F127: 0.63 | G127: 0.36 | H127: 0.63 | I127: 1.63 | K127: JAREDCOWEN | L127: OTT | M127: D | N127: 51 | O127: 15.25 | P127: 0.23 | Q127: 0.15 | R127: 0.23 | S127: 0.62 | U127: JOELWARD | V127: WSH | W127: RW | X127: 69 | Y127: 13.38 | Z127: 0.59 | AA127: 0.39 | AB127: 0.2 | AC127: 1.17
A128: KRISVERSTEEG | B128: CHI | C128: RW | D128: 46 | E128: 13.72 | F128: 1.05 | G128: 1.05 | H128: 0.38 | I128: 2.47 | K128: JORDIEBENN | L128: DAL | M128: D | N128: 61 | O128: 15.16 | P128: 0.06 | Q128: 0.19 | R128: 0.45 | S128: 0.71 | U128: ELIASLINDHOLM | V128: CAR | W128: C | X128: 64 | Y128: 13.36 | Z128: 0.56 | AA128: 0.49 | AB128: 0.21 | AC128: 1.26
A129: BENCHIAROT | B129: WPG | C129: D | D129: 33 | E129: 15.48 | F129: 0.12 | G129: 0.35 | H129: 0.35 | I129: 0.82 | K129: SETHJONES | L129: NSH | M129: D | N129: 70 | O129: 15.13 | P129: 0.17 | Q129: 0.28 | R129: 0.17 | S129: 0.62 | U129: RADIMVRBATA | V129: VAN | W129: RW | X129: 65 | Y129: 13.35 | Z129: 1.11 | AA129: 0.55 | AB129: 0.21 | AC129: 1.87
A130: RYANCALLAHAN | B130: T.B | C130: RW | D130: 63 | E130: 14.31 | F130: 0.67 | G130: 0.93 | H130: 0.47 | I130: 2.06 | K130: NICKLASGROSSMAN | L130: PHI | M130: D | N130: 57 | O130: 15.08 | P130: 0.35 | Q130: 0 | R130: 0.42 | S130: 0.77 | U130: JOHNMITCHELL | V130: COL | W130: C | X130: 53 | Y130: 13.35 | Z130: 0.42 | AA130: 0.68 | AB130: 0.51 | AC130: 1.61
A131: KEVINSHATTENKIRK | B131: STL | C131: D | D131: 49 | E131: 16.73 | F131: 0.29 | G131: 0.44 | H131: 0.37 | I131: 1.1 | K131: MICHALROZSIVAL | L131: CHI | M131: D | N131: 52 | O131: 15.05 | P131: 0.08 | Q131: 0.31 | R131: 0.38 | S131: 0.77 | U131: MARTINERAT | V131: PHX | W131: RW | X131: 65 | Y131: 13.34 | Z131: 0.42 | AA131: 0.55 | AB131: 0.42 | AC131: 1.38
A132: RILEYSHEAHAN | B132: DET | C132: C | D132: 66 | E132: 11.95 | F132: 0.38 | G132: 0.53 | H132: 0.53 | I132: 1.45 | K132: ROBSCUDERI | L132: PIT | M132: D | N132: 68 | O132: 15.02 | P132: 0 | Q132: 0.18 | R132: 0.18 | S132: 0.35 | U132: JONATHANHUBERDEAU | V132: FLA | W132: C | X132: 60 | Y132: 13.34 | Z132: 0.67 | AA132: 0.97 | AB132: 0.52 | AC132: 2.17
A133: EMERSONETEM | B133: ANA | C133: C | D133: 39 | E133: 11.27 | F133: 0.68 | G133: 0.41 | H133: 0.27 | I133: 1.36 | K133: MARKFAYNE | L133: EDM | M133: D | N133: 63 | O133: 14.98 | P133: 0.13 | Q133: 0.06 | R133: 0.19 | S133: 0.38 | U133: WAYNESIMMONDS | V133: PHI | W133: RW | X133: 70 | Y133: 13.33 | Z133: 0.77 | AA133: 0.39 | AB133: 0.39 | AC133: 1.54
A134: SCOTTHARRINGTON | B134: PIT | C134: D | D134: 10 | E134: 13.26 | F134: 0 | G134: 0 | H134: 0 | I134: 0 | K134: SIMONDESPRES | L134: ANA | M134: D | N134: 65 | O134: 14.89 | P134: 0.06 | Q134: 0.43 | R134: 0.37 | S134: 0.87 | U134: PATRICKSHARP | V134: CHI | W134: RW | X134: 53 | Y134: 13.31 | Z134: 0.26 | AA134: 0.85 | AB134: 0.68 | AC134: 1.79
A135: STEVENSTAMKOS | B135: T.B | C135: C | D135: 68 | E135: 14.99 | F135: 1.53 | G135: 0.71 | H135: 0.12 | I135: 2.36 | K135: CODYCECI | L135: OTT | M135: D | N135: 65 | O135: 14.84 | P135: 0.19 | Q135: 0.31 | R135: 0.31 | S135: 0.81 | U135: MARCUSFOLIGNO | V135: BUF | W135: LW | X135: 44 | Y135: 13.29 | Z135: 0.62 | AA135: 0.62 | AB135: 0.1 | AC135: 1.33
A136: NICKLASBACKSTROM | B136: WSH | C136: C | D136: 69 | E136: 15.48 | F136: 0.73 | G136: 0.67 | H136: 0.62 | I136: 2.02 | K136: SERGEIGONCHAR | L136: MTL | M136: D | N136: 47 | O136: 14.78 | P136: 0.09 | Q136: 0.35 | R136: 0.43 | S136: 0.86 | U136: NATHANGERBE | V136: CAR | W136: C | X136: 61 | Y136: 13.25 | Z136: 0.3 | AA136: 0.52 | AB136: 0.3 | AC136: 1.11
A137: VICTORHEDMAN | B137: T.B | C137: D | D137: 48 | E137: 16.81 | F137: 0.52 | G137: 0.52 | H137: 0.59 | I137: 1.64 | K137: MIKEGREEN | L137: WSH | M137: D | N137: 59 | O137: 14.72 | P137: 0.35 | Q137: 0.62 | R137: 0.41 | S137: 1.38 | U137: ALEXANDERKILLORN | V137: T.B | W137: C | X137: 60 | Y137: 13.24 | Z137: 0.91 | AA137: 0.83 | AB137: 0.6 | AC137: 2.34
A138: DWIGHTKING | B138: L.A | C138: LW | D138: 66 | E138: 12.63 | F138: 0.65 | G138: 0.36 | H138: 0.14 | I138: 1.15 | K138: NICKHOLDEN | L138: COL | M138: D | N138: 63 | O138: 14.72 | P138: 0.19 | Q138: 0.13 | R138: 0.13 | S138: 0.45 | U138: CLARKEMACARTHUR | V138: OTT | W138: LW | X138: 52 | Y138: 13.24 | Z138: 0.7 | AA138: 0.61 | AB138: 0.35 | AC138: 1.66
A139: ADAMLOWRY | B139: WPG | C139: LW | D139: 66 | E139: 12.42 | F139: 0.59 | G139: 0.59 | H139: 0 | I139: 1.17 | K139: ANDREJMESZAROS | L139: BUF | M139: D | N139: 48 | O139: 14.68 | P139: 0.26 | Q139: 0.26 | R139: 0.26 | S139: 0.77 | U139: COLINWILSON | V139: NSH | W139: C | X139: 66 | Y139: 13.22 | Z139: 1.1 | AA139: 0.96 | AB139: 0.14 | AC139: 2.2
A140: TYLERJOHNSON | B140: T.B | C140: C | D140: 66 | E140: 12.86 | F140: 1.06 | G140: 1.34 | H140: 0.78 | I140: 3.18 | K140: ERIKGUDBRANSON | L140: FLA | M140: D | N140: 60 | O140: 14.67 | P140: 0.2 | Q140: 0 | R140: 0.2 | S140: 0.41 | U140: CODYEAKIN | V140: DAL | W140: C | X140: 63 | Y140: 13.21 | Z140: 0.72 | AA140: 0.22 | AB140: 0.72 | AC140: 1.66
A141: LOUIERIKSSON | B141: BOS | C141: LW | D141: 59 | E141: 13.78 | F141: 0.59 | G141: 0.74 | H141: 0.44 | I141: 1.77 | K141: CONNORMURPHY | L141: PHX | M141: D | N141: 60 | O141: 14.67 | P141: 0.2 | Q141: 0.07 | R141: 0.14 | S141: 0.41 | U141: NICKBJUGSTAD | V141: FLA | W141: C | X141: 63 | Y141: 13.2 | Z141: 1.08 | AA141: 0.22 | AB141: 0.58 | AC141: 1.88
A142: IANCOLE | B142: PIT | C142: D | D142: 60 | E142: 14.19 | F142: 0.21 | G142: 0.07 | H142: 0.35 | I142: 0.63 | K142: STEPHANEROBIDAS | L142: TOR | M142: D | N142: 51 | O142: 14.5 | P142: 0.08 | Q142: 0.08 | R142: 0.32 | S142: 0.49 | U142: BRADBOYES | V142: FLA | W142: RW | X142: 61 | Y142: 13.18 | Z142: 0.52 | AA142: 0.97 | AB142: 0.3 | AC142: 1.79
A143: JOHNKLINGBERG | B143: DAL | C143: D | D143: 50 | E143: 17.86 | F143: 0.54 | G143: 0.6 | H143: 0.27 | I143: 1.41 | K143: TIMGLEASON | L143: WSH | M143: D | N143: 61 | O143: 14.47 | P143: 0.07 | Q143: 0.2 | R143: 0.27 | S143: 0.54 | U143: LARSELLER | V143: MTL | W143: LW | X143: 64 | Y143: 13.15 | Z143: 0.71 | AA143: 0.29 | AB143: 0.21 | AC143: 1.21
A144: DERRICKPOULIOT | B144: PIT | C144: D | D144: 24 | E144: 14.28 | F144: 0.18 | G144: 0.18 | H144: 0.18 | I144: 0.53 | K144: YANNICKWEBER | L144: VAN | M144: D | N144: 51 | O144: 14.31 | P144: 0.33 | Q144: 0.25 | R144: 0.33 | S144: 0.9 | U144: JASONSPEZZA | V144: DAL | W144: C | X144: 67 | Y144: 13.14 | Z144: 0.61 | AA144: 0.68 | AB144: 0.68 | AC144: 1.98
A145: TYLERSEGUIN | B145: DAL | C145: C | D145: 61 | E145: 15.05 | F145: 1.31 | G145: 0.98 | H145: 0.13 | I145: 2.42 | K145: KEVINCONNAUTON | L145: CBJ | M145: D | N145: 50 | O145: 14.23 | P145: 0.51 | Q145: 0.25 | R145: 0.34 | S145: 1.1 | U145: CHRISKELLY | V145: BOS | W145: C | X145: 58 | Y145: 13.12 | Z145: 0.47 | AA145: 0.55 | AB145: 0.79 | AC145: 1.81
A146: JASONDEMERS | B146: DAL | C146: D | D146: 66 | E146: 15.47 | F146: 0.12 | G146: 0.29 | H146: 0.47 | I146: 0.88 | K146: IANCOLE | L146: PIT | M146: D | N146: 60 | O146: 14.19 | P146: 0.21 | Q146: 0.07 | R146: 0.35 | S146: 0.63 | U146: GUSTAVNYQUIST | V146: DET | W146: C | X146: 66 | Y146: 13.08 | Z146: 0.49 | AA146: 0.69 | AB146: 0.28 | AC146: 1.46
A147: SEANBERGENHEIM | B147: MIN | C147: LW | D147: 50 | E147: 12.69 | F147: 0.85 | G147: 0.47 | H147: 0.28 | I147: 1.61 | K147: BARRETJACKMAN | L147: STL | M147: D | N147: 68 | O147: 14.19 | P147: 0.12 | Q147: 0.25 | R147: 0.31 | S147: 0.68 | U147: MATTCALVERT | V147: CBJ | W147: LW | X147: 47 | Y147: 13.07 | Z147: 0.98 | AA147: 0.39 | AB147: 0.29 | AC147: 1.66
A148: KYLECLIFFORD | B148: L.A | C148: LW | D148: 65 | E148: 10.56 | F148: 0.26 | G148: 0.44 | H148: 0.26 | I148: 0.96 | K148: SCOTTHANNAN | L148: S.J | M148: D | N148: 53 | O148: 14.16 | P148: 0.08 | Q148: 0.24 | R148: 0.16 | S148: 0.48 | U148: DREWSTAFFORD | V148: WPG | W148: RW | X148: 62 | Y148: 13.06 | Z148: 0.74 | AA148: 0.59 | AB148: 0.44 | AC148: 1.78
A149: PAULPOSTMA | B149: WPG | C149: D | D149: 42 | E149: 12.7 | F149: 0 | G149: 0.11 | H149: 0.34 | I149: 0.45 | K149: NATHANBEAULIEU | L149: MTL | M149: D | N149: 53 | O149: 14.14 | P149: 0.08 | Q149: 0.08 | R149: 0.24 | S149: 0.4 | U149: CARLHAGELIN | V149: NYR | W149: LW | X149: 66 | Y149: 13.05 | Z149: 0.91 | AA149: 0.49 | AB149: 0.42 | AC149: 1.81
A150: ANDREWLADD | B150: WPG | C150: LW | D150: 67 | E150: 14.26 | F150: 0.75 | G150: 1.26 | H150: 0.31 | I150: 2.32 | K150: RYANSTANTON | L150: VAN | M150: D | N150: 51 | O150: 14.13 | P150: 0.17 | Q150: 0.33 | R150: 0.33 | S150: 0.83 | U150: EDWARDPURCELL | V150: EDM | W150: C | X150: 63 | Y150: 13.04 | Z150: 0.29 | AA150: 0.66 | AB150: 0.29 | AC150: 1.24
A151: HENRIKZETTERBERG | B151: DET | C151: C | D151: 62 | E151: 15.09 | F151: 0.71 | G151: 0.71 | H151: 0.45 | I151: 1.86 | K151: JAYHARRISON | L151: WPG | M151: D | N151: 46 | O151: 13.96 | P151: 0.19 | Q151: 0.37 | R151: 0.09 | S151: 0.65 | U151: RICKNASH | V151: NYR | W151: RW | X151: 65 | Y151: 13.04 | Z151: 2.05 | AA151: 0.85 | AB151: 0.35 | AC151: 3.26
A152: KEVINHAYES | B152: NYR | C152: LW | D152: 63 | E152: 11.7 | F152: 0.81 | G152: 1.3 | H152: 0.08 | I152: 2.2 | K152: NATHANGUENIN | L152: COL | M152: D | N152: 61 | O152: 13.84 | P152: 0.14 | Q152: 0.14 | R152: 0.64 | S152: 0.92 | U152: PATRIKELIAS | V152: N.J | W152: LW | X152: 56 | Y152: 13.04 | Z152: 0.57 | AA152: 0.57 | AB152: 0.49 | AC152: 1.64
A153: MATTBELESKY | B153: ANA | C153: LW | D153: 60 | E153: 12.38 | F153: 1.37 | G153: 0.32 | H153: 0.4 | I153: 2.1 | K153: BRAYDENMCNABB | L153: L.A | M153: D | N153: 61 | O153: 13.78 | P153: 0.14 | Q153: 0.43 | R153: 0.64 | S153: 1.21 | U153: DANIELWINNIK | V153: PIT | W153: LW | X153: 66 | Y153: 13.03 | Z153: 0.42 | AA153: 0.98 | AB153: 0.35 | AC153: 1.74
A154: JACOBTROUBA | B154: WPG | C154: D | D154: 51 | E154: 17.13 | F154: 0.14 | G154: 0.27 | H154: 0.27 | I154: 0.69 | K154: MATTGREENE | L154: L.A | M154: D | N154: 67 | O154: 13.55 | P154: 0.26 | Q154: 0 | R154: 0.26 | S154: 0.53 | U154: JEFFCARTER | V154: L.A | W154: C | X154: 67 | Y154: 13.02 | Z154: 0.89 | AA154: 0.69 | AB154: 0.83 | AC154: 2.41
A155: NATESCHMIDT | B155: WSH | C155: D | D155: 37 | E155: 13.43 | F155: 0 | G155: 0 | H155: 0.36 | I155: 0.36 | K155: MARKBOROWIECKI | L155: OTT | M155: D | N155: 48 | O155: 13.52 | P155: 0.09 | Q155: 0.37 | R155: 0.46 | S155: 0.92 | U155: MATTHEWNIETO | V155: S.J | W155: LW | X155: 59 | Y155: 13.01 | Z155: 0.47 | AA155: 0.55 | AB155: 0.31 | AC155: 1.33
A156: LIAMO'BRIEN | B156: WSH | C156: C | D156: 13 | E156: 7.54 | F156: 0.61 | G156: 0.61 | H156: 0 | I156: 1.22 | K156: ERICGELINAS | L156: N.J | M156: D | N156: 50 | O156: 13.27 | P156: 0.27 | Q156: 0.27 | R156: 0.18 | S156: 0.72 | U156: JIMMYHAYES | V156: FLA | W156: RW | X156: 53 | Y156: 12.99 | Z156: 1.13 | AA156: 0.35 | AB156: 0.26 | AC156: 1.74
A157: BRIANCAMPBELL | B157: FLA | C157: D | D157: 63 | E157: 18.22 | F157: 0.1 | G157: 0.31 | H157: 0.21 | I157: 0.63 | K157: ERICGRYBA | L157: OTT | M157: D | N157: 60 | O157: 13.03 | P157: 0 | Q157: 0.54 | R157: 0.23 | S157: 0.77 | U157: BRANDONSUTTER | V157: PIT | W157: C | X157: 66 | Y157: 12.98 | Z157: 0.63 | AA157: 0.28 | AB157: 0.35 | AC157: 1.26
A158: BRYANLITTLE | B158: WPG | C158: C | D158: 62 | E158: 13.94 | F158: 0.83 | G158: 0.42 | H158: 0.56 | I158: 1.8 | K158: DERYKENGELLAND | L158: CGY | M158: D | N158: 61 | O158: 12.37 | P158: 0 | Q158: 0.08 | R158: 0.32 | S158: 0.4 | U158: TOMASTATAR | V158: DET | W158: C | X158: 66 | Y158: 12.97 | Z158: 1.12 | AA158: 0.49 | AB158: 0.35 | AC158: 1.96
A159: BRENDANGALLAGHER | B159: MTL | C159: RW | D159: 69 | E159: 13.76 | F159: 1.01 | G159: 0.95 | H159: 0.19 | I159: 2.15 | K159: NICOLASDESLAURIERS | L159: BUF | M159: D | N159: 69 | O159: 10.87 | P159: 0.4 | Q159: 0.32 | R159: 0.32 | S159: 1.04 | U159: CHARLIECOYLE | V159: MIN | W159: RW | X159: 67 | Y159: 12.97 | Z159: 0.55 | AA159: 0.62 | AB159: 0.55 | AC159: 1.73
A160: MATTGREENE | B160: L.A | C160: D | D160: 67 | E160: 13.55 | F160: 0.26 | G160: 0 | H160: 0.26 | I160: 0.53 | K160: NATEPROSSER | L160: MIN | M160: D | N160: 57 | O160: 10.69 | P160: 0.2 | Q160: 0.2 | R160: 0.2 | S160: 0.59 | U160: ONDREJPALAT | V160: T.B | W160: LW | X160: 62 | Y160: 12.94 | Z160: 0.52 | AA160: 1.2 | AB160: 1.2 | AC160: 2.92
A161: ELIASLINDHOLM | B161: CAR | C161: C | D161: 64 | E161: 13.36 | F161: 0.56 | G161: 0.49 | H161: 0.21 | I161: 1.26 | U161: DAINIUSZUBRUS | V161: N.J | W161: C | X161: 61 | Y161: 12.94 | Z161: 0.23 | AA161: 0.15 | AB161: 0.15 | AC161: 0.53
A162: MICHAELFROLIK | B162: WPG | C162: LW | D162: 67 | E162: 13.79 | F162: 0.65 | G162: 0.58 | H162: 0.52 | I162: 1.75 | U162: JORILEHTERA | V162: STL | W162: LW | X162: 62 | Y162: 12.92 | Z162: 0.67 | AA162: 1.05 | AB162: 0.37 | AC162: 2.1
A163: JASONZUCKER | B163: MIN | C163: LW | D163: 46 | E163: 12.72 | F163: 1.54 | G163: 0.41 | H163: 0 | I163: 1.95 | U163: JOECOLBORNE | V163: CGY | W163: LW | X163: 49 | Y163: 12.9 | Z163: 0.38 | AA163: 0.95 | AB163: 0.38 | AC163: 1.71
A164: MATSZUCCARELLO | B164: NYR | C164: RW | D164: 64 | E164: 14.48 | F164: 0.78 | G164: 0.71 | H164: 0.65 | I164: 2.14 | U164: JAKOBSILFVERBERG | V164: ANA | W164: RW | X164: 70 | Y164: 12.87 | Z164: 0.53 | AA164: 0.67 | AB164: 0.53 | AC164: 1.73
A165: NATHANGERBE | B165: CAR | C165: C | D165: 61 | E165: 13.25 | F165: 0.3 | G165: 0.52 | H165: 0.3 | I165: 1.11 | U165: TOMASHERTL | V165: S.J | W165: C | X165: 69 | Y165: 12.86 | Z165: 0.68 | AA165: 0.27 | AB165: 0.68 | AC165: 1.62
A166: BRANDONPIRRI | B166: FLA | C166: C | D166: 32 | E166: 12.53 | F166: 1.2 | G166: 0.15 | H166: 0.15 | I166: 1.5 | U166: TYLERJOHNSON | V166: T.B | W166: C | X166: 66 | Y166: 12.86 | Z166: 1.06 | AA166: 1.34 | AB166: 0.78 | AC166: 3.18
A167: TEUVOTERAVAINEN | B167: CHI | C167: LW | D167: 22 | E167: 11.8 | F167: 0.69 | G167: 0.69 | H167: 0 | I167: 1.39 | U167: ERICFEHR | V167: WSH | W167: RW | X167: 65 | Y167: 12.86 | Z167: 0.86 | AA167: 0.43 | AB167: 0.22 | AC167: 1.51
A168: MAGNUSPAAJARVI-SVENSSON | B168: STL | C168: LW | D168: 10 | E168: 9.48 | F168: 0 | G168: 0 | H168: 0 | I168: 0 | U168: MARKARCOBELLO | V168: PHX | W168: RW | X168: 62 | Y168: 12.84 | Z168: 0.68 | AA168: 0.23 | AB168: 0.3 | AC168: 1.21
A169: MICHALROZSIVAL | B169: CHI | C169: D | D169: 52 | E169: 15.05 | F169: 0.08 | G169: 0.31 | H169: 0.38 | I169: 0.77 | U169: THOMASVANEK | V169: MIN | W169: LW | X169: 66 | Y169: 12.82 | Z169: 0.85 | AA169: 0.99 | AB169: 0.21 | AC169: 2.06
A170: CALVINDEHAAN | B170: NYI | C170: D | D170: 54 | E170: 16.7 | F170: 0 | G170: 0.27 | H170: 0.33 | I170: 0.6 | U170: JOFFREYLUPUL | V170: TOR | W170: RW | X170: 44 | Y170: 12.82 | Z170: 0.74 | AA170: 0.53 | AB170: 0.43 | AC170: 1.7
A171: VINCENTTROCHECK | B171: FLA | C171: C | D171: 34 | E171: 12.63 | F171: 0.56 | G171: 1.12 | H171: 0.28 | I171: 1.96 | U171: MIKAZIBANEJAD | V171: OTT | W171: C | X171: 64 | Y171: 12.78 | Z171: 0.95 | AA171: 0.51 | AB171: 0.22 | AC171: 1.69
A172: MARTINERAT | B172: PHX | C172: RW | D172: 65 | E172: 13.34 | F172: 0.42 | G172: 0.55 | H172: 0.42 | I172: 1.38 | U172: PATRIKBERGLUND | V172: STL | W172: C | X172: 64 | Y172: 12.77 | Z172: 0.59 | AA172: 0.44 | AB172: 0.37 | AC172: 1.4
A173: BRENTSEABROOK | B173: CHI | C173: D | D173: 67 | E173: 17.16 | F173: 0.16 | G173: 0.31 | H173: 0.26 | I173: 0.73 | U173: NICKSPALING | V173: PIT | W173: C | X173: 68 | Y173: 12.76 | Z173: 0.55 | AA173: 0.35 | AB173: 0.55 | AC173: 1.45
A174: MARCUSJOHANSSON | B174: WSH | C174: C | D174: 69 | E174: 12.71 | F174: 0.96 | G174: 0.41 | H174: 0.27 | I174: 1.64 | U174: MICHAELRYDER | V174: N.J | W174: RW | X174: 46 | Y174: 12.74 | Z174: 0.61 | AA174: 0.82 | AB174: 0.2 | AC174: 1.64
A175: MARKBARBERIO | B175: T.B | C175: D | D175: 40 | E175: 15.57 | F175: 0.1 | G175: 0 | H175: 0.29 | I175: 0.39 | U175: JASONZUCKER | V175: MIN | W175: LW | X175: 46 | Y175: 12.72 | Z175: 1.54 | AA175: 0.41 | AB175: 0 | AC175: 1.95
A176: HENRIKSEDIN | B176: VAN | C176: C | D176: 68 | E176: 14.16 | F176: 0.56 | G176: 0.56 | H176: 0.87 | I176: 1.99 | U176: MARCUSJOHANSSON | V176: WSH | W176: C | X176: 69 | Y176: 12.71 | Z176: 0.96 | AA176: 0.41 | AB176: 0.27 | AC176: 1.64
A177: JEREMYMORIN | B177: CBJ | C177: C | D177: 32 | E177: 9.82 | F177: 0.19 | G177: 0.38 | H177: 0 | I177: 0.57 | U177: CRAIGSMITH | V177: NSH | W177: C | X177: 70 | Y177: 12.7 | Z177: 0.94 | AA177: 0.54 | AB177: 0.54 | AC177: 2.02
A178: CALCLUTTERBUCK | B178: NYI | C178: RW | D178: 59 | E178: 10.94 | F178: 0.37 | G178: 0.46 | H178: 0.09 | I178: 0.93 | U178: NICKBONINO | V178: VAN | W178: C | X178: 63 | Y178: 12.7 | Z178: 0.82 | AA178: 0.82 | AB178: 0.45 | AC178: 2.1
A179: MARKSCHEIFELE | B179: WPG | C179: C | D179: 67 | E179: 14.77 | F179: 0.42 | G179: 0.36 | H179: 0.61 | I179: 1.39 | U179: NAILYAKUPOV | V179: EDM | W179: RW | X179: 62 | Y179: 12.7 | Z179: 0.38 | AA179: 0.53 | AB179: 0.15 | AC179: 1.07
A180: VICTORRASK | B180: CAR | C180: C | D180: 64 | E180: 12.64 | F180: 0.67 | G180: 0.22 | H180: 0.3 | I180: 1.19 | U180: SEANBERGENHEIM | V180: MIN | W180: LW | X180: 50 | Y180: 12.69 | Z180: 0.85 | AA180: 0.47 | AB180: 0.28 | AC180: 1.61
A181: BRENTBURNS | B181: S.J | C181: D | D181: 69 | E181: 18.07 | F181: 0.39 | G181: 0.48 | H181: 0.34 | I181: 1.2 | U181: VICTORRASK | V181: CAR | W181: C | X181: 64 | Y181: 12.64 | Z181: 0.67 | AA181: 0.22 | AB181: 0.3 | AC181: 1.19
A182: ZACHPARISE | B182: MIN | C182: LW | D182: 61 | E182: 14.74 | F182: 1 | G182: 0.67 | H182: 0.73 | I182: 2.4 | U182: JARRETSTOLL | V182: L.A | W182: C | X182: 64 | Y182: 12.64 | Z182: 0.15 | AA182: 0.15 | AB182: 0.3 | AC182: 0.59
A183: BRANDONDUBINSKY | B183: CBJ | C183: C | D183: 36 | E183: 13.13 | F183: 0.89 | G183: 0.38 | H183: 0.89 | I183: 2.16 | U183: DWIGHTKING | V183: L.A | W183: LW | X183: 66 | Y183: 12.63 | Z183: 0.65 | AA183: 0.36 | AB183: 0.14 | AC183: 1.15
A184: NIKOLAIKULEMIN | B184: NYI | C184: RW | D184: 63 | E184: 12.57 | F184: 0.68 | G184: 0.23 | H184: 0.38 | I184: 1.29 | U184: JOSHJOORIS | V184: CGY | W184: C | X184: 48 | Y184: 12.63 | Z184: 0.49 | AA184: 0.1 | AB184: 0.59 | AC184: 1.19
A185: ROBERTBORTUZZO | B185: STL | C185: D | D185: 43 | E185: 13.88 | F185: 0.2 | G185: 0.3 | H185: 0.2 | I185: 0.7 | U185: MIKHAILGRABOVSKI | V185: NYI | W185: C | X185: 49 | Y185: 12.62 | Z185: 0.87 | AA185: 0.29 | AB185: 0.49 | AC185: 1.65
A186: DERICKBRASSARD | B186: NYR | C186: C | D186: 64 | E186: 14.05 | F186: 0.6 | G186: 0.73 | H186: 1 | I186: 2.34 | U186: BRADRICHARDS | V186: CHI | W186: C | X186: 64 | Y186: 12.62 | Z186: 0.67 | AA186: 0.74 | AB186: 0.67 | AC186: 2.08
A187: FRANSNIELSEN | B187: NYI | C187: C | D187: 62 | E187: 11.39 | F187: 0.59 | G187: 0.51 | H187: 0.51 | I187: 1.61 | U187: BENOITPOULIOT | V187: EDM | W187: C | X187: 40 | Y187: 12.62 | Z187: 1.31 | AA187: 0.59 | AB187: 0.24 | AC187: 2.14
A188: GRANTCLITSOME | B188: WPG | C188: D | D188: 24 | E188: 14.36 | F188: 0 | G188: 0.35 | H188: 0.17 | I188: 0.52 | U188: RILEYNASH | V188: CAR | W188: C | X188: 59 | Y188: 12.61 | Z188: 0.48 | AA188: 0.4 | AB188: 0.4 | AC188: 1.29
A189: MIKEGREEN | B189: WSH | C189: D | D189: 59 | E189: 14.72 | F189: 0.35 | G189: 0.62 | H189: 0.41 | I189: 1.38 | U189: LAURIKORPIKOSKI | V189: PHX | W189: LW | X189: 62 | Y189: 12.61 | Z189: 0.08 | AA189: 0.31 | AB189: 0.46 | AC189: 0.84
A190: DANNYDEKEYSER | B190: DET | C190: D | D190: 64 | E190: 16.47 | F190: 0.11 | G190: 0.17 | H190: 0.68 | I190: 0.97 | U190: MASONRAYMOND | V190: CGY | W190: LW | X190: 43 | Y190: 12.61 | Z190: 1.33 | AA190: 0.33 | AB190: 0.33 | AC190: 1.99
A191: BRYANALLEN | B191: MTL | C191: D | D191: 11 | E191: 13.87 | F191: 0 | G191: 0.39 | H191: 0.39 | I191: 0.79 | U191: JAMESSHEPPARD | V191: NYR | W191: C | X191: 58 | Y191: 12.6 | Z191: 0.41 | AA191: 0.41 | AB191: 0.33 | AC191: 1.15
A192: DANIELSEDIN | B192: VAN | C192: LW | D192: 68 | E192: 14.04 | F192: 0.5 | G192: 0.94 | H192: 0.57 | I192: 2.01 | U192: ANDREWCOGLIANO | V192: ANA | W192: C | X192: 71 | Y192: 12.58 | Z192: 0.6 | AA192: 0.67 | AB192: 0.13 | AC192: 1.41
A193: AARONEKBLAD | B193: FLA | C193: D | D193: 63 | E193: 17.79 | F193: 0.32 | G193: 0.48 | H193: 0.54 | I193: 1.34 | U193: NIKOLAIKULEMIN | V193: NYI | W193: RW | X193: 63 | Y193: 12.57 | Z193: 0.68 | AA193: 0.23 | AB193: 0.38 | AC193: 1.29
A194: DANIELCLEARY | B194: DET | C194: RW | D194: 13 | E194: 8.48 | F194: 0.54 | G194: 0 | H194: 0.54 | I194: 1.09 | U194: MICHAELRAFFL | V194: PHI | W194: LW | X194: 55 | Y194: 12.55 | Z194: 1.39 | AA194: 0.17 | AB194: 0.35 | AC194: 1.91
A195: DUSTINBROWN | B195: L.A | C195: RW | D195: 67 | E195: 13.42 | F195: 0.6 | G195: 0.67 | H195: 0 | I195: 1.27 | U195: DEREKROY | V195: EDM | W195: C | X195: 53 | Y195: 12.48 | Z195: 0.54 | AA195: 0.91 | AB195: 0.27 | AC195: 1.72
A196: RYANWHITE | B196: PHI | C196: C | D196: 22 | E196: 10.96 | F196: 0.5 | G196: 0.75 | H196: 0.5 | I196: 1.74 | U196: JIRISEKAC | V196: MTL | W196: RW | X196: 59 | Y196: 12.47 | Z196: 0.49 | AA196: 0.24 | AB196: 0.73 | AC196: 1.47
A197: MARKSTONE | B197: OTT | C197: RW | D197: 64 | E197: 12.45 | F197: 0.98 | G197: 0.98 | H197: 0.6 | I197: 2.56 | U197: MARKSTONE | V197: OTT | W197: RW | X197: 64 | Y197: 12.45 | Z197: 0.98 | AA197: 0.98 | AB197: 0.6 | AC197: 2.56
A198: KYLECUMISKEY | B198: CHI | C198: D | D198: 7 | E198: 12.24 | F198: 0 | G198: 0 | H198: 0 | I198: 0 | U198: PIERREPARENTEAU | V198: MTL | W198: C | X198: 45 | Y198: 12.45 | Z198: 0.43 | AA198: 0.54 | AB198: 0.43 | AC198: 1.39
A199: ERIKKARLSSON | B199: OTT | C199: D | D199: 66 | E199: 20.54 | F199: 0.53 | G199: 0.27 | H199: 0.35 | I199: 1.15 | U199: NIKITAKUCHEROV | V199: T.B | W199: RW | X199: 68 | Y199: 12.44 | Z199: 1.63 | AA199: 0.85 | AB199: 0.5 | AC199: 2.98
A200: MARKARCOBELLO | B200: PHX | C200: RW | D200: 62 | E200: 12.84 | F200: 0.68 | G200: 0.23 | H200: 0.3 | I200: 1.21 | U200: MILANMICHALEK | V200: OTT | W200: LW | X200: 61 | Y200: 12.43 | Z200: 0.47 | AA200: 0.63 | AB200: 0.32 | AC200: 1.42
... 563 more rows

Sheet 1 Yr - FWDS
A1: Player Name | B1: Team | C1: GP | D1: TOI | E1: G | F1: A | G1: 1stA | H1: Points | I1: Shots | J1: iFenwick | K1: iCorsi | L1: ShPct | M1: G/60 | N1: A/60 | O1: 1stA/60 | P1: Pts/60 | Q1: SOG/60 | R1: iFenwick/60 | S1: iCorsi/60 | T1: IGP | U1: IAP | V1: IPP | W1: min/iFenwick | X1: min/iCorsi
A2: TAVARES, JOHN | B2: NY Islanders | C2: 69 | D2: 44.99791667 | E2: 18 | F2: 23 | G2: 18 | H2: 41 | I2: 153 | J2: 213 | K2: 277 | L2: 11.76 | M2: 1 | N2: 1.28 | O2: 1 | P2: 2.28 | Q2: 8.5 | R2: 11.83 | S2: 15.39 | T2: 32.1 | U2: 41.1 | V2: 73.2 | W2: =((D2*1440)/J2)/1440 -> 0.2112578247 | X2: =((D2*1440)/K2)/1440 -> 0.1624473526
A3: EBERLE, JORDAN | B3: Edmonton | C3: 67 | D3: 43.14166667 | E3: 13 | F3: 19 | G3: 13 | H3: 32 | I3: 111 | J3: 147 | K3: 189 | L3: 11.71 | M3: 0.75 | N3: 1.1 | O3: 0.75 | P3: 1.85 | Q3: 6.43 | R3: 8.52 | S3: 10.95 | T3: 31 | U3: 45.2 | V3: 76.2 | W3: 0.2934807256 | X3: 0.2282627866
A4: GIROUX, CLAUDE | B4: Philadelphia | C4: 68 | D4: 42.92708333 | E4: 7 | F4: 17 | G4: 10 | H4: 24 | I4: 164 | J4: 210 | K4: 287 | L4: 4.27 | M4: 0.41 | N4: 0.99 | O4: 0.58 | P4: 1.4 | Q4: 9.55 | R4: 12.23 | S4: 16.71 | T4: 19.4 | U4: 47.2 | V4: 66.7 | W4: 0.2044146825 | X4: 0.1495717189
A5: NUGENT-HOPKINS, RYAN | B5: Edmonton | C5: 66 | D5: 42.36041667 | E5: 15 | F5: 15 | G5: 9 | H5: 30 | I5: 117 | J5: 149 | K5: 208 | L5: 12.82 | M5: 0.89 | N5: 0.89 | O5: 0.53 | P5: 1.77 | Q5: 6.91 | R5: 8.79 | S5: 12.28 | T5: 34.9 | U5: 34.9 | V5: 69.8 | W5: 0.2842980984 | X5: 0.2036558494
A6: RIBEIRO, MIKE | B6: Nashville | C6: 68 | D6: 42.01111111 | E6: 12 | F6: 27 | G6: 15 | H6: 39 | I6: 67 | J6: 94 | K6: 109 | L6: 17.91 | M6: 0.71 | N6: 1.61 | O6: 0.89 | P6: 2.32 | Q6: 3.99 | R6: 5.59 | S6: 6.49 | T6: 21.8 | U6: 49.1 | V6: 70.9 | W6: 0.4469267139 | X6: 0.3854230377
A7: BACKSTROM, NICKLAS | B7: Washington | C7: 67 | D7: 41.77013889 | E7: 13 | F7: 21 | G7: 10 | H7: 34 | I7: 94 | J7: 139 | K7: 164 | L7: 13.83 | M7: 0.78 | N7: 1.26 | O7: 0.6 | P7: 2.03 | Q7: 5.63 | R7: 8.32 | S7: 9.82 | T7: 29.5 | U7: 47.7 | V7: 77.3 | W7: 0.3005045963 | X7: 0.2546959688
A8: STAMKOS, STEVEN | B8: Tampa Bay | C8: 69 | D8: 41.47847222 | E8: 24 | F8: 14 | G8: 12 | H8: 38 | I8: 148 | J8: 217 | K8: 269 | L8: 16.22 | M8: 1.45 | N8: 0.84 | O8: 0.72 | P8: 2.29 | Q8: 8.92 | R8: 13.08 | S8: 16.21 | T8: 48 | U8: 28 | V8: 76 | W8: 0.1911450333 | X8: 0.154195064
A9: OVECHKIN, ALEX | B9: Washington | C9: 66 | D9: 41.28055556 | E9: 18 | F9: 14 | G9: 12 | H9: 32 | I9: 180 | J9: 271 | K9: 381 | L9: 10 | M9: 1.09 | N9: 0.85 | O9: 0.73 | P9: 1.94 | Q9: 10.9 | R9: 16.41 | S9: 23.07 | T9: 37.5 | U9: 29.2 | V9: 66.7 | W9: 0.1523267733 | X9: 0.1083479148
A10: DUCHENE, MATT | B10: Colorado | C10: 68 | D10: 41.20902778 | E10: 15 | F10: 21 | G10: 12 | H10: 36 | I10: 122 | J10: 174 | K10: 214 | L10: 12.3 | M10: 0.91 | N10: 1.27 | O10: 0.73 | P10: 2.18 | Q10: 7.4 | R10: 10.56 | S10: 12.98 | T10: 31.9 | U10: 44.7 | V10: 76.6 | W10: 0.236833493 | X10: 0.1925655504
A11: SCHEIFELE, MARK | B11: Winnipeg | C11: 68 | D11: 41.12569444 | E11: 8 | F11: 14 | G11: 7 | H11: 22 | I11: 111 | J11: 158 | K11: 201 | L11: 7.21 | M11: 0.49 | N11: 0.85 | O11: 0.43 | P11: 1.34 | Q11: 6.75 | R11: 9.6 | S11: 12.22 | T11: 20.5 | U11: 35.9 | V11: 56.4 | W11: 0.2602892053 | X11: 0.204605445
A12: PAVELSKI, JOE | B12: San Jose | C12: 68 | D12: 40.70208333 | E12: 13 | F12: 15 | G12: 8 | H12: 28 | I12: 124 | J12: 180 | K12: 225 | L12: 10.48 | M12: 0.8 | N12: 0.92 | O12: 0.49 | P12: 1.72 | Q12: 7.62 | R12: 11.06 | S12: 13.82 | T12: 31.7 | U12: 36.6 | V12: 68.3 | W12: 0.2261226852 | X12: 0.1808981481
A13: PACIORETTY, MAX | B13: Montreal | C13: 68 | D13: 40.40763889 | E13: 21 | F13: 18 | G13: 10 | H13: 39 | I13: 197 | J13: 265 | K13: 355 | L13: 10.66 | M13: 1.3 | N13: 1.11 | O13: 0.62 | P13: 2.41 | Q13: 12.19 | R13: 16.4 | S13: 21.96 | T13: 42 | U13: 36 | V13: 78 | W13: 0.1524816562 | X13: 0.1138243349
A14: VORACEK, JAKUB | B14: Philadelphia | C14: 69 | D14: 40.29861111 | E14: 8 | F14: 25 | G14: 13 | H14: 33 | I14: 117 | J14: 154 | K14: 222 | L14: 6.84 | M14: 0.5 | N14: 1.55 | O14: 0.81 | P14: 2.05 | Q14: 7.26 | R14: 9.55 | S14: 13.77 | T14: 20 | U14: 62.5 | V14: 82.5 | W14: 0.2616792929 | X14: 0.1815252753
A15: LANDESKOG, GABRIEL | B15: Colorado | C15: 68 | D15: 40.22361111 | E15: 12 | F15: 17 | G15: 11 | H15: 29 | I15: 132 | J15: 168 | K15: 216 | L15: 9.09 | M15: 0.75 | N15: 1.06 | O15: 0.68 | P15: 1.8 | Q15: 8.2 | R15: 10.44 | S15: 13.43 | T15: 30.8 | U15: 43.6 | V15: 74.4 | W15: 0.2394262566 | X15: 0.1862204218
A16: JOHANSEN, RYAN | B16: Columbus | C16: 67 | D16: 40.21597222 | E16: 11 | F16: 15 | G16: 9 | H16: 26 | I16: 109 | J16: 146 | K16: 185 | L16: 10.09 | M16: 0.68 | N16: 0.93 | O16: 0.56 | P16: 1.62 | Q16: 6.78 | R16: 9.08 | S16: 11.5 | T16: 28.2 | U16: 38.5 | V16: 66.7 | W16: 0.2754518645 | X16: 0.2173836336
A17: MONAHAN, SEAN | B17: Calgary | C17: 66 | D17: 40.04375 | E17: 12 | F17: 11 | G17: 6 | H17: 23 | I17: 95 | J17: 132 | K17: 183 | L17: 12.63 | M17: 0.75 | N17: 0.69 | O17: 0.37 | P17: 1.44 | Q17: 5.93 | R17: 8.24 | S17: 11.43 | T17: 37.5 | U17: 34.4 | V17: 71.9 | W17: 0.3033617424 | X17: 0.218818306
A18: DOAN, SHANE | B18: Arizona | C18: 66 | D18: 40.04305556 | E18: 8 | F18: 13 | G18: 10 | H18: 21 | I18: 111 | J18: 153 | K18: 200 | L18: 7.21 | M18: 0.5 | N18: 0.81 | O18: 0.62 | P18: 1.31 | Q18: 6.93 | R18: 9.55 | S18: 12.49 | T18: 25.8 | U18: 41.9 | V18: 67.7 | W18: 0.2617193174 | X18: 0.2002152778
A19: MARLEAU, PATRICK | B19: San Jose | C19: 68 | D19: 39.8625 | E19: 5 | F19: 16 | G19: 9 | H19: 21 | I19: 114 | J19: 146 | K19: 200 | L19: 4.39 | M19: 0.31 | N19: 1 | O19: 0.56 | P19: 1.32 | Q19: 7.15 | R19: 9.16 | S19: 12.54 | T19: 14.7 | U19: 47.1 | V19: 61.8 | W19: 0.2730308219 | X19: 0.1993125
A20: PLEKANEC, TOMAS | B20: Montreal | C20: 68 | D20: 39.63055556 | E20: 11 | F20: 14 | G20: 10 | H20: 25 | I20: 143 | J20: 183 | K20: 225 | L20: 7.69 | M20: 0.69 | N20: 0.88 | O20: 0.63 | P20: 1.58 | Q20: 9.02 | R20: 11.54 | S20: 14.19 | T20: 32.4 | U20: 41.2 | V20: 73.5 | W20: 0.2165604129 | X20: 0.1761358025
A21: DESHARNAIS, DAVID | B21: Montreal | C21: 68 | D21: 39.48819444 | E21: 6 | F21: 22 | G21: 11 | H21: 28 | I21: 59 | J21: 81 | K21: 109 | L21: 10.17 | M21: 0.38 | N21: 1.39 | O21: 0.7 | P21: 1.77 | Q21: 3.74 | R21: 5.13 | S21: 6.9 | T21: 13 | U21: 47.8 | V21: 60.9 | W21: 0.4875085734 | X21: 0.3622770133
A22: IGINLA, JAROME | B22: Colorado | C22: 68 | D22: 39.42222222 | E22: 16 | F22: 18 | G22: 15 | H22: 34 | I22: 103 | J22: 132 | K22: 190 | L22: 15.53 | M22: 1.01 | N22: 1.14 | O22: 0.95 | P22: 2.16 | Q22: 6.53 | R22: 8.37 | S22: 12.05 | T22: 35.6 | U22: 40 | V22: 75.6 | W22: 0.2986531987 | X22: 0.2074853801
A23: PERRON, DAVID | B23: Pittsburgh | C23: 67 | D23: 39.37152778 | E23: 13 | F23: 17 | G23: 9 | H23: 30 | I23: 117 | J23: 145 | K23: 193 | L23: 11.11 | M23: 0.83 | N23: 1.08 | O23: 0.57 | P23: 1.9 | Q23: 7.43 | R23: 9.21 | S23: 12.26 | T23: 32.5 | U23: 42.5 | V23: 75 | W23: 0.2715277778 | X23: 0.2039975533
A24: LADD, ANDREW | B24: Winnipeg | C24: 68 | D24: 39.31666667 | E24: 12 | F24: 22 | G24: 17 | H24: 34 | I24: 125 | J24: 163 | K24: 209 | L24: 9.6 | M24: 0.76 | N24: 1.4 | O24: 1.08 | P24: 2.16 | Q24: 7.95 | R24: 10.36 | S24: 13.29 | T24: 28.6 | U24: 52.4 | V24: 81 | W24: 0.241206544 | X24: 0.1881180223
A25: GAGNER, SAM | B25: Arizona | C25: 67 | D25: 39.09861111 | E25: 7 | F25: 14 | G25: 9 | H25: 21 | I25: 112 | J25: 154 | K25: 191 | L25: 6.25 | M25: 0.45 | N25: 0.9 | O25: 0.58 | P25: 1.34 | Q25: 7.16 | R25: 9.85 | S25: 12.21 | T25: 21.2 | U25: 42.4 | V25: 63.6 | W25: 0.2538870851 | X25: 0.2047047702
A26: POMINVILLE, JASON | B26: Minnesota | C26: 67 | D26: 39.05763889 | E26: 13 | F26: 19 | G26: 13 | H26: 32 | I26: 148 | J26: 197 | K26: 244 | L26: 8.78 | M26: 0.83 | N26: 1.22 | O26: 0.83 | P26: 2.05 | Q26: 9.47 | R26: 12.61 | S26: 15.62 | T26: 28.9 | U26: 42.2 | V26: 71.1 | W26: 0.1982621263 | X26: 0.1600722905
A27: TARASENKO, VLADIMIR | B27: St. Louis | C27: 67 | D27: 39.05347222 | E27: 24 | F27: 22 | G27: 11 | H27: 46 | I27: 167 | J27: 243 | K27: 331 | L27: 14.37 | M27: 1.54 | N27: 1.41 | O27: 0.7 | P27: 2.94 | Q27: 10.69 | R27: 15.56 | S27: 21.19 | T27: 40.7 | U27: 37.3 | V27: 78 | W27: 0.1607138775 | X27: 0.1179863209
A28: ENNIS, TYLER | B28: Buffalo | C28: 64 | D28: 39.025 | E28: 10 | F28: 10 | G28: 8 | H28: 20 | I28: 104 | J28: 132 | K28: 166 | L28: 9.62 | M28: 0.64 | N28: 0.64 | O28: 0.51 | P28: 1.28 | Q28: 6.66 | R28: 8.46 | S28: 10.63 | T28: 37 | U28: 37 | V28: 74.1 | W28: 0.2956439394 | X28: 0.2350903614
A29: KESLER, RYAN | B29: Anaheim | C29: 68 | D29: 38.96736111 | E29: 9 | F29: 14 | G29: 8 | H29: 23 | I29: 108 | J29: 152 | K29: 201 | L29: 8.33 | M29: 0.58 | N29: 0.9 | O29: 0.51 | P29: 1.48 | Q29: 6.93 | R29: 9.75 | S29: 12.9 | T29: 26.5 | U29: 41.2 | V29: 67.6 | W29: 0.2563642178 | X29: 0.1938674682
A30: FILPPULA, VALTTERI | B30: Tampa Bay | C30: 69 | D30: 38.93819444 | E30: 7 | F30: 18 | G30: 10 | H30: 25 | I30: 62 | J30: 75 | K30: 99 | L30: 11.29 | M30: 0.45 | N30: 1.16 | O30: 0.64 | P30: 1.61 | Q30: 3.98 | R30: 4.82 | S30: 6.36 | T30: 20 | U30: 51.4 | V30: 71.4 | W30: 0.5191759259 | X30: 0.3933150954
A31: O_REILLY, RYAN | B31: Colorado | C31: 68 | D31: 38.91041667 | E31: 6 | F31: 20 | G31: 14 | H31: 26 | I31: 88 | J31: 109 | K31: 142 | L31: 6.82 | M31: 0.39 | N31: 1.28 | O31: 0.9 | P31: 1.67 | Q31: 5.65 | R31: 7 | S31: 9.12 | T31: 15.4 | U31: 51.3 | V31: 66.7 | W31: 0.3569762997 | X31: 0.2740170188
A32: COUTURIER, SEAN | B32: Philadelphia | C32: 69 | D32: 38.86388889 | E32: 9 | F32: 10 | G32: 7 | H32: 19 | I32: 93 | J32: 128 | K32: 175 | L32: 9.68 | M32: 0.58 | N32: 0.64 | O32: 0.45 | P32: 1.22 | Q32: 5.98 | R32: 8.23 | S32: 11.26 | T32: 27.3 | U32: 30.3 | V32: 57.6 | W32: 0.3036241319 | X32: 0.2220793651
A33: TURRIS, KYLE | B33: Ottawa | C33: 66 | D33: 38.85208333 | E33: 9 | F33: 19 | G33: 14 | H33: 28 | I33: 117 | J33: 162 | K33: 226 | L33: 7.69 | M33: 0.58 | N33: 1.22 | O33: 0.9 | P33: 1.8 | Q33: 7.53 | R33: 10.42 | S33: 14.54 | T33: 22 | U33: 46.3 | V33: 68.3 | W33: 0.2398276749 | X33: 0.1719118732
A34: BENN, JAMIE | B34: Dallas | C34: 68 | D34: 38.83333333 | E34: 14 | F34: 25 | G34: 15 | H34: 39 | I34: 146 | J34: 197 | K34: 266 | L34: 9.59 | M34: 0.9 | N34: 1.61 | O34: 0.97 | P34: 2.51 | Q34: 9.4 | R34: 12.68 | S34: 17.12 | T34: 27.5 | U34: 49 | V34: 76.5 | W34: 0.1971235195 | X34: 0.1459899749
A35: LUCIC, MILAN | B35: Boston | C35: 66 | D35: 38.68958333 | E35: 9 | F35: 16 | G35: 10 | H35: 25 | I35: 96 | J35: 146 | K35: 185 | L35: 9.38 | M35: 0.58 | N35: 1.03 | O35: 0.65 | P35: 1.62 | Q35: 6.2 | R35: 9.43 | S35: 11.95 | T35: 23.1 | U35: 41 | V35: 64.1 | W35: 0.2649971461 | X35: 0.2091328829
A36: SODERBERG, CARL | B36: Boston | C36: 67 | D36: 38.63194444 | E36: 6 | F36: 18 | G36: 9 | H36: 24 | I36: 98 | J36: 132 | K36: 201 | L36: 6.12 | M36: 0.39 | N36: 1.16 | O36: 0.58 | P36: 1.55 | Q36: 6.34 | R36: 8.54 | S36: 13.01 | T36: 17.1 | U36: 51.4 | V36: 68.6 | W36: 0.2926662458 | X36: 0.1921987286
A37: GETZLAF, RYAN | B37: Anaheim | C37: 65 | D37: 38.59236111 | E37: 15 | F37: 26 | G37: 19 | H37: 41 | I37: 106 | J37: 158 | K37: 203 | L37: 14.15 | M37: 0.97 | N37: 1.68 | O37: 1.23 | P37: 2.66 | Q37: 6.87 | R37: 10.24 | S37: 13.15 | T37: 31.9 | U37: 55.3 | V37: 87.2 | W37: 0.2442554501 | X37: 0.1901101533
A38: VAN_RIEMSDYK, JAMES | B38: Toronto | C38: 67 | D38: 38.59027778 | E38: 10 | F38: 14 | G38: 11 | H38: 24 | I38: 140 | J38: 188 | K38: 229 | L38: 7.14 | M38: 0.65 | N38: 0.91 | O38: 0.71 | P38: 1.55 | Q38: 9.07 | R38: 12.18 | S38: 14.84 | T38: 33.3 | U38: 46.7 | V38: 80 | W38: 0.205267435 | X38: 0.1685164968
A39: COUTURE, LOGAN | B39: San Jose | C39: 68 | D39: 38.55277778 | E39: 14 | F39: 13 | G39: 11 | H39: 27 | I39: 140 | J39: 199 | K39: 263 | L39: 10 | M39: 0.91 | N39: 0.84 | O39: 0.71 | P39: 1.75 | Q39: 9.08 | R39: 12.9 | S39: 17.05 | T39: 35.9 | U39: 33.3 | V39: 69.2 | W39: 0.1937325516 | X39: 0.1465885087
A40: SEDIN, HENRIK | B40: Vancouver | C40: 67 | D40: 38.51458333 | E40: 7 | F40: 21 | G40: 8 | H40: 28 | I40: 56 | J40: 74 | K40: 93 | L40: 12.5 | M40: 0.45 | N40: 1.36 | O40: 0.52 | P40: 1.82 | Q40: 3.63 | R40: 4.8 | S40: 6.04 | T40: 20.6 | U40: 61.8 | V40: 82.4 | W40: 0.5204673423 | X40: 0.4141353047
A41: KESSEL, PHIL | B41: Toronto | C41: 67 | D41: 38.44583333 | E41: 13 | F41: 12 | G41: 6 | H41: 25 | I41: 142 | J41: 187 | K41: 258 | L41: 9.15 | M41: 0.85 | N41: 0.78 | O41: 0.39 | P41: 1.63 | Q41: 9.23 | R41: 12.16 | S41: 16.78 | T41: 38.2 | U41: 35.3 | V41: 73.5 | W41: 0.2055926916 | X41: 0.1490148579
A42: SEDIN, DANIEL | B42: Vancouver | C42: 67 | D42: 38.40972222 | E42: 6 | F42: 21 | G42: 13 | H42: 27 | I42: 124 | J42: 171 | K42: 220 | L42: 4.84 | M42: 0.39 | N42: 1.37 | O42: 0.85 | P42: 1.76 | Q42: 8.07 | R42: 11.13 | S42: 14.32 | T42: 20.7 | U42: 72.4 | V42: 93.1 | W42: 0.2246182586 | X42: 0.1745896465
A43: FROLIK, MICHAEL | B43: Winnipeg | C43: 68 | D43: 38.40277778 | E43: 9 | F43: 18 | G43: 10 | H43: 27 | I43: 133 | J43: 182 | K43: 244 | L43: 6.77 | M43: 0.59 | N43: 1.17 | O43: 0.65 | P43: 1.76 | Q43: 8.66 | R43: 11.85 | S43: 15.88 | T43: 23.1 | U43: 46.2 | V43: 69.2 | W43: 0.2110042735 | X43: 0.1573884335
A44: CROSBY, SIDNEY | B44: Pittsburgh | C44: 63 | D44: 38.30902778 | E44: 13 | F44: 24 | G44: 15 | H44: 37 | I44: 126 | J44: 177 | K44: 213 | L44: 10.32 | M44: 0.85 | N44: 1.57 | O44: 0.98 | P44: 2.41 | Q44: 8.22 | R44: 11.55 | S44: 13.9 | T44: 29.5 | U44: 54.5 | V44: 84.1 | W44: 0.2164351852 | X44: 0.1798545905
A45: READ, MATT | B45: Philadelphia | C45: 69 | D45: 38.27569444 | E45: 5 | F45: 17 | G45: 8 | H45: 22 | I45: 99 | J45: 137 | K45: 170 | L45: 5.05 | M45: 0.33 | N45: 1.11 | O45: 0.52 | P45: 1.44 | Q45: 6.47 | R45: 8.95 | S45: 11.1 | T45: 16.7 | U45: 56.7 | V45: 73.3 | W45: 0.279384631 | X45: 0.2251511438
A46: STEEN, ALEXANDER | B46: St. Louis | C46: 65 | D46: 38.27361111 | E46: 12 | F46: 19 | G46: 14 | H46: 31 | I46: 135 | J46: 186 | K46: 228 | L46: 8.89 | M46: 0.78 | N46: 1.24 | O46: 0.91 | P46: 2.02 | Q46: 8.82 | R46: 12.15 | S46: 14.89 | T46: 26.7 | U46: 42.2 | V46: 68.9 | W46: 0.2057721027 | X46: 0.1678667154
A47: GALLAGHER, BRENDAN | B47: Montreal | C47: 68 | D47: 38.24513889 | E47: 14 | F47: 15 | G47: 13 | H47: 29 | I47: 156 | J47: 209 | K47: 309 | L47: 8.97 | M47: 0.92 | N47: 0.98 | O47: 0.85 | P47: 1.9 | Q47: 10.2 | R47: 13.66 | S47: 20.2 | T47: 33.3 | U47: 35.7 | V47: 69 | W47: 0.1829910952 | X47: 0.123770676
A48: TOEWS, JONATHAN | B48: Chicago | C48: 67 | D48: 38.06388889 | E48: 10 | F48: 23 | G48: 17 | H48: 33 | I48: 90 | J48: 116 | K48: 141 | L48: 11.11 | M48: 0.66 | N48: 1.51 | O48: 1.12 | P48: 2.17 | Q48: 5.91 | R48: 7.62 | S48: 9.26 | T48: 23.3 | U48: 53.5 | V48: 76.7 | W48: 0.3281369732 | X48: 0.2699566588
A49: STAAL, ERIC | B49: Carolina | C49: 61 | D49: 37.99861111 | E49: 10 | F49: 13 | G49: 6 | H49: 23 | I49: 149 | J49: 213 | K49: 271 | L49: 6.71 | M49: 0.66 | N49: 0.86 | O49: 0.39 | P49: 1.51 | Q49: 9.8 | R49: 14.01 | S49: 17.83 | T49: 38.5 | U49: 50 | V49: 88.5 | W49: 0.1783972353 | X49: 0.1402162772
A50: FORSBERG, FILIP | B50: Nashville | C50: 68 | D50: 37.92708333 | E50: 15 | F50: 18 | G50: 9 | H50: 33 | I50: 152 | J50: 239 | K50: 304 | L50: 9.87 | M50: 0.99 | N50: 1.19 | O50: 0.59 | P50: 2.18 | Q50: 10.02 | R50: 15.75 | S50: 20.04 | T50: 30.6 | U50: 36.7 | V50: 67.3 | W50: 0.1586907252 | X50: 0.1247601425
A51: KOIVU, MIKKO | B51: Minnesota | C51: 67 | D51: 37.9125 | E51: 6 | F51: 17 | G51: 9 | H51: 23 | I51: 89 | J51: 128 | K51: 166 | L51: 6.74 | M51: 0.4 | N51: 1.12 | O51: 0.59 | P51: 1.52 | Q51: 5.87 | R51: 8.44 | S51: 10.95 | T51: 16.2 | U51: 45.9 | V51: 62.2 | W51: 0.2961914063 | X51: 0.2283885542
A52: SCHENN, BRAYDEN | B52: Philadelphia | C52: 69 | D52: 37.87638889 | E52: 6 | F52: 14 | G52: 8 | H52: 20 | I52: 72 | J52: 109 | K52: 149 | L52: 8.33 | M52: 0.4 | N52: 0.92 | O52: 0.53 | P52: 1.32 | Q52: 4.75 | R52: 7.19 | S52: 9.83 | T52: 22.2 | U52: 51.9 | V52: 74.1 | W52: 0.3474898063 | X52: 0.2542039523
A53: KANE, PATRICK | B53: Chicago | C53: 61 | D53: 37.85416667 | E53: 19 | F53: 14 | G53: 11 | H53: 33 | I53: 124 | J53: 166 | K53: 220 | L53: 15.32 | M53: 1.25 | N53: 0.92 | O53: 0.73 | P53: 2.18 | Q53: 8.19 | R53: 10.96 | S53: 14.53 | T53: 43.2 | U53: 31.8 | V53: 75 | W53: 0.2280371486 | X53: 0.1720643939
A54: ST._LOUIS, MARTIN | B54: NY Rangers | C54: 65 | D54: 37.78055556 | E54: 13 | F54: 17 | G54: 10 | H54: 30 | I54: 90 | J54: 123 | K54: 149 | L54: 14.44 | M54: 0.86 | N54: 1.12 | O54: 0.66 | P54: 1.99 | Q54: 5.96 | R54: 8.14 | S54: 9.86 | T54: 30.2 | U54: 39.5 | V54: 69.8 | W54: 0.3071589883 | X54: 0.2535607755
A55: HOSSA, MARIAN | B55: Chicago | C55: 67 | D55: 37.74930556 | E55: 8 | F55: 20 | G55: 11 | H55: 28 | I55: 152 | J55: 194 | K55: 269 | L55: 5.26 | M55: 0.53 | N55: 1.32 | O55: 0.73 | P55: 1.85 | Q55: 10.07 | R55: 12.85 | S55: 17.81 | T55: 19 | U55: 47.6 | V55: 66.7 | W55: 0.1945840493 | X55: 0.1403319909
A56: BACKES, DAVID | B56: St. Louis | C56: 66 | D56: 37.74652778 | E56: 13 | F56: 21 | G56: 13 | H56: 34 | I56: 113 | J56: 170 | K56: 189 | L56: 11.5 | M56: 0.86 | N56: 1.39 | O56: 0.86 | P56: 2.25 | Q56: 7.48 | R56: 11.26 | S56: 12.52 | T56: 27.7 | U56: 44.7 | V56: 72.3 | W56: 0.2220383987 | X56: 0.1997170782
A57: FOLIGNO, NICK | B57: Columbus | C57: 64 | D57: 37.60625 | E57: 15 | F57: 17 | G57: 6 | H57: 32 | I57: 108 | J57: 133 | K57: 163 | L57: 13.89 | M57: 1 | N57: 1.13 | O57: 0.4 | P57: 2.13 | Q57: 7.18 | R57: 8.84 | S57: 10.84 | T57: 34.1 | U57: 38.6 | V57: 72.7 | W57: 0.2827537594 | X57: 0.2307131902
A58: BOZAK, TYLER | B58: Toronto | C58: 67 | D58: 37.5125 | E58: 6 | F58: 12 | G58: 6 | H58: 18 | I58: 67 | J58: 89 | K58: 113 | L58: 8.96 | M58: 0.4 | N58: 0.8 | O58: 0.4 | P58: 1.2 | Q58: 4.47 | R58: 5.93 | S58: 7.53 | T58: 19.4 | U58: 38.7 | V58: 58.1 | W58: 0.421488764 | X58: 0.3319690265
A59: VERMETTE, ANTOINE | B59: Chicago | C59: 67 | D59: 37.49375 | E59: 6 | F59: 14 | G59: 8 | H59: 20 | I59: 55 | J59: 81 | K59: 106 | L59: 10.91 | M59: 0.4 | N59: 0.93 | O59: 0.53 | P59: 1.33 | Q59: 3.67 | R59: 5.4 | S59: 7.07 | T59: 20 | U59: 46.7 | V59: 66.7 | W59: 0.4628858025 | X59: 0.3537146226
A60: ZETTERBERG, HENRIK | B60: Detroit | C60: 62 | D60: 37.40208333 | E60: 7 | F60: 14 | G60: 9 | H60: 21 | I60: 124 | J60: 166 | K60: 220 | L60: 5.65 | M60: 0.47 | N60: 0.94 | O60: 0.6 | P60: 1.4 | Q60: 8.29 | R60: 11.1 | S60: 14.71 | T60: 23.3 | U60: 46.7 | V60: 70 | W60: 0.225313755 | X60: 0.1700094697
A61: SAAD, BRANDON | B61: Chicago | C61: 67 | D61: 37.39097222 | E61: 16 | F61: 16 | G61: 8 | H61: 32 | I61: 139 | J61: 179 | K61: 212 | L61: 11.51 | M61: 1.07 | N61: 1.07 | O61: 0.53 | P61: 2.14 | Q61: 9.29 | R61: 11.97 | S61: 14.17 | T61: 39 | U61: 39 | V61: 78 | W61: 0.208888113 | X61: 0.1763725105
A62: ZUCCARELLO, MATS | B62: NY Rangers | C62: 63 | D62: 37.35902778 | E62: 12 | F62: 20 | G62: 10 | H62: 32 | I62: 107 | J62: 144 | K62: 187 | L62: 11.21 | M62: 0.8 | N62: 1.34 | O62: 0.67 | P62: 2.14 | Q62: 7.16 | R62: 9.64 | S62: 12.51 | T62: 24 | U62: 40 | V62: 64 | W62: 0.2594376929 | X62: 0.1997808972
A63: CALLAHAN, RYAN | B63: Tampa Bay | C63: 64 | D63: 37.35208333 | E63: 10 | F63: 18 | G63: 12 | H63: 28 | I63: 131 | J63: 159 | K63: 209 | L63: 7.63 | M63: 0.67 | N63: 1.2 | O63: 0.8 | P63: 1.87 | Q63: 8.77 | R63: 10.64 | S63: 13.99 | T63: 22.7 | U63: 40.9 | V63: 63.6 | W63: 0.2349187631 | X63: 0.1787181021
A64: WHEELER, BLAKE | B64: Winnipeg | C64: 66 | D64: 37.22083333 | E64: 11 | F64: 18 | G64: 13 | H64: 29 | I64: 145 | J64: 203 | K64: 251 | L64: 7.59 | M64: 0.74 | N64: 1.21 | O64: 0.87 | P64: 1.95 | Q64: 9.74 | R64: 13.63 | S64: 16.86 | T64: 28.9 | U64: 47.4 | V64: 76.3 | W64: 0.1833538588 | X64: 0.1482901726
A65: GALCHENYUK, ALEX | B65: Montreal | C65: 66 | D65: 37.13611111 | E65: 15 | F65: 13 | G65: 9 | H65: 28 | I65: 107 | J65: 146 | K65: 196 | L65: 14.02 | M65: 1.01 | N65: 0.88 | O65: 0.61 | P65: 1.89 | Q65: 7.2 | R65: 9.83 | S65: 13.19 | T65: 38.5 | U65: 33.3 | V65: 71.8 | W65: 0.2543569254 | X65: 0.1894699546
A66: THORNTON, JOE | B66: San Jose | C66: 64 | D66: 37.10694444 | E66: 5 | F66: 22 | G66: 13 | H66: 27 | I66: 70 | J66: 101 | K66: 136 | L66: 7.14 | M66: 0.34 | N66: 1.48 | O66: 0.88 | P66: 1.82 | Q66: 4.72 | R66: 6.8 | S66: 9.16 | T66: 15.2 | U66: 66.7 | V66: 81.8 | W66: =((D66*1440)/J66)/1440 -> 0.3673954895 | X66: =((D66*1440)/K66)/1440 -> 0.2728451797
A67: ERIKSSON, LOUI | B67: Boston | C67: 66 | D67: 37.0625 | E67: 8 | F67: 15 | G67: 10 | H67: 23 | I67: 87 | J67: 122 | K67: 148 | L67: 9.2 | M67: 0.54 | N67: 1.01 | O67: 0.67 | P67: 1.55 | Q67: 5.87 | R67: 8.23 | S67: 9.98 | T67: 24.2 | U67: 45.5 | V67: 69.7 | W67: 0.3037909836 | X67: 0.2504222973
A68: SIMMONDS, WAYNE | B68: Philadelphia | C68: 69 | D68: 37.04722222 | E68: 11 | F68: 9 | G68: 6 | H68: 20 | I68: 114 | J68: 155 | K68: 209 | L68: 9.65 | M68: 0.74 | N68: 0.61 | O68: 0.4 | P68: 1.35 | Q68: 7.69 | R68: 10.46 | S68: 14.1 | T68: 37.9 | U68: 31 | V68: 69 | W68: 0.2390143369 | X68: 0.1772594365
A69: SMITH, REILLY | B69: Boston | C69: 67 | D69: 37.02152778 | E69: 11 | F69: 14 | G69: 9 | H69: 25 | I69: 92 | J69: 130 | K69: 183 | L69: 11.96 | M69: 0.74 | N69: 0.95 | O69: 0.61 | P69: 1.69 | Q69: 6.21 | R69: 8.78 | S69: 12.36 | T69: 25.6 | U69: 32.6 | V69: 58.1 | W69: 0.2847809829 | X69: 0.2023034305
A70: STEWART, CHRIS | B70: Minnesota | C70: 66 | D70: 36.99375 | E70: 8 | F70: 11 | G70: 9 | H70: 19 | I70: 91 | J70: 115 | K70: 139 | L70: 8.79 | M70: 0.54 | N70: 0.74 | O70: 0.61 | P70: 1.28 | Q70: 6.15 | R70: 7.77 | S70: 9.39 | T70: 30.8 | U70: 42.3 | V70: 73.1 | W70: 0.3216847826 | X70: 0.2661420863
A71: PURCELL, TEDDY | B71: Edmonton | C71: 68 | D71: 36.99027778 | E71: 4 | F71: 12 | G71: 9 | H71: 16 | I71: 91 | J71: 122 | K71: 174 | L71: 4.4 | M71: 0.27 | N71: 0.81 | O71: 0.61 | P71: 1.08 | Q71: 6.15 | R71: 8.25 | S71: 11.76 | T71: 16.7 | U71: 50 | V71: 66.7 | W71: 0.3031989982 | X71: 0.2125878033
A72: MALKIN, EVGENI | B72: Pittsburgh | C72: 62 | D72: 36.9375 | E72: 17 | F72: 22 | G72: 10 | H72: 39 | I72: 115 | J72: 163 | K72: 209 | L72: 14.78 | M72: 1.15 | N72: 1.49 | O72: 0.68 | P72: 2.64 | Q72: 7.78 | R72: 11.03 | S72: 14.15 | T72: 35.4 | U72: 45.8 | V72: 81.2 | W72: 0.2266104294 | X72: 0.1767344498
A73: GAUDREAU, JOHNNY | B73: Calgary | C73: 65 | D73: 36.84652778 | E73: 8 | F73: 17 | G73: 11 | H73: 25 | I73: 90 | J73: 122 | K73: 161 | L73: 8.89 | M73: 0.54 | N73: 1.15 | O73: 0.75 | P73: 1.7 | Q73: 6.11 | R73: 8.28 | S73: 10.92 | T73: 20 | U73: 42.5 | V73: 62.5 | W73: 0.3020207195 | X73: 0.228860421
A74: KADRI, NAZEM | B74: Toronto | C74: 64 | D74: 36.79930556 | E74: 11 | F74: 15 | G74: 7 | H74: 26 | I74: 117 | J74: 163 | K74: 220 | L74: 9.4 | M74: 0.75 | N74: 1.02 | O74: 0.48 | P74: 1.77 | Q74: 7.95 | R74: 11.07 | S74: 14.95 | T74: 27.5 | U74: 37.5 | V74: 65 | W74: 0.2257626108 | X74: 0.1672695707
A75: BROWN, DUSTIN | B75: Los Angeles | C75: 67 | D75: 36.75416667 | E75: 9 | F75: 10 | G75: 10 | H75: 19 | I75: 135 | J75: 194 | K75: 250 | L75: 6.67 | M75: 0.61 | N75: 0.68 | O75: 0.68 | P75: 1.29 | Q75: 9.18 | R75: 13.2 | S75: 17 | T75: 34.6 | U75: 38.5 | V75: 73.1 | W75: 0.1894544674 | X75: 0.1470166667
A76: HARTNELL, SCOTT | B76: Columbus | C76: 62 | D76: 36.67430556 | E76: 11 | F76: 19 | G76: 16 | H76: 30 | I76: 120 | J76: 156 | K76: 189 | L76: 9.17 | M76: 0.75 | N76: 1.3 | O76: 1.09 | P76: 2.04 | Q76: 8.18 | R76: 10.63 | S76: 12.88 | T76: 26.2 | U76: 45.2 | V76: 71.4 | W76: 0.2350917023 | X76: 0.1940439447
A77: WILLIAMS, JUSTIN | B77: Los Angeles | C77: 66 | D77: 36.65694444 | E77: 13 | F77: 9 | G77: 4 | H77: 22 | I77: 110 | J77: 150 | K77: 194 | L77: 11.82 | M77: 0.89 | N77: 0.61 | O77: 0.27 | P77: 1.5 | Q77: 7.5 | R77: 10.23 | S77: 13.23 | T77: 37.1 | U77: 25.7 | V77: 62.9 | W77: 0.2443796296 | X77: 0.1889533219
A78: LITTLE, BRYAN | B78: Winnipeg | C78: 65 | D78: 36.63958333 | E78: 13 | F78: 15 | G78: 6 | H78: 28 | I78: 77 | J78: 107 | K78: 147 | L78: 16.88 | M78: 0.89 | N78: 1.02 | O78: 0.41 | P78: 1.91 | Q78: 5.25 | R78: 7.3 | S78: 10.03 | T78: 37.1 | U78: 42.9 | V78: 80 | W78: 0.3424260125 | X78: 0.2492488662
A79: SANTORELLI, MIKE | B79: Nashville | C79: 67 | D79: 36.60138889 | E79: 8 | F79: 14 | G79: 6 | H79: 22 | I79: 113 | J79: 142 | K79: 173 | L79: 7.08 | M79: 0.55 | N79: 0.96 | O79: 0.41 | P79: 1.5 | Q79: 7.72 | R79: 9.7 | S79: 11.82 | T79: 22.2 | U79: 38.9 | V79: 61.1 | W79: 0.2577562598 | X79: 0.2115687219
A80: SPEZZA, JASON | B80: Dallas | C80: 68 | D80: 36.50486111 | E80: 10 | F80: 17 | G80: 9 | H80: 27 | I80: 118 | J80: 186 | K80: 240 | L80: 8.47 | M80: 0.68 | N80: 1.16 | O80: 0.62 | P80: 1.85 | Q80: 8.08 | R80: 12.74 | S80: 16.44 | T80: 22.2 | U80: 37.8 | V80: 60 | W80: 0.1962626941 | X80: 0.152103588
A81: NEAL, JAMES | B81: Nashville | C81: 62 | D81: 36.44166667 | E81: 15 | F81: 12 | G81: 8 | H81: 27 | I81: 155 | J81: 226 | K81: 320 | L81: 9.68 | M81: 1.03 | N81: 0.82 | O81: 0.55 | P81: 1.85 | Q81: 10.63 | R81: 15.5 | S81: 21.95 | T81: 31.2 | U81: 25 | V81: 56.2 | W81: 0.1612463127 | X81: 0.1138802083
A82: JAGR, JAROMIR | B82: Florida | C82: 62 | D82: 36.43958333 | E82: 9 | F82: 13 | G82: 9 | H82: 22 | I82: 98 | J82: 133 | K82: 165 | L82: 9.18 | M82: 0.62 | N82: 0.89 | O82: 0.62 | P82: 1.51 | Q82: 6.72 | R82: 9.12 | S82: 11.32 | T82: 28.1 | U82: 40.6 | V82: 68.8 | W82: 0.2739818296 | X82: 0.2208459596
A83: MOULSON, MATT | B83: Buffalo | C83: 63 | D83: 36.21805556 | E83: 8 | F83: 14 | G83: 10 | H83: 22 | I83: 86 | J83: 120 | K83: 148 | L83: 9.3 | M83: 0.55 | N83: 0.97 | O83: 0.69 | P83: 1.52 | Q83: 5.94 | R83: 8.28 | S83: 10.22 | T83: 27.6 | U83: 48.3 | V83: 75.9 | W83: 0.3018171296 | X83: 0.2447165916
A84: GIRGENSONS, ZEMGUS | B84: Buffalo | C84: 61 | D84: 36.12013889 | E84: 11 | F84: 10 | G84: 4 | H84: 21 | I84: 91 | J84: 114 | K84: 140 | L84: 12.09 | M84: 0.76 | N84: 0.69 | O84: 0.28 | P84: 1.45 | Q84: 6.3 | R84: 7.89 | S84: 9.69 | T84: 44 | U84: 40 | V84: 84 | W84: 0.3168433236 | X84: 0.2580009921
A85: YAKUPOV, NAIL | B85: Edmonton | C85: 67 | D85: 36.09513889 | E85: 6 | F85: 10 | G85: 8 | H85: 16 | I85: 119 | J85: 156 | K85: 208 | L85: 5.04 | M85: 0.42 | N85: 0.69 | O85: 0.55 | P85: 1.11 | Q85: 8.24 | R85: 10.8 | S85: 14.41 | T85: 28.6 | U85: 47.6 | V85: 76.2 | W85: 0.2313790954 | X85: 0.1735343216
A86: BRASSARD, DERICK | B86: NY Rangers | C86: 63 | D86: 36.07847222 | E86: 8 | F86: 27 | G86: 11 | H86: 35 | I86: 88 | J86: 118 | K86: 152 | L86: 9.09 | M86: 0.55 | N86: 1.87 | O86: 0.76 | P86: 2.43 | Q86: 6.1 | R86: 8.18 | S86: 10.53 | T86: 16.3 | U86: 55.1 | V86: 71.4 | W86: 0.3057497646 | X86: 0.2373583699
A87: KOPITAR, ANZE | B87: Los Angeles | C87: 64 | D87: 36.07777778 | E87: 7 | F87: 18 | G87: 9 | H87: 25 | I87: 75 | J87: 101 | K87: 135 | L87: 9.33 | M87: 0.49 | N87: 1.25 | O87: 0.62 | P87: 1.73 | Q87: 5.2 | R87: 7 | S87: 9.35 | T87: 21.2 | U87: 54.5 | V87: 75.8 | W87: 0.3572057206 | X87: 0.2672427984
A88: HERTL, TOMAS | B88: San Jose | C88: 68 | D88: 35.99861111 | E88: 9 | F88: 12 | G88: 4 | H88: 21 | I88: 104 | J88: 151 | K88: 203 | L88: 8.65 | M88: 0.62 | N88: 0.83 | O88: 0.28 | P88: 1.46 | Q88: 7.22 | R88: 10.49 | S88: 14.1 | T88: 27.3 | U88: 36.4 | V88: 63.6 | W88: 0.2384013981 | X88: 0.1773330597
A89: WARD, JOEL | B89: Washington | C89: 67 | D89: 35.98541667 | E89: 8 | F89: 7 | G89: 4 | H89: 15 | I89: 93 | J89: 126 | K89: 151 | L89: 8.6 | M89: 0.56 | N89: 0.49 | O89: 0.28 | P89: 1.04 | Q89: 6.46 | R89: 8.75 | S89: 10.49 | T89: 27.6 | U89: 24.1 | V89: 51.7 | W89: 0.285598545 | X89: 0.2383140177
A90: BJUGSTAD, NICK | B90: Florida | C90: 67 | D90: 35.93819444 | E90: 13 | F90: 12 | G90: 4 | H90: 25 | I90: 141 | J90: 185 | K90: 222 | L90: 9.22 | M90: 0.9 | N90: 0.83 | O90: 0.28 | P90: 1.74 | Q90: 9.81 | R90: 12.87 | S90: 15.44 | T90: 38.2 | U90: 35.3 | V90: 73.5 | W90: 0.1942605105 | X90: 0.1618837588
A91: KULEMIN, NIKOLAI | B91: NY Islanders | C91: 69 | D91: 35.92291667 | E91: 8 | F91: 9 | G91: 4 | H91: 17 | I91: 84 | J91: 122 | K91: 157 | L91: 9.52 | M91: 0.56 | N91: 0.63 | O91: 0.28 | P91: 1.18 | Q91: 5.85 | R91: 8.49 | S91: 10.93 | T91: 33.3 | U91: 37.5 | V91: 70.8 | W91: 0.2944501366 | X91: 0.2288083864
A92: MACKINNON, NATHAN | B92: Colorado | C92: 64 | D92: 35.88541667 | E92: 10 | F92: 19 | G92: 12 | H92: 29 | I92: 158 | J92: 205 | K92: 252 | L92: 6.33 | M92: 0.7 | N92: 1.32 | O92: 0.84 | P92: 2.02 | Q92: 11.01 | R92: 14.28 | S92: 17.56 | T92: 27.8 | U92: 52.8 | V92: 80.6 | W92: 0.175050813 | X92: 0.1424024471
A93: PARISE, ZACH | B93: Minnesota | C93: 60 | D93: 35.85208333 | E93: 13 | F93: 19 | G93: 9 | H93: 32 | I93: 131 | J93: 185 | K93: 229 | L93: 9.92 | M93: 0.91 | N93: 1.32 | O93: 0.63 | P93: 2.23 | Q93: 9.13 | R93: 12.9 | S93: 15.97 | T93: 29.5 | U93: 43.2 | V93: 72.7 | W93: 0.193795045 | X93: 0.1565593159
A94: ERAT, MARTIN | B94: Arizona | C94: 66 | D94: 35.80555556 | E94: 6 | F94: 16 | G94: 10 | H94: 22 | I94: 61 | J94: 85 | K94: 115 | L94: 9.84 | M94: 0.42 | N94: 1.12 | O94: 0.7 | P94: 1.54 | Q94: 4.26 | R94: 5.93 | S94: 8.03 | T94: 19.4 | U94: 51.6 | V94: 71 | W94: 0.4212418301 | X94: 0.311352657
A95: COYLE, CHARLIE | B95: Minnesota | C95: 67 | D95: 35.78194444 | E95: 7 | F95: 16 | G95: 9 | H95: 23 | I95: 88 | J95: 121 | K95: 154 | L95: 7.95 | M95: 0.49 | N95: 1.12 | O95: 0.63 | P95: 1.61 | Q95: 6.15 | R95: 8.45 | S95: 10.76 | T95: 17.9 | U95: 41 | V95: 59 | W95: 0.2957185491 | X95: 0.2323502886
A96: HUDLER, JIRI | B96: Calgary | C96: 63 | D96: 35.72847222 | E96: 13 | F96: 19 | G96: 13 | H96: 32 | I96: 80 | J96: 113 | K96: 141 | L96: 16.25 | M96: 0.91 | N96: 1.33 | O96: 0.91 | P96: 2.24 | Q96: 5.6 | R96: 7.91 | S96: 9.87 | T96: 35.1 | U96: 51.4 | V96: 86.5 | W96: 0.3161811701 | X96: 0.25339342
A97: TANGUAY, ALEX | B97: Colorado | C97: 66 | D97: 35.65694444 | E97: 14 | F97: 14 | G97: 7 | H97: 28 | I97: 54 | J97: 64 | K97: 82 | L97: 25.93 | M97: 0.98 | N97: 0.98 | O97: 0.49 | P97: 1.96 | Q97: 3.79 | R97: 4.49 | S97: 5.75 | T97: 38.9 | U97: 38.9 | V97: 77.8 | W97: 0.5571397569 | X97: 0.4348407859
A98: ZAJAC, TRAVIS | B98: New Jersey | C98: 60 | D98: 35.57847222 | E98: 4 | F98: 7 | G98: 5 | H98: 11 | I98: 62 | J98: 83 | K98: 112 | L98: 6.45 | M98: 0.28 | N98: 0.49 | O98: 0.35 | P98: 0.77 | Q98: 4.36 | R98: 5.83 | S98: 7.87 | T98: 16.7 | U98: 29.2 | V98: 45.8 | W98: 0.4286562918 | X98: 0.3176649306
A99: OSHIE, TJ | B99: St. Louis | C99: 59 | D99: 35.54583333 | E99: 14 | F99: 19 | G99: 12 | H99: 33 | I99: 105 | J99: 145 | K99: 174 | L99: 13.33 | M99: 0.98 | N99: 1.34 | O99: 0.84 | P99: 2.32 | Q99: 7.38 | R99: 10.2 | S99: 12.24 | T99: 30.4 | U99: 41.3 | V99: 71.7 | W99: 0.2451436782 | X99: 0.2042863985
A100: BERGERON, PATRICE | B100: Boston | C100: 66 | D100: 35.42638889 | E100: 15 | F100: 17 | G100: 11 | H100: 32 | I100: 146 | J100: 187 | K100: 236 | L100: 10.27 | M100: 1.06 | N100: 1.2 | O100: 0.78 | P100: 2.26 | Q100: 10.3 | R100: 13.2 | S100: 16.65 | T100: 39.5 | U100: 44.7 | V100: 84.2 | W100: 0.1894459299 | X100: 0.1501118173
A101: KREIDER, CHRIS | B101: NY Rangers | C101: 63 | D101: 35.40625 | E101: 10 | F101: 15 | G101: 11 | H101: 25 | I101: 122 | J101: 168 | K101: 200 | L101: 8.2 | M101: 0.71 | N101: 1.06 | O101: 0.78 | P101: 1.77 | Q101: 8.61 | R101: 11.86 | S101: 14.12 | T101: 25 | U101: 37.5 | V101: 62.5 | W101: 0.2107514881 | X101: 0.17703125
A102: COGLIANO, ANDREW | B102: Anaheim | C102: 68 | D102: 35.37222222 | E102: 9 | F102: 9 | G102: 8 | H102: 18 | I102: 92 | J102: 132 | K102: 175 | L102: 9.78 | M102: 0.64 | N102: 0.64 | O102: 0.57 | P102: 1.27 | Q102: 6.5 | R102: 9.33 | S102: 12.37 | T102: 32.1 | U102: 32.1 | V102: 64.3 | W102: 0.2679713805 | X102: 0.2021269841
A103: SILFVERBERG, JAKOB | B103: Anaheim | C103: 67 | D103: 35.36805556 | E103: 7 | F103: 15 | G103: 7 | H103: 22 | I103: 121 | J103: 175 | K103: 230 | L103: 5.79 | M103: 0.49 | N103: 1.06 | O103: 0.49 | P103: 1.56 | Q103: 8.55 | R103: 12.37 | S103: 16.26 | T103: 21.2 | U103: 45.5 | V103: 66.7 | W103: 0.2021031746 | X103: 0.1537741546
A104: SMITH, CRAIG | B104: Nashville | C104: 68 | D104: 35.26597222 | E104: 15 | F104: 15 | G104: 7 | H104: 30 | I104: 160 | J104: 213 | K104: 271 | L104: 9.38 | M104: 1.06 | N104: 1.06 | O104: 0.5 | P104: 2.13 | Q104: 11.34 | R104: 15.1 | S104: 19.21 | T104: 30.6 | U104: 30.6 | V104: 61.2 | W104: 0.1655679447 | X104: 0.1301327388
A105: LINDHOLM, ELIAS | B105: Carolina | C105: 65 | D105: 35.18263889 | E105: 8 | F105: 9 | G105: 6 | H105: 17 | I105: 109 | J105: 141 | K105: 186 | L105: 7.34 | M105: 0.57 | N105: 0.64 | O105: 0.43 | P105: 1.21 | Q105: 7.75 | R105: 10.02 | S105: 13.22 | T105: 33.3 | U105: 37.5 | V105: 70.8 | W105: 0.2495222616 | X105: 0.1891539725
A106: CARTER, JEFF | B106: Los Angeles | C106: 67 | D106: 35.14652778 | E106: 13 | F106: 22 | G106: 11 | H106: 35 | I106: 125 | J106: 196 | K106: 248 | L106: 10.4 | M106: 0.92 | N106: 1.56 | O106: 0.78 | P106: 2.49 | Q106: 8.89 | R106: 13.94 | S106: 17.64 | T106: 30.2 | U106: 51.2 | V106: 81.4 | W106: 0.1793190193 | X106: 0.1417198701
A107: JOHNSON, TYLER | B107: Tampa Bay | C107: 67 | D107: 35.11597222 | E107: 15 | F107: 29 | G107: 19 | H107: 44 | I107: 140 | J107: 181 | K107: 231 | L107: 10.71 | M107: 1.07 | N107: 2.06 | O107: 1.35 | P107: 3.13 | Q107: 9.97 | R107: 12.89 | S107: 16.45 | T107: 25.9 | U107: 50 | V107: 75.9 | W107: 0.1940108963 | X107: 0.1520171958
A108: KUCHEROV, NIKITA | B108: Tampa Bay | C108: 69 | D108: 35.09583333 | E108: 20 | F108: 19 | G108: 12 | H108: 39 | I108: 128 | J108: 167 | K108: 206 | L108: 15.62 | M108: 1.42 | N108: 1.35 | O108: 0.85 | P108: 2.78 | Q108: 9.12 | R108: 11.9 | S108: 14.67 | T108: 32.8 | U108: 31.1 | V108: 63.9 | W108: 0.2101546906 | X108: 0.170368123
A109: SPALING, NICK | B109: Pittsburgh | C109: 67 | D109: 35.05208333 | E109: 8 | F109: 13 | G109: 5 | H109: 21 | I109: 62 | J109: 87 | K109: 125 | L109: 12.9 | M109: 0.57 | N109: 0.93 | O109: 0.36 | P109: 1.5 | Q109: 4.42 | R109: 6.21 | S109: 8.92 | T109: 25.8 | U109: 41.9 | V109: 67.7 | W109: 0.4028975096 | X109: 0.2804166667
A110: SEGUIN, TYLER | B110: Dallas | C110: 58 | D110: 35.01875 | E110: 19 | F110: 16 | G110: 14 | H110: 35 | I110: 149 | J110: 197 | K110: 244 | L110: 12.75 | M110: 1.36 | N110: 1.14 | O110: 1 | P110: 2.5 | Q110: 10.64 | R110: 14.06 | S110: 17.42 | T110: 41.3 | U110: 34.8 | V110: 76.1 | W110: 0.1777601523 | X110: 0.1435194672
A111: SCHWARTZ, JADEN | B111: St. Louis | C111: 60 | D111: 35.01041667 | E111: 12 | F111: 20 | G111: 13 | H111: 32 | I111: 115 | J111: 145 | K111: 185 | L111: 10.43 | M111: 0.86 | N111: 1.43 | O111: 0.93 | P111: 2.29 | Q111: 8.21 | R111: 10.35 | S111: 13.21 | T111: 31.6 | U111: 52.6 | V111: 84.2 | W111: 0.2414511494 | X111: 0.1892454955
A112: KELLY, CHRIS | B112: Boston | C112: 65 | D112: 34.93194444 | E112: 5 | F112: 16 | G112: 8 | H112: 21 | I112: 77 | J112: 110 | K112: 138 | L112: 6.49 | M112: 0.36 | N112: 1.15 | O112: 0.57 | P112: 1.5 | Q112: 5.51 | R112: 7.87 | S112: 9.88 | T112: 17.2 | U112: 55.2 | V112: 72.4 | W112: 0.3175631313 | X112: 0.2531300322
A113: STOLL, JARRET | B113: Los Angeles | C113: 67 | D113: 34.86388889 | E113: 2 | F113: 6 | G113: 2 | H113: 8 | I113: 62 | J113: 82 | K113: 99 | L113: 3.23 | M113: 0.14 | N113: 0.43 | O113: 0.14 | P113: 0.57 | Q113: 4.45 | R113: 5.88 | S113: 7.1 | T113: 7.4 | U113: 22.2 | V113: 29.6 | W113: 0.4251693767 | X113: 0.3521604938
A114: VANEK, THOMAS | B114: Minnesota | C114: 66 | D114: 34.84722222 | E114: 8 | F114: 16 | G114: 14 | H114: 24 | I114: 88 | J114: 117 | K114: 158 | L114: 9.09 | M114: 0.57 | N114: 1.15 | O114: 1 | P114: 1.72 | Q114: 6.31 | R114: 8.39 | S114: 11.34 | T114: 26.7 | U114: 53.3 | V114: 80 | W114: 0.2978395062 | X114: 0.2205520394
A115: HUBERDEAU, JONATHAN | B115: Florida | C115: 64 | D115: 34.80486111 | E115: 10 | F115: 20 | G115: 13 | H115: 30 | I115: 106 | J115: 131 | K115: 176 | L115: 9.43 | M115: 0.72 | N115: 1.44 | O115: 0.93 | P115: 2.15 | Q115: 7.61 | R115: 9.41 | S115: 12.64 | T115: 25 | U115: 50 | V115: 75 | W115: 0.2656859627 | X115: 0.1977548927
A116: MARCHAND, BRAD | B116: Boston | C116: 62 | D116: 34.76180556 | E116: 13 | F116: 15 | G116: 11 | H116: 28 | I116: 124 | J116: 163 | K116: 206 | L116: 10.48 | M116: 0.93 | N116: 1.08 | O116: 0.79 | P116: 2.01 | Q116: 8.92 | R116: 11.72 | S116: 14.82 | T116: 31.7 | U116: 36.6 | V116: 68.3 | W116: 0.2132626108 | X116: 0.1687466289
A117: HAGELIN, CARL | B117: NY Rangers | C117: 65 | D117: 34.73819444 | E117: 10 | F117: 13 | G117: 7 | H117: 23 | I117: 128 | J117: 179 | K117: 227 | L117: 7.81 | M117: 0.72 | N117: 0.94 | O117: 0.5 | P117: 1.66 | Q117: 9.21 | R117: 12.88 | S117: 16.34 | T117: 27.8 | U117: 36.1 | V117: 63.9 | W117: 0.1940681254 | X117: 0.1530316936
A118: BOYES, BRAD | B118: Florida | C118: 65 | D118: 34.66180556 | E118: 7 | F118: 16 | G118: 12 | H118: 23 | I118: 99 | J118: 144 | K118: 172 | L118: 7.07 | M118: 0.5 | N118: 1.15 | O118: 0.87 | P118: 1.66 | Q118: 7.14 | R118: 10.39 | S118: 12.41 | T118: 20 | U118: 45.7 | V118: 65.7 | W118: 0.240706983 | X118: 0.2015221253
A119: TATAR, TOMAS | B119: Detroit | C119: 65 | D119: 34.61111111 | E119: 15 | F119: 10 | G119: 5 | H119: 25 | I119: 118 | J119: 166 | K119: 224 | L119: 12.71 | M119: 1.08 | N119: 0.72 | O119: 0.36 | P119: 1.81 | Q119: 8.52 | R119: 11.99 | S119: 16.18 | T119: 41.7 | U119: 27.8 | V119: 69.4 | W119: 0.2085006693 | X119: 0.1545138889
A120: JOHANSSON, MARCUS | B120: Washington | C120: 67 | D120: 34.58680556 | E120: 13 | F120: 8 | G120: 5 | H120: 21 | I120: 90 | J120: 122 | K120: 166 | L120: 14.44 | M120: 0.94 | N120: 0.58 | O120: 0.36 | P120: 1.52 | Q120: 6.51 | R120: 8.82 | S120: 12 | T120: 44.8 | U120: 27.6 | V120: 72.4 | W120: 0.2834984062 | X120: 0.2083542503
A121: VRBATA, RADIM | B121: Vancouver | C121: 64 | D121: 34.42708333 | E121: 13 | F121: 10 | G121: 8 | H121: 23 | I121: 136 | J121: 185 | K121: 239 | L121: 9.56 | M121: 0.94 | N121: 0.73 | O121: 0.58 | P121: 1.67 | Q121: 9.88 | R121: 13.43 | S121: 17.36 | T121: 48.1 | U121: 37 | V121: 85.2 | W121: 0.1860923423 | X121: 0.1440463738
A122: WILSON, COLIN | B122: Nashville | C122: 64 | D122: 34.40486111 | E122: 16 | F122: 16 | G122: 14 | H122: 32 | I122: 117 | J122: 146 | K122: 191 | L122: 13.68 | M122: 1.16 | N122: 1.16 | O122: 1.02 | P122: 2.33 | Q122: 8.5 | R122: 10.61 | S122: 13.88 | T122: 35.6 | U122: 35.6 | V122: 71.1 | W122: 0.2356497336 | X122: 0.1801301629
A123: NYQUIST, GUSTAV | B123: Detroit | C123: 65 | D123: 34.39861111 | E123: 8 | F123: 12 | G123: 8 | H123: 20 | I123: 108 | J123: 138 | K123: 189 | L123: 7.41 | M123: 0.58 | N123: 0.87 | O123: 0.58 | P123: 1.45 | Q123: 7.85 | R123: 10.03 | S123: 13.74 | T123: 29.6 | U123: 44.4 | V123: 74.1 | W123: 0.2492652979 | X123: 0.1820032334
A124: SUTTER, BRANDON | B124: Pittsburgh | C124: 65 | D124: 34.33125 | E124: 9 | F124: 8 | G124: 3 | H124: 17 | I124: 91 | J124: 130 | K124: 163 | L124: 9.89 | M124: 0.66 | N124: 0.58 | O124: 0.22 | P124: 1.24 | Q124: 6.63 | R124: 9.47 | S124: 11.87 | T124: 37.5 | U124: 33.3 | V124: 70.8 | W124: 0.2640865385 | X124: 0.2106211656
A125: ATKINSON, CAM | B125: Columbus | C125: 63 | D125: 34.28472222 | E125: 9 | F125: 9 | G125: 5 | H125: 18 | I125: 132 | J125: 169 | K125: 210 | L125: 6.82 | M125: 0.66 | N125: 0.66 | O125: 0.36 | P125: 1.31 | Q125: 9.63 | R125: 12.32 | S125: 15.31 | T125: 36 | U125: 36 | V125: 72 | W125: 0.2028681788 | X125: 0.163260582
A126: RYAN, BOBBY | B126: Ottawa | C126: 62 | D126: 34.23333333 | E126: 10 | F126: 19 | G126: 11 | H126: 29 | I126: 117 | J126: 149 | K126: 198 | L126: 8.55 | M126: 0.73 | N126: 1.39 | O126: 0.8 | P126: 2.12 | Q126: 8.54 | R126: 10.88 | S126: 14.46 | T126: 25.6 | U126: 48.7 | V126: 74.4 | W126: 0.229753915 | X126: 0.1728956229
A127: WINNIK, DANIEL | B127: Pittsburgh | C127: 64 | D127: 34.10625 | E127: 7 | F127: 17 | G127: 11 | H127: 24 | I127: 69 | J127: 99 | K127: 123 | L127: 10.14 | M127: 0.51 | N127: 1.25 | O127: 0.81 | P127: 1.76 | Q127: 5.06 | R127: 7.26 | S127: 9.02 | T127: 22.6 | U127: 54.8 | V127: 77.4 | W127: 0.3445075758 | X127: 0.2772865854
A128: NASH, RICK | B128: NY Rangers | C128: 64 | D128: 34.01944444 | E128: 27 | F128: 17 | G128: 12 | H128: 44 | I128: 182 | J128: 229 | K128: 303 | L128: 14.84 | M128: 1.98 | N128: 1.25 | O128: 0.88 | P128: 3.23 | Q128: 13.37 | R128: 16.83 | S128: 22.27 | T128: 52.9 | U128: 33.3 | V128: 86.3 | W128: 0.148556526 | X128: 0.1122753942
A129: KING, DWIGHT | B129: Los Angeles | C129: 66 | D129: 33.99652778 | E129: 9 | F129: 9 | G129: 6 | H129: 18 | I129: 92 | J129: 123 | K129: 151 | L129: 9.78 | M129: 0.66 | N129: 0.66 | O129: 0.44 | P129: 1.32 | Q129: 6.77 | R129: 9.04 | S129: 11.1 | T129: 31 | U129: 31 | V129: 62.1 | W129: 0.2763945348 | X129: 0.2251425681
A130: ELLER, LARS | B130: Montreal | C130: 63 | D130: 33.98888889 | E130: 9 | F130: 7 | G130: 4 | H130: 16 | I130: 105 | J130: 147 | K130: 178 | L130: 8.57 | M130: 0.66 | N130: 0.51 | O130: 0.29 | P130: 1.18 | Q130: 7.72 | R130: 10.81 | S130: 13.09 | T130: 34.6 | U130: 26.9 | V130: 61.5 | W130: =((D130*1440)/J130)/1440 -> 0.2312169312 | X130: =((D130*1440)/K130)/1440 -> 0.190948814
A131: HENRIQUE, ADAM | B131: New Jersey | C131: 61 | D131: 33.98263889 | E131: 10 | F131: 10 | G131: 5 | H131: 20 | I131: 78 | J131: 99 | K131: 136 | L131: 12.82 | M131: 0.74 | N131: 0.74 | O131: 0.37 | P131: 1.47 | Q131: 5.74 | R131: 7.28 | S131: 10.01 | T131: 32.3 | U131: 32.3 | V131: 64.5 | W131: 0.3432589787 | X131: 0.2498723448
A132: EAKIN, CODY | B132: Dallas | C132: 64 | D132: 33.97777778 | E132: 11 | F132: 11 | G132: 2 | H132: 22 | I132: 97 | J132: 137 | K132: 174 | L132: 11.34 | M132: 0.81 | N132: 0.81 | O132: 0.15 | P132: 1.62 | Q132: 7.14 | R132: 10.08 | S132: 12.8 | T132: 27.5 | U132: 27.5 | V132: 55 | W132: 0.2480129765 | X132: 0.1952745849
A133: KUNITZ, CHRIS | B133: Pittsburgh | C133: 59 | D133: 33.92916667 | E133: 7 | F133: 15 | G133: 11 | H133: 22 | I133: 95 | J133: 128 | K133: 180 | L133: 7.37 | M133: 0.52 | N133: 1.11 | O133: 0.81 | P133: 1.62 | Q133: 7 | R133: 9.43 | S133: 13.26 | T133: 16.7 | U133: 35.7 | V133: 52.4 | W133: 0.2650716146 | X133: 0.1884953704
A134: LOWRY, ADAM | B134: Winnipeg | C134: 66 | D134: 33.73888889 | E134: 7 | F134: 7 | G134: 7 | H134: 14 | I134: 77 | J134: 106 | K134: 132 | L134: 9.09 | M134: 0.52 | N134: 0.52 | O134: 0.52 | P134: 1.04 | Q134: 5.71 | R134: 7.85 | S134: 9.78 | T134: 26.9 | U134: 26.9 | V134: 53.8 | W134: 0.3182914046 | X134: 0.2555976431
A135: PALAT, ONDREJ | B135: Tampa Bay | C135: 64 | D135: 33.54375 | E135: 9 | F135: 30 | G135: 16 | H135: 39 | I135: 102 | J135: 142 | K135: 193 | L135: 8.82 | M135: 0.67 | N135: 2.24 | O135: 1.19 | P135: 2.91 | Q135: 7.6 | R135: 10.58 | S135: 14.38 | T135: 16.7 | U135: 55.6 | V135: 72.2 | W135: 0.2362235915 | X135: 0.1738018135
A136: WINGELS, TOMMY | B136: San Jose | C136: 61 | D136: 33.47638889 | E136: 7 | F136: 9 | G136: 5 | H136: 16 | I136: 101 | J136: 145 | K136: 177 | L136: 6.93 | M136: 0.52 | N136: 0.67 | O136: 0.37 | P136: 1.19 | Q136: 7.54 | R136: 10.83 | S136: 13.22 | T136: 28 | U136: 36 | V136: 64 | W136: 0.2308716475 | X136: 0.1891321406
A137: BAILEY, JOSH | B137: NY Islanders | C137: 57 | D137: 33.47361111 | E137: 13 | F137: 21 | G137: 10 | H137: 34 | I137: 105 | J137: 140 | K137: 198 | L137: 12.38 | M137: 0.97 | N137: 1.57 | O137: 0.75 | P137: 2.54 | Q137: 7.84 | R137: 10.46 | S137: 14.79 | T137: 26.5 | U137: 42.9 | V137: 69.4 | W137: 0.2390972222 | X137: 0.169058642
A138: GERBE, NATHAN | B138: Carolina | C138: 62 | D138: 33.39166667 | E138: 4 | F138: 13 | G138: 8 | H138: 17 | I138: 144 | J138: 184 | K138: 242 | L138: 2.78 | M138: 0.3 | N138: 0.97 | O138: 0.6 | P138: 1.27 | Q138: 10.78 | R138: 13.78 | S138: 18.12 | T138: 15.4 | U138: 50 | V138: 65.4 | W138: 0.1814764493 | X138: 0.1379820937
A139: STASTNY, PAUL | B139: St. Louis | C139: 59 | D139: 33.32291667 | E139: 6 | F139: 17 | G139: 12 | H139: 23 | I139: 81 | J139: 113 | K139: 130 | L139: 7.41 | M139: 0.45 | N139: 1.28 | O139: 0.9 | P139: 1.73 | Q139: 6.08 | R139: 8.48 | S139: 9.75 | T139: 16.7 | U139: 47.2 | V139: 63.9 | W139: 0.2948930678 | X139: 0.2563301282
A140: SKINNER, JEFF | B140: Carolina | C140: 61 | D140: 33.28958333 | E140: 12 | F140: 9 | G140: 6 | H140: 21 | I140: 140 | J140: 204 | K140: 271 | L140: 8.57 | M140: 0.9 | N140: 0.68 | O140: 0.45 | P140: 1.58 | Q140: 10.51 | R140: 15.32 | S140: 20.35 | T140: 48 | U140: 36 | V140: 84 | W140: 0.163184232 | X140: 0.1228397909
A141: ZIBANEJAD, MIKA | B141: Ottawa | C141: 64 | D141: 33.25138889 | E141: 12 | F141: 10 | G141: 7 | H141: 22 | I141: 79 | J141: 113 | K141: 153 | L141: 15.19 | M141: 0.9 | N141: 0.75 | O141: 0.53 | P141: 1.65 | Q141: 5.94 | R141: 8.5 | S141: 11.5 | T141: 34.3 | U141: 28.6 | V141: 62.9 | W141: 0.2942600787 | X141: 0.2173293391
A142: KILLORN, ALEX | B142: Tampa Bay | C142: 61 | D142: 33.15694444 | E142: 10 | F142: 19 | G142: 10 | H142: 29 | I142: 86 | J142: 118 | K142: 149 | L142: 11.63 | M142: 0.75 | N142: 1.43 | O142: 0.75 | P142: 2.19 | Q142: 6.48 | R142: 8.9 | S142: 11.23 | T142: 25.6 | U142: 48.7 | V142: 74.4 | W142: 0.2809910546 | X142: 0.2225298285
A143: ROUSSEL, ANTOINE | B143: Dallas | C143: 66 | D143: 33.13402778 | E143: 11 | F143: 8 | G143: 4 | H143: 19 | I143: 79 | J143: 116 | K143: 142 | L143: 13.92 | M143: 0.83 | N143: 0.6 | O143: 0.3 | P143: 1.43 | Q143: 5.96 | R143: 8.75 | S143: 10.71 | T143: 34.4 | U143: 25 | V143: 59.4 | W143: 0.2856381705 | X143: 0.2333382238
A144: ARCOBELLO, MARK | B144: Arizona | C144: 63 | D144: 33.12986111 | E144: 11 | F144: 7 | G144: 3 | H144: 18 | I144: 88 | J144: 120 | K144: 157 | L144: 12.5 | M144: 0.83 | N144: 0.53 | O144: 0.23 | P144: 1.36 | Q144: 6.64 | R144: 9.06 | S144: 11.85 | T144: 42.3 | U144: 26.9 | V144: 69.2 | W144: 0.2760821759 | X144: 0.2110182236
A145: FEHR, ERIC | B145: Washington | C145: 63 | D145: 33.09722222 | E145: 12 | F145: 8 | G145: 6 | H145: 20 | I145: 105 | J145: 137 | K145: 170 | L145: 11.43 | M145: 0.91 | N145: 0.6 | O145: 0.45 | P145: 1.51 | Q145: 7.93 | R145: 10.35 | S145: 12.84 | T145: 41.4 | U145: 27.6 | V145: 69 | W145: 0.2415855637 | X145: 0.1946895425
A146: STAFFORD, DREW | B146: Winnipeg | C146: 62 | D146: 33.06041667 | E146: 9 | F146: 13 | G146: 7 | H146: 22 | I146: 87 | J146: 104 | K146: 125 | L146: 10.34 | M146: 0.68 | N146: 0.98 | O146: 0.53 | P146: 1.66 | Q146: 6.58 | R146: 7.86 | S146: 9.45 | T146: 36 | U146: 52 | V146: 88 | W146: 0.3178886218 | X146: 0.2644833333
A147: DATSYUK, PAVEL | B147: Detroit | C147: 54 | D147: 32.98611111 | E147: 11 | F147: 15 | G147: 10 | H147: 26 | I147: 94 | J147: 127 | K147: 168 | L147: 11.7 | M147: 0.83 | N147: 1.14 | O147: 0.76 | P147: 1.97 | Q147: 7.12 | R147: 9.63 | S147: 12.73 | T147: 32.4 | U147: 44.1 | V147: 76.5 | W147: 0.2597331584 | X147: 0.1963458995
A148: RICHARDS, BRAD | B148: Chicago | C148: 64 | D148: 32.97708333 | E148: 8 | F148: 17 | G148: 8 | H148: 25 | I148: 132 | J148: 171 | K148: 205 | L148: 6.06 | M148: 0.61 | N148: 1.29 | O148: 0.61 | P148: 1.9 | Q148: 10.01 | R148: 12.96 | S148: 15.54 | T148: 20 | U148: 42.5 | V148: 62.5 | W148: 0.1928484405 | X148: 0.1608638211
A149: NELSON, BROCK | B149: NY Islanders | C149: 69 | D149: 32.91736111 | E149: 9 | F149: 15 | G149: 6 | H149: 24 | I149: 105 | J149: 138 | K149: 181 | L149: 8.57 | M149: 0.68 | N149: 1.14 | O149: 0.46 | P149: 1.82 | Q149: 7.97 | R149: 10.48 | S149: 13.75 | T149: 23.7 | U149: 39.5 | V149: 63.2 | W149: 0.2385316023 | X149: 0.1818638735
A150: TLUSTY, JIRI | B150: Winnipeg | C150: 58 | D150: 32.87777778 | E150: 7 | F150: 9 | G150: 3 | H150: 16 | I150: 84 | J150: 128 | K150: 168 | L150: 8.33 | M150: 0.53 | N150: 0.68 | O150: 0.23 | P150: 1.22 | Q150: 6.39 | R150: 9.73 | S150: 12.77 | T150: 28 | U150: 36 | V150: 64 | W150: 0.2568576389 | X150: 0.1957010582
A151: RIEDER, TOBIAS | B151: Arizona | C151: 58 | D151: 32.80277778 | E151: 8 | F151: 4 | G151: 2 | H151: 12 | I151: 132 | J151: 178 | K151: 218 | L151: 6.06 | M151: 0.61 | N151: 0.3 | O151: 0.15 | P151: 0.91 | Q151: 10.06 | R151: 13.57 | S151: 16.61 | T151: 33.3 | U151: 16.7 | V151: 50 | W151: 0.1842852684 | X151: 0.1504714577
A152: BERGLUND, PATRIK | B152: St. Louis | C152: 62 | D152: 32.76319444 | E152: 8 | F152: 11 | G152: 5 | H152: 19 | I152: 104 | J152: 141 | K152: 169 | L152: 7.69 | M152: 0.61 | N152: 0.84 | O152: 0.38 | P152: 1.45 | Q152: 7.94 | R152: 10.76 | S152: 12.9 | T152: 27.6 | U152: 37.9 | V152: 65.5 | W152: 0.2323630812 | X152: 0.1938650559
A153: NIEDERREITER, NINO | B153: Minnesota | C153: 66 | D153: 32.72013889 | E153: 12 | F153: 9 | G153: 5 | H153: 21 | I153: 99 | J153: 144 | K153: 181 | L153: 12.12 | M153: 0.92 | N153: 0.69 | O153: 0.38 | P153: 1.6 | Q153: 7.56 | R153: 11 | S153: 13.83 | T153: 37.5 | U153: 28.1 | V153: 65.6 | W153: 0.2272231867 | X153: 0.180774248
A154: STONE, MARK | B154: Ottawa | C154: 64 | D154: 32.65902778 | E154: 13 | F154: 19 | G154: 12 | H154: 32 | I154: 83 | J154: 122 | K154: 149 | L154: 15.66 | M154: 1 | N154: 1.45 | O154: 0.92 | P154: 2.45 | Q154: 6.35 | R154: 9.34 | S154: 11.41 | T154: 30.2 | U154: 44.2 | V154: 74.4 | W154: 0.267696949 | X154: 0.2191881059
A155: RASK, VICTOR | B155: Carolina | C155: 64 | D155: 32.62083333 | E155: 8 | F155: 7 | G155: 4 | H155: 15 | I155: 101 | J155: 130 | K155: 167 | L155: 7.92 | M155: 0.61 | N155: 0.54 | O155: 0.31 | P155: 1.15 | Q155: 7.74 | R155: 9.96 | S155: 12.8 | T155: 30.8 | U155: 26.9 | V155: 57.7 | W155: 0.2509294872 | X155: 0.1953343313
A156: KORPIKOSKI, LAURI | B156: Arizona | C156: 63 | D156: 32.59930556 | E156: 1 | F156: 9 | G156: 3 | H156: 10 | I156: 57 | J156: 83 | K156: 119 | L156: 1.75 | M156: 0.08 | N156: 0.69 | O156: 0.23 | P156: 0.77 | Q156: 4.37 | R156: 6.37 | S156: 9.13 | T156: 7.7 | U156: 69.2 | V156: 76.9 | W156: 0.3927627175 | X156: 0.2739437442
A157: STROME, RYAN | B157: NY Islanders | C157: 69 | D157: 32.59444444 | E157: 11 | F157: 24 | G157: 18 | H157: 35 | I157: 119 | J157: 146 | K157: 185 | L157: 9.24 | M157: 0.84 | N157: 1.84 | O157: 1.38 | P157: 2.68 | Q157: 9.13 | R157: 11.2 | S157: 14.19 | T157: 20.4 | U157: 44.4 | V157: 64.8 | W157: 0.2232496195 | X157: 0.1761861862
A158: CAMMALLERI, MIKE | B158: New Jersey | C158: 56 | D158: 32.56666667 | E158: 11 | F158: 8 | G158: 3 | H158: 19 | I158: 89 | J158: 115 | K158: 144 | L158: 12.36 | M158: 0.84 | N158: 0.61 | O158: 0.23 | P158: 1.46 | Q158: 6.83 | R158: 8.83 | S158: 11.05 | T158: 40.7 | U158: 29.6 | V158: 70.4 | W158: 0.2831884058 | X158: 0.2261574074
A159: NASH, RILEY | B159: Carolina | C159: 63 | D159: 32.30694444 | E159: 6 | F159: 11 | G159: 6 | H159: 17 | I159: 66 | J159: 80 | K159: 112 | L159: 9.09 | M159: 0.46 | N159: 0.85 | O159: 0.46 | P159: 1.32 | Q159: 5.11 | R159: 6.19 | S159: 8.67 | T159: 24 | U159: 44 | V159: 68 | W159: 0.4038368056 | X159: 0.2884548611
A160: JOKINEN, JUSSI | B160: Florida | C160: 66 | D160: 32.29583333 | E160: 5 | F160: 22 | G160: 13 | H160: 27 | I160: 70 | J160: 92 | K160: 116 | L160: 7.14 | M160: 0.39 | N160: 1.7 | O160: 1.01 | P160: 2.09 | Q160: 5.42 | R160: 7.12 | S160: 8.98 | T160: 15.6 | U160: 68.8 | V160: 84.4 | W160: 0.3510416667 | X160: 0.2784123563
A161: NIELSEN, FRANS | B161: NY Islanders | C161: 69 | D161: 32.16388889 | E161: 7 | F161: 12 | G161: 7 | H161: 19 | I161: 97 | J161: 146 | K161: 204 | L161: 7.22 | M161: 0.54 | N161: 0.93 | O161: 0.54 | P161: 1.48 | Q161: 7.54 | R161: 11.35 | S161: 15.86 | T161: 21.2 | U161: 36.4 | V161: 57.6 | W161: 0.2203006088 | X161: 0.157666122
A162: LEHTERA, JORI | B162: St. Louis | C162: 60 | D162: 32.03611111 | E162: 8 | F162: 19 | G162: 15 | H162: 27 | I162: 66 | J162: 87 | K162: 118 | L162: 12.12 | M162: 0.62 | N162: 1.48 | O162: 1.17 | P162: 2.11 | Q162: 5.15 | R162: 6.79 | S162: 9.21 | T162: 18.6 | U162: 44.2 | V162: 62.8 | W162: 0.3682311622 | X162: 0.271492467
A163: ABDELKADER, JUSTIN | B163: Detroit | C163: 58 | D163: 32.01388889 | E163: 9 | F163: 10 | G163: 7 | H163: 19 | I163: 84 | J163: 109 | K163: 134 | L163: 10.71 | M163: 0.7 | N163: 0.78 | O163: 0.55 | P163: 1.48 | Q163: 6.56 | R163: 8.51 | S163: 10.46 | T163: 30 | U163: 33.3 | V163: 63.3 | W163: 0.2937054027 | X163: 0.2389096186
A164: BROUWER, TROY | B164: Washington | C164: 67 | D164: 31.91597222 | E164: 8 | F164: 11 | G164: 7 | H164: 19 | I164: 65 | J164: 93 | K164: 130 | L164: 12.31 | M164: 0.63 | N164: 0.86 | O164: 0.55 | P164: 1.49 | Q164: 5.09 | R164: 7.28 | S164: 10.18 | T164: 25.8 | U164: 35.5 | V164: 61.3 | W164: 0.343182497 | X164: 0.2455074786
A165: ZUBRUS, DAINIUS | B165: New Jersey | C165: 60 | D165: 31.91458333 | E165: 3 | F165: 4 | G165: 2 | H165: 7 | I165: 50 | J165: 66 | K165: 76 | L165: 6 | M165: 0.23 | N165: 0.31 | O165: 0.16 | P165: 0.55 | Q165: 3.92 | R165: 5.17 | S165: 5.95 | T165: 14.3 | U165: 19 | V165: 33.3 | W165: 0.4835542929 | X165: 0.4199287281
A166: SHEAHAN, RILEY | B166: Detroit | C166: 65 | D166: 31.88125 | E166: 6 | F166: 13 | G166: 8 | H166: 19 | I166: 75 | J166: 107 | K166: 142 | L166: 8 | M166: 0.47 | N166: 1.02 | O166: 0.63 | P166: 1.49 | Q166: 5.88 | R166: 8.39 | S166: 11.14 | T166: 21.4 | U166: 46.4 | V166: 67.9 | W166: 0.2979556075 | X166: 0.2245158451
A167: UMBERGER, RJ | B167: Philadelphia | C167: 67 | D167: 31.84861111 | E167: 7 | F167: 6 | G167: 5 | H167: 13 | I167: 86 | J167: 121 | K167: 160 | L167: 8.14 | M167: 0.55 | N167: 0.47 | O167: 0.39 | P167: 1.02 | Q167: 6.75 | R167: 9.5 | S167: 12.56 | T167: 35 | U167: 30 | V167: 65 | W167: 0.2632116621 | X167: 0.1990538194
A168: HANSEN, JANNIK | B168: Vancouver | C168: 66 | D168: 31.71666667 | E168: 7 | F168: 14 | G168: 10 | H168: 21 | I168: 84 | J168: 117 | K168: 159 | L168: 8.33 | M168: 0.55 | N168: 1.1 | O168: 0.79 | P168: 1.66 | Q168: 6.62 | R168: 9.22 | S168: 12.53 | T168: 25 | U168: 50 | V168: 75 | W168: 0.2710826211 | X168: 0.199475891
A169: GLENCROSS, CURTIS | B169: Washington | C169: 56 | D169: 31.64236111 | E169: 7 | F169: 11 | G169: 6 | H169: 18 | I169: 73 | J169: 100 | K169: 129 | L169: 9.59 | M169: 0.55 | N169: 0.87 | O169: 0.47 | P169: 1.42 | Q169: 5.77 | R169: 7.9 | S169: 10.19 | T169: 26.9 | U169: 42.3 | V169: 69.2 | W169: 0.3164236111 | X169: 0.245289621
A170: MATTHIAS, SHAWN | B170: Vancouver | C170: 65 | D170: 31.425 | E170: 15 | F170: 5 | G170: 3 | H170: 20 | I170: 104 | J170: 143 | K170: 165 | L170: 14.42 | M170: 1.19 | N170: 0.4 | O170: 0.24 | P170: 1.59 | Q170: 8.27 | R170: 11.38 | S170: 13.13 | T170: 57.7 | U170: 19.2 | V170: 76.9 | W170: 0.2197552448 | X170: 0.1904545455
A171: PRUST, BRANDON | B171: Montreal | C171: 68 | D171: 31.39861111 | E171: 4 | F171: 9 | G171: 8 | H171: 13 | I171: 65 | J171: 88 | K171: 106 | L171: 6.15 | M171: 0.32 | N171: 0.72 | O171: 0.64 | P171: 1.04 | Q171: 5.18 | R171: 7.01 | S171: 8.44 | T171: 22.2 | U171: 50 | V171: 72.2 | W171: 0.356802399 | X171: 0.2962133124
A172: GRANLUND, MIKAEL | B172: Minnesota | C172: 53 | D172: 31.39166667 | E172: 7 | F172: 16 | G172: 10 | H172: 23 | I172: 63 | J172: 89 | K172: 120 | L172: 11.11 | M172: 0.56 | N172: 1.27 | O172: 0.8 | P172: 1.83 | Q172: 5.02 | R172: 7.09 | S172: 9.56 | T172: 16.3 | U172: 37.2 | V172: 53.5 | W172: 0.3527153558 | X172: 0.2615972222
A173: WEISE, DALE | B173: Montreal | C173: 65 | D173: 31.33333333 | E173: 8 | F173: 16 | G173: 14 | H173: 24 | I173: 78 | J173: 106 | K173: 129 | L173: 10.26 | M173: 0.64 | N173: 1.28 | O173: 1.12 | P173: 1.91 | Q173: 6.22 | R173: 8.46 | S173: 10.29 | T173: 22.9 | U173: 45.7 | V173: 68.6 | W173: 0.2955974843 | X173: 0.2428940568
A174: BOUMA, LANCE | B174: Calgary | C174: 64 | D174: 31.29861111 | E174: 12 | F174: 11 | G174: 8 | H174: 23 | I174: 73 | J174: 107 | K174: 128 | L174: 16.44 | M174: 0.96 | N174: 0.88 | O174: 0.64 | P174: 1.84 | Q174: 5.83 | R174: 8.55 | S174: 10.22 | T174: 38.7 | U174: 35.5 | V174: 74.2 | W174: 0.2925103842 | X174: 0.2445203993
A175: HIGGINS, CHRIS | B175: Vancouver | C175: 63 | D175: 31.22152778 | E175: 6 | F175: 18 | G175: 10 | H175: 24 | I175: 105 | J175: 146 | K175: 178 | L175: 5.71 | M175: 0.48 | N175: 1.44 | O175: 0.8 | P175: 1.92 | Q175: 8.41 | R175: 11.69 | S175: 14.25 | T175: 17.1 | U175: 51.4 | V175: 68.6 | W175: 0.2138460807 | X175: 0.1754018414
A176: HOFFMAN, MIKE | B176: Ottawa | C176: 63 | D176: 31.14583333 | E176: 21 | F176: 14 | G176: 10 | H176: 35 | I176: 134 | J176: 170 | K176: 242 | L176: 15.67 | M176: 1.69 | N176: 1.12 | O176: 0.8 | P176: 2.81 | Q176: 10.76 | R176: 13.65 | S176: 19.42 | T176: 44.7 | U176: 29.8 | V176: 74.5 | W176: 0.1832107843 | X176: 0.1287017906
A177: BARKOV, ALEKSANDER | B177: Florida | C177: 56 | D177: 31.14375 | E177: 10 | F177: 9 | G177: 4 | H177: 19 | I177: 70 | J177: 91 | K177: 107 | L177: 14.29 | M177: 0.8 | N177: 0.72 | O177: 0.32 | P177: 1.53 | Q177: 5.62 | R177: 7.3 | S177: 8.59 | T177: 40 | U177: 36 | V177: 76 | W177: 0.342239011 | X177: 0.2910630841
A178: PERRY, COREY | B178: Anaheim | C178: 53 | D178: 31.10972222 | E178: 19 | F178: 11 | G178: 6 | H178: 30 | I178: 109 | J178: 156 | K178: 210 | L178: 17.43 | M178: 1.53 | N178: 0.88 | O178: 0.48 | P178: 2.41 | Q178: 8.76 | R178: 12.54 | S178: 16.88 | T178: 46.3 | U178: 26.8 | V178: 73.2 | W178: 0.1994212963 | X178: 0.1481415344
A179: LEE, ANDERS | B179: NY Islanders | C179: 63 | D179: 31.07013889 | E179: 16 | F179: 13 | G179: 7 | H179: 29 | I179: 134 | J179: 172 | K179: 205 | L179: 11.94 | M179: 1.29 | N179: 1.05 | O179: 0.56 | P179: 2.33 | Q179: 10.78 | R179: 13.84 | S179: 16.49 | T179: 34.8 | U179: 28.3 | V179: 63 | W179: 0.1806403424 | X179: 0.1515616531
A180: MICHALEK, MILAN | B180: Ottawa | C180: 61 | D180: 31.03541667 | E180: 6 | F180: 13 | G180: 8 | H180: 19 | I180: 82 | J180: 121 | K180: 158 | L180: 7.32 | M180: 0.48 | N180: 1.05 | O180: 0.64 | P180: 1.53 | Q180: 6.61 | R180: 9.75 | S180: 12.73 | T180: 22.2 | U180: 48.1 | V180: 70.4 | W180: 0.2564910468 | X180: 0.1964266878
A181: MARTIN, MATT | B181: NY Islanders | C181: 68 | D181: 30.96736111 | E181: 8 | F181: 6 | G181: 3 | H181: 14 | I181: 80 | J181: 105 | K181: 127 | L181: 10 | M181: 0.65 | N181: 0.48 | O181: 0.24 | P181: 1.13 | Q181: 6.46 | R181: 8.48 | S181: 10.25 | T181: 33.3 | U181: 25 | V181: 58.3 | W181: 0.2949272487 | X181: 0.2438374891
A182: NIETO, MATT | B182: San Jose | C182: 58 | D182: 30.93611111 | E182: 5 | F182: 10 | G182: 6 | H182: 15 | I182: 87 | J182: 117 | K182: 146 | L182: 5.75 | M182: 0.4 | N182: 0.81 | O182: 0.48 | P182: 1.21 | Q182: 7.03 | R182: 9.46 | S182: 11.8 | T182: 17.9 | U182: 35.7 | V182: 53.6 | W182: 0.2644112061 | X182: 0.211891172
A183: BONINO, NICK | B183: Vancouver | C183: 60 | D183: 30.87916667 | E183: 11 | F183: 14 | G183: 9 | H183: 25 | I183: 91 | J183: 124 | K183: 152 | L183: 12.09 | M183: 0.89 | N183: 1.13 | O183: 0.73 | P183: 2.02 | Q183: 7.37 | R183: 10.04 | S183: 12.31 | T183: 37.9 | U183: 48.3 | V183: 86.2 | W183: 0.2490255376 | X183: 0.2031524123
A184: ROY, DEREK | B184: Edmonton | C184: 58 | D184: 30.82708333 | E184: 7 | F184: 14 | G184: 10 | H184: 21 | I184: 67 | J184: 93 | K184: 113 | L184: 10.45 | M184: 0.57 | N184: 1.14 | O184: 0.81 | P184: 1.7 | Q184: 5.43 | R184: 7.54 | S184: 9.16 | T184: 25 | U184: 50 | V184: 75 | W184: 0.3314740143 | X184: 0.2728060472
A185: SHAW, ANDREW | B185: Chicago | C185: 64 | D185: 30.75486111 | E185: 7 | F185: 6 | G185: 3 | H185: 13 | I185: 100 | J185: 127 | K185: 160 | L185: 7 | M185: 0.57 | N185: 0.49 | O185: 0.24 | P185: 1.06 | Q185: 8.13 | R185: 10.32 | S185: 13.01 | T185: 35 | U185: 30 | V185: 65 | W185: 0.2421642607 | X185: 0.1922178819
A186: HAYES, JIMMY | B186: Florida | C186: 58 | D186: 30.69513889 | E186: 13 | F186: 6 | G186: 3 | H186: 19 | I186: 109 | J186: 139 | K186: 165 | L186: 11.93 | M186: 1.06 | N186: 0.49 | O186: 0.24 | P186: 1.55 | Q186: 8.88 | R186: 11.32 | S186: 13.44 | T186: 39.4 | U186: 18.2 | V186: 57.6 | W186: 0.2208283373 | X186: 0.1860311448
A187: COLE, ERIK | B187: Detroit | C187: 62 | D187: 30.69375 | E187: 14 | F187: 12 | G187: 9 | H187: 26 | I187: 95 | J187: 123 | K187: 161 | L187: 14.74 | M187: 1.14 | N187: 0.98 | O187: 0.73 | P187: 2.12 | Q187: 7.74 | R187: 10.02 | S187: 13.11 | T187: 41.2 | U187: 35.3 | V187: 76.5 | W187: 0.2495426829 | X187: 0.1906444099
A188: SHEPPARD, JAMES | B188: NY Rangers | C188: 59 | D188: 30.66041667 | E188: 5 | F188: 8 | G188: 5 | H188: 13 | I188: 64 | J188: 96 | K188: 122 | L188: 7.81 | M188: 0.41 | N188: 0.65 | O188: 0.41 | P188: 1.06 | Q188: 5.22 | R188: 7.83 | S188: 9.95 | T188: 26.3 | U188: 42.1 | V188: 68.4 | W188: 0.3193793403 | X188: 0.2513148907
A189: MOORE, DOMINIC | B189: NY Rangers | C189: 65 | D189: 30.53541667 | E189: 3 | F189: 9 | G189: 3 | H189: 12 | I189: 73 | J189: 102 | K189: 140 | L189: 4.11 | M189: 0.25 | N189: 0.74 | O189: 0.25 | P189: 0.98 | Q189: 5.98 | R189: 8.35 | S189: 11.46 | T189: 15 | U189: 45 | V189: 60 | W189: 0.2993668301 | X189: 0.218110119
A190: BICKELL, BRYAN | B190: Chicago | C190: 66 | D190: 30.43333333 | E190: 8 | F190: 12 | G190: 4 | H190: 20 | I190: 87 | J190: 110 | K190: 143 | L190: 9.2 | M190: 0.66 | N190: 0.99 | O190: 0.33 | P190: 1.64 | Q190: 7.15 | R190: 9.04 | S190: 11.75 | T190: 29.6 | U190: 44.4 | V190: 74.1 | W190: 0.2766666667 | X190: 0.2128205128
A191: SMITH-PELLY, DEVANTE | B191: Montreal | C191: 62 | D191: 30.36736111 | E191: 4 | F191: 10 | G191: 3 | H191: 14 | I191: 71 | J191: 107 | K191: 129 | L191: 5.63 | M191: 0.33 | N191: 0.82 | O191: 0.25 | P191: 1.15 | Q191: 5.85 | R191: 8.81 | S191: 10.62 | T191: 16.7 | U191: 41.7 | V191: 58.3 | W191: 0.2838071132 | X191: 0.2354059001
A192: ELIAS, PATRIK | B192: New Jersey | C192: 58 | D192: 30.30625 | E192: 7 | F192: 12 | G192: 8 | H192: 19 | I192: 59 | J192: 87 | K192: 107 | L192: 11.86 | M192: 0.58 | N192: 0.99 | O192: 0.66 | P192: 1.57 | Q192: 4.87 | R192: 7.18 | S192: 8.83 | T192: 33.3 | U192: 57.1 | V192: 90.5 | W192: 0.3483477011 | X192: 0.2832359813
A193: PERREAULT, MATHIEU | B193: Winnipeg | C193: 56 | D193: 30.25902778 | E193: 10 | F193: 12 | G193: 9 | H193: 22 | I193: 82 | J193: 103 | K193: 134 | L193: 12.2 | M193: 0.83 | N193: 0.99 | O193: 0.74 | P193: 1.82 | Q193: 6.77 | R193: 8.51 | S193: 11.07 | T193: 35.7 | U193: 42.9 | V193: 78.6 | W193: 0.2937769687 | X193: 0.2258136401
A194: HORNQVIST, PATRIC | B194: Pittsburgh | C194: 54 | D194: 30.11527778 | E194: 13 | F194: 10 | G194: 5 | H194: 23 | I194: 118 | J194: 161 | K194: 216 | L194: 11.02 | M194: 1.08 | N194: 0.83 | O194: 0.42 | P194: 1.91 | Q194: 9.8 | R194: 13.37 | S194: 17.93 | T194: 32.5 | U194: 25 | V194: 57.5 | W194: =((D194*1440)/J194)/1440 -> 0.1870514148 | X194: =((D194*1440)/K194)/1440 -> 0.1394225823
A195: HELM, DARREN | B195: Detroit | C195: 60 | D195: 30.06458333 | E195: 8 | F195: 12 | G195: 11 | H195: 20 | I195: 98 | J195: 131 | K195: 172 | L195: 8.16 | M195: 0.67 | N195: 1 | O195: 0.91 | P195: 1.66 | Q195: 8.15 | R195: 10.89 | S195: 14.3 | T195: 28.6 | U195: 42.9 | V195: 71.4 | W195: 0.2295006361 | X195: 0.1747940891
A196: MCCLEMENT, JAY | B196: Carolina | C196: 66 | D196: 29.98194444 | E196: 6 | F196: 13 | G196: 7 | H196: 19 | I196: 62 | J196: 81 | K196: 101 | L196: 9.68 | M196: 0.5 | N196: 1.08 | O196: 0.58 | P196: 1.58 | Q196: 5.17 | R196: 6.75 | S196: 8.42 | T196: 20.7 | U196: 44.8 | V196: 65.5 | W196: 0.3701474623 | X196: 0.2968509351
A197: MAROON, PATRICK | B197: Anaheim | C197: 60 | D197: 29.91666667 | E197: 5 | F197: 15 | G197: 12 | H197: 20 | I197: 88 | J197: 123 | K197: 138 | L197: 5.68 | M197: 0.42 | N197: 1.25 | O197: 1 | P197: 1.67 | Q197: 7.35 | R197: 10.28 | S197: 11.53 | T197: 16.1 | U197: 48.4 | V197: 64.5 | W197: 0.2432249322 | X197: 0.2167874396
A198: THOMPSON, NATE | B198: Anaheim | C198: 66 | D198: 29.83819444 | E198: 0 | F198: 11 | G198: 6 | H198: 11 | I198: 60 | J198: 86 | K198: 106 | L198: 0 | M198: 0 | N198: 0.92 | O198: 0.5 | P198: 0.92 | Q198: 5.03 | R198: 7.21 | S198: 8.88 | T198: 0 | U198: 64.7 | V198: 64.7 | W198: 0.3469557494 | X198: 0.2814924004
A199: GIONTA, BRIAN | B199: Buffalo | C199: 53 | D199: 29.78611111 | E199: 5 | F199: 10 | G199: 6 | H199: 15 | I199: 81 | J199: 107 | K199: 137 | L199: 6.17 | M199: 0.42 | N199: 0.84 | O199: 0.5 | P199: 1.26 | Q199: 6.8 | R199: 8.98 | S199: 11.5 | T199: 21.7 | U199: 43.5 | V199: 65.2 | W199: 0.2783748702 | X199: 0.2174168694
A200: OKPOSO, KYLE | B200: NY Islanders | C200: 47 | D200: 29.76527778 | E200: 10 | F200: 18 | G200: 11 | H200: 28 | I200: 117 | J200: 158 | K200: 196 | L200: 8.55 | M200: 0.84 | N200: 1.51 | O200: 0.92 | P200: 2.35 | Q200: 9.83 | R200: 13.27 | S200: 16.46 | T200: 29.4 | U200: 52.9 | V200: 82.4 | W200: 0.188387834 | X200: 0.1518636621
... 285 more rows

Sheet 1 Yr - DMEN
A1: Player Name | B1: Team | C1: GP | D1: TOI | E1: G | F1: A | G1: FirstA | H1: Points | I1: Shots | J1: iFenwick | K1: iCorsi | L1: ShPct | M1: G/60 | N1: A/60 | O1: FirstA/60 | P1: Points/60 | Q1: Shots/60 | R1: iFenwick/60 | S1: iCorsi/60 | T1: IGP | U1: IAP | V1: IPP
A2: DOUGHTY, DREW | B2: Los Angeles | C2: 67 | D2: 59.57777778 | E2: 5 | F2: 20 | G2: 11 | H2: 25 | I2: 113 | J2: 169 | K2: 259 | L2: 4.42 | M2: 0.21 | N2: 0.84 | O2: 0.46 | P2: 1.05 | Q2: 4.74 | R2: 7.09 | S2: 10.87 | T2: 8.3 | U2: 33.3 | V2: 41.7
A3: SUTER, RYAN | B3: Minnesota | C3: 63 | D3: 56.36319444 | E3: 1 | F3: 15 | G3: 3 | H3: 16 | I3: 85 | J3: 130 | K3: 199 | L3: 1.18 | M3: 0.04 | N3: 0.67 | O3: 0.13 | P3: 0.71 | Q3: 3.77 | R3: 5.77 | S3: 8.83 | T3: 2 | U3: 30 | V3: 32
A4: KARLSSON, ERIK | B4: Ottawa | C4: 66 | D4: 55.28541667 | E4: 13 | F4: 15 | G4: 6 | H4: 28 | I4: 148 | J4: 212 | K4: 317 | L4: 8.78 | M4: 0.59 | N4: 0.68 | O4: 0.27 | P4: 1.27 | Q4: 6.69 | R4: 9.59 | S4: 14.33 | T4: 22 | U4: 25.4 | V4: 47.5
A5: JOSI, ROMAN | B5: Nashville | C5: 68 | D5: 54.82569444 | E5: 7 | F5: 18 | G5: 8 | H5: 25 | I5: 115 | J5: 152 | K5: 224 | L5: 6.09 | M5: 0.32 | N5: 0.82 | O5: 0.36 | P5: 1.14 | Q5: 5.24 | R5: 6.93 | S5: 10.21 | T5: 12.5 | U5: 32.1 | V5: 44.6
A6: WEBER, SHEA | B6: Nashville | C6: 68 | D6: 54.74652778 | E6: 8 | F6: 17 | G6: 5 | H6: 25 | I6: 121 | J6: 161 | K6: 242 | L6: 6.61 | M6: 0.37 | N6: 0.78 | O6: 0.23 | P6: 1.14 | Q6: 5.53 | R6: 7.35 | S6: 11.05 | T6: 14.8 | U6: 31.5 | V6: 46.3
A7: SUBBAN, P.K. | B7: Montreal | C7: 68 | D7: 53.91805556 | E7: 6 | F7: 20 | G7: 8 | H7: 26 | I7: 69 | J7: 113 | K7: 185 | L7: 8.7 | M7: 0.28 | N7: 0.93 | O7: 0.37 | P7: 1.21 | Q7: 3.2 | R7: 5.24 | S7: 8.58 | T7: 10.2 | U7: 33.9 | V7: 44.1
A8: BRODIE, TJ | B8: Calgary | C8: 66 | D8: 53.00972222 | E8: 4 | F8: 9 | G8: 3 | H8: 13 | I8: 71 | J8: 100 | K8: 151 | L8: 5.63 | M8: 0.19 | N8: 0.42 | O8: 0.14 | P8: 0.61 | Q8: 3.35 | R8: 4.72 | S8: 7.12 | T8: 8.5 | U8: 19.1 | V8: 27.7
A9: PIETRANGELO, ALEX | B9: St. Louis | C9: 67 | D9: 51.78680556 | E9: 4 | F9: 20 | G9: 6 | H9: 24 | I9: 114 | J9: 171 | K9: 228 | L9: 3.51 | M9: 0.19 | N9: 0.97 | O9: 0.29 | P9: 1.16 | Q9: 5.5 | R9: 8.26 | S9: 11.01 | T9: 7.8 | U9: 39.2 | V9: 47.1
A10: HJALMARSSON, NIKLAS | B10: Chicago | C10: 67 | D10: 51.73819444 | E10: 2 | F10: 11 | G10: 3 | H10: 13 | I10: 68 | J10: 100 | K10: 168 | L10: 2.94 | M10: 0.1 | N10: 0.53 | O10: 0.14 | P10: 0.63 | Q10: 3.29 | R10: 4.83 | S10: 8.12 | T10: 4.9 | U10: 26.8 | V10: 31.7
A11: SEIDENBERG, DENNIS | B11: Boston | C11: 67 | D11: 51.50277778 | E11: 3 | F11: 8 | G11: 2 | H11: 11 | I11: 79 | J11: 104 | K11: 163 | L11: 3.8 | M11: 0.15 | N11: 0.39 | O11: 0.1 | P11: 0.53 | Q11: 3.83 | R11: 5.05 | S11: 7.91 | T11: 7.3 | U11: 19.5 | V11: 26.8
A12: YANDLE, KEITH | B12: NY Rangers | C12: 67 | D12: 50.80277778 | E12: 2 | F12: 12 | G12: 5 | H12: 14 | I12: 121 | J12: 199 | K12: 284 | L12: 1.65 | M12: 0.1 | N12: 0.59 | O12: 0.25 | P12: 0.69 | Q12: 5.95 | R12: 9.79 | S12: 13.98 | T12: 5.7 | U12: 34.3 | V12: 40
A13: MARKOV, ANDREI | B13: Montreal | C13: 68 | D13: 50.63819444 | E13: 3 | F13: 14 | G13: 7 | H13: 17 | I13: 84 | J13: 128 | K13: 200 | L13: 3.57 | M13: 0.15 | N13: 0.69 | O13: 0.35 | P13: 0.84 | Q13: 4.15 | R13: 6.32 | S13: 9.87 | T13: 5.9 | U13: 27.5 | V13: 33.3
A14: GREENE, ANDY | B14: New Jersey | C14: 68 | D14: 50.53680556 | E14: 3 | F14: 13 | G14: 3 | H14: 16 | I14: 56 | J14: 103 | K14: 159 | L14: 5.36 | M14: 0.15 | N14: 0.64 | O14: 0.15 | P14: 0.79 | Q14: 2.77 | R14: 5.1 | S14: 7.87 | T14: 7.5 | U14: 32.5 | V14: 40
A15: RUSSELL, KRIS | B15: Calgary | C15: 64 | D15: 50.49375 | E15: 2 | F15: 8 | G15: 4 | H15: 10 | I15: 70 | J15: 95 | K15: 146 | L15: 2.86 | M15: 0.1 | N15: 0.4 | O15: 0.2 | P15: 0.5 | Q15: 3.47 | R15: 4.7 | S15: 7.23 | T15: 3.6 | U15: 14.5 | V15: 18.2
A16: WIDEMAN, DENNIS | B16: Calgary | C16: 65 | D16: 50.425 | E16: 6 | F16: 15 | G16: 6 | H16: 21 | I16: 77 | J16: 116 | K16: 190 | L16: 7.79 | M16: 0.3 | N16: 0.74 | O16: 0.3 | P16: 1.04 | Q16: 3.82 | R16: 5.75 | S16: 9.42 | T16: 12 | U16: 30 | V16: 42
A17: BURNS, BRENT | B17: San Jose | C17: 68 | D17: 50.13125 | E17: 9 | F17: 17 | G17: 10 | H17: 26 | I17: 132 | J17: 214 | K17: 328 | L17: 6.82 | M17: 0.45 | N17: 0.85 | O17: 0.5 | P17: 1.3 | Q17: 6.58 | R17: 10.67 | S17: 16.36 | T17: 19.1 | U17: 36.2 | V17: 55.3
A18: GOLIGOSKI, ALEX | B18: Dallas | C18: 68 | D18: 49.98888889 | E18: 4 | F18: 17 | G18: 8 | H18: 21 | I18: 77 | J18: 120 | K18: 175 | L18: 5.19 | M18: 0.2 | N18: 0.85 | O18: 0.4 | P18: 1.05 | Q18: 3.85 | R18: 6 | S18: 8.75 | T18: 6.6 | U18: 27.9 | V18: 34.4
A19: ZIDLICKY, MAREK | B19: Detroit | C19: 68 | D19: 49.92013889 | E19: 1 | F19: 10 | G19: 5 | H19: 11 | I19: 71 | J19: 102 | K19: 161 | L19: 1.41 | M19: 0.05 | N19: 0.5 | O19: 0.25 | P19: 0.55 | Q19: 3.56 | R19: 5.11 | S19: 8.06 | T19: 2.6 | U19: 26.3 | V19: 28.9
A20: CAMPBELL, BRIAN | B20: Florida | C20: 67 | D20: 49.90763889 | E20: 2 | F20: 9 | G20: 4 | H20: 11 | I20: 52 | J20: 72 | K20: 103 | L20: 3.85 | M20: 0.1 | N20: 0.45 | O20: 0.2 | P20: 0.55 | Q20: 2.6 | R20: 3.61 | S20: 5.16 | T20: 4.8 | U20: 21.4 | V20: 26.2
A21: SCHULTZ, JUSTIN | B21: Edmonton | C21: 67 | D21: 49.90138889 | E21: 5 | F21: 11 | G21: 6 | H21: 16 | I21: 73 | J21: 114 | K21: 175 | L21: 6.85 | M21: 0.25 | N21: 0.55 | O21: 0.3 | P21: 0.8 | Q21: 3.66 | R21: 5.71 | S21: 8.77 | T21: 10 | U21: 22 | V21: 32
A22: FAULK, JUSTIN | B22: Carolina | C22: 66 | D22: 49.7 | E22: 5 | F22: 16 | G22: 9 | H22: 21 | I22: 119 | J22: 161 | K22: 234 | L22: 4.2 | M22: 0.25 | N22: 0.8 | O22: 0.45 | P22: 1.06 | Q22: 5.99 | R22: 8.1 | S22: 11.77 | T22: 10.6 | U22: 34 | V22: 44.7
A23: KEITH, DUNCAN | B23: Chicago | C23: 65 | D23: 49.52361111 | E23: 6 | F23: 12 | G23: 5 | H23: 18 | I23: 83 | J23: 118 | K23: 203 | L23: 7.23 | M23: 0.3 | N23: 0.61 | O23: 0.25 | P23: 0.91 | Q23: 4.19 | R23: 5.96 | S23: 10.25 | T23: 10.9 | U23: 21.8 | V23: 32.7
A24: STAAL, MARC | B24: NY Rangers | C24: 65 | D24: 49.29375 | E24: 5 | F24: 10 | G24: 3 | H24: 15 | I24: 75 | J24: 104 | K24: 161 | L24: 6.67 | M24: 0.25 | N24: 0.51 | O24: 0.15 | P24: 0.76 | Q24: 3.8 | R24: 5.27 | S24: 8.17 | T24: 9.8 | U24: 19.6 | V24: 29.4
A25: ORPIK, BROOKS | B25: Washington | C25: 67 | D25: 49.29166667 | E25: 0 | F25: 14 | G25: 4 | H25: 14 | I25: 51 | J25: 69 | K25: 134 | L25: 0 | M25: 0 | N25: 0.71 | O25: 0.2 | P25: 0.71 | Q25: 2.59 | R25: 3.5 | S25: 6.8 | T25: 0 | U25: 27.5 | V25: 27.5
A26: STREIT, MARK | B26: Philadelphia | C26: 69 | D26: 48.93819444 | E26: 5 | F26: 12 | G26: 6 | H26: 17 | I26: 61 | J26: 91 | K26: 139 | L26: 8.2 | M26: 0.26 | N26: 0.61 | O26: 0.31 | P26: 0.87 | Q26: 3.12 | R26: 4.65 | S26: 7.1 | T26: 12.5 | U26: 30 | V26: 42.5
A27: EKMAN-LARSSON, OLIVER | B27: Arizona | C27: 68 | D27: 48.75902778 | E27: 5 | F27: 9 | G27: 6 | H27: 14 | I27: 108 | J27: 170 | K27: 252 | L27: 4.63 | M27: 0.26 | N27: 0.46 | O27: 0.31 | P27: 0.72 | Q27: 5.54 | R27: 8.72 | S27: 12.92 | T27: 14.3 | U27: 25.7 | V27: 40
A28: HEJDA, JAN | B28: Colorado | C28: 67 | D28: 48.55069444 | E28: 1 | F28: 9 | G28: 4 | H28: 10 | I28: 63 | J28: 90 | K28: 134 | L28: 1.59 | M28: 0.05 | N28: 0.46 | O28: 0.21 | P28: 0.51 | Q28: 3.24 | R28: 4.63 | S28: 6.9 | T28: 2.6 | U28: 23.1 | V28: 25.6
A29: NISKANEN, MATT | B29: Washington | C29: 66 | D29: 48.46319444 | E29: 1 | F29: 12 | G29: 10 | H29: 13 | I29: 64 | J29: 121 | K29: 186 | L29: 1.56 | M29: 0.05 | N29: 0.62 | O29: 0.52 | P29: 0.67 | Q29: 3.3 | R29: 6.24 | S29: 9.59 | T29: 2.5 | U29: 30 | V29: 32.5
A30: EKBLAD, AARON | B30: Florida | C30: 66 | D30: 47.95833333 | E30: 6 | F30: 14 | G30: 8 | H30: 20 | I30: 90 | J30: 117 | K30: 180 | L30: 6.67 | M30: 0.31 | N30: 0.73 | O30: 0.42 | P30: 1.04 | Q30: 4.69 | R30: 6.1 | S30: 9.38 | T30: 12.2 | U30: 28.6 | V30: 40.8
A31: PETRY, JEFF | B31: Montreal | C31: 65 | D31: 47.59444444 | E31: 3 | F31: 7 | G31: 4 | H31: 10 | I31: 89 | J31: 134 | K31: 213 | L31: 3.37 | M31: 0.16 | N31: 0.37 | O31: 0.21 | P31: 0.53 | Q31: 4.67 | R31: 7.04 | S31: 11.19 | T31: 10.3 | U31: 24.1 | V31: 34.5
A32: SAVARD, DAVID | B32: Columbus | C32: 67 | D32: 47.57361111 | E32: 6 | F32: 6 | G32: 1 | H32: 12 | I32: 70 | J32: 116 | K32: 161 | L32: 8.57 | M32: 0.32 | N32: 0.32 | O32: 0.05 | P32: 0.63 | Q32: 3.68 | R32: 6.1 | S32: 8.46 | T32: 16.7 | U32: 16.7 | V32: 33.3
A33: DILLON, BRENDEN | B33: San Jose | C33: 66 | D33: 47.56944444 | E33: 1 | F33: 5 | G33: 2 | H33: 6 | I33: 66 | J33: 113 | K33: 198 | L33: 1.52 | M33: 0.05 | N33: 0.26 | O33: 0.11 | P33: 0.32 | Q33: 3.47 | R33: 5.94 | S33: 10.41 | T33: 2.9 | U33: 14.7 | V33: 17.6
A34: STONE, MICHAEL | B34: Arizona | C34: 67 | D34: 47.4125 | E34: 3 | F34: 9 | G34: 5 | H34: 12 | I34: 92 | J34: 137 | K34: 213 | L34: 3.26 | M34: 0.16 | N34: 0.47 | O34: 0.26 | P34: 0.63 | Q34: 4.85 | R34: 7.22 | S34: 11.23 | T34: 10.3 | U34: 31 | V34: 41.4
A35: HAMILTON, DOUGIE | B35: Boston | C35: 67 | D35: 47.15347222 | E35: 3 | F35: 17 | G35: 5 | H35: 20 | I35: 118 | J35: 158 | K35: 244 | L35: 2.54 | M35: 0.16 | N35: 0.9 | O35: 0.27 | P35: 1.06 | Q35: 6.26 | R35: 8.38 | S35: 12.94 | T35: 6.4 | U35: 36.2 | V35: 42.6
A36: CARLSON, JOHN | B36: Washington | C36: 67 | D36: 47.08958333 | E36: 7 | F36: 22 | G36: 12 | H36: 29 | I36: 113 | J36: 158 | K36: 229 | L36: 6.19 | M36: 0.37 | N36: 1.17 | O36: 0.64 | P36: 1.54 | Q36: 6 | R36: 8.39 | S36: 12.16 | T36: 13.2 | U36: 41.5 | V36: 54.7
A37: SEABROOK, BRENT | B37: Chicago | C37: 67 | D37: 47.05972222 | E37: 4 | F37: 10 | G37: 6 | H37: 14 | I37: 94 | J37: 135 | K37: 208 | L37: 4.26 | M37: 0.21 | N37: 0.53 | O37: 0.32 | P37: 0.74 | Q37: 4.99 | R37: 7.17 | S37: 11.05 | T37: 9.3 | U37: 23.3 | V37: 32.6
A38: GIRARDI, DAN | B38: NY Rangers | C38: 65 | D38: 47.00416667 | E38: 2 | F38: 12 | G38: 8 | H38: 14 | I38: 58 | J38: 81 | K38: 136 | L38: 3.45 | M38: 0.11 | N38: 0.64 | O38: 0.43 | P38: 0.74 | Q38: 3.08 | R38: 4.31 | S38: 7.23 | T38: 4.5 | U38: 27.3 | V38: 31.8
A39: HAINSEY, RON | B39: Carolina | C39: 65 | D39: 46.87013889 | E39: 1 | F39: 5 | G39: 3 | H39: 6 | I39: 54 | J39: 77 | K39: 119 | L39: 1.85 | M39: 0.05 | N39: 0.27 | O39: 0.16 | P39: 0.32 | Q39: 2.88 | R39: 4.11 | S39: 6.35 | T39: 2.9 | U39: 14.7 | V39: 17.6
A40: BRODIN, JONAS | B40: Minnesota | C40: 56 | D40: 46.76736111 | E40: 1 | F40: 8 | G40: 3 | H40: 9 | I40: 57 | J40: 79 | K40: 123 | L40: 1.75 | M40: 0.05 | N40: 0.43 | O40: 0.16 | P40: 0.48 | Q40: 3.05 | R40: 4.22 | S40: 6.58 | T40: 2 | U40: 16.3 | V40: 18.4
A41: GIORDANO, MARK | B41: Calgary | C41: 61 | D41: 46.75694444 | E41: 4 | F41: 18 | G41: 7 | H41: 22 | I41: 88 | J41: 138 | K41: 222 | L41: 4.55 | M41: 0.21 | N41: 0.96 | O41: 0.37 | P41: 1.18 | Q41: 4.71 | R41: 7.38 | S41: 11.87 | T41: 9.5 | U41: 42.9 | V41: 52.4
A42: SEKERA, ANDREJ | B42: Los Angeles | C42: 64 | D42: 46.75347222 | E42: 2 | F42: 10 | G42: 3 | H42: 12 | I42: 67 | J42: 101 | K42: 176 | L42: 2.99 | M42: 0.11 | N42: 0.53 | O42: 0.16 | P42: 0.64 | Q42: 3.58 | R42: 5.4 | S42: 9.41 | T42: 5 | U42: 25 | V42: 30
A43: LINDHOLM, HAMPUS | B43: Anaheim | C43: 65 | D43: 46.38333333 | E43: 5 | F43: 16 | G43: 9 | H43: 21 | I43: 65 | J43: 95 | K43: 153 | L43: 7.69 | M43: 0.27 | N43: 0.86 | O43: 0.49 | P43: 1.13 | Q43: 3.5 | R43: 5.12 | S43: 8.25 | T43: 9.6 | U43: 30.8 | V43: 40.4
A44: MUZZIN, JAKE | B44: Los Angeles | C44: 61 | D44: 46.13888889 | E44: 4 | F44: 15 | G44: 7 | H44: 19 | I44: 92 | J44: 139 | K44: 212 | L44: 4.35 | M44: 0.22 | N44: 0.81 | O44: 0.38 | P44: 1.03 | Q44: 4.98 | R44: 7.53 | S44: 11.49 | T44: 10 | U44: 37.5 | V44: 47.5
A45: VLASIC, MARC-EDOUARD | B45: San Jose | C45: 63 | D45: 45.98958333 | E45: 4 | F45: 8 | G45: 4 | H45: 12 | I45: 56 | J45: 87 | K45: 152 | L45: 7.14 | M45: 0.22 | N45: 0.43 | O45: 0.22 | P45: 0.65 | Q45: 3.04 | R45: 4.73 | S45: 8.26 | T45: 9.8 | U45: 19.5 | V45: 29.3
A46: ALZNER, KARL | B46: Washington | C46: 67 | D46: 45.82847222 | E46: 4 | F46: 14 | G46: 5 | H46: 18 | I46: 56 | J46: 86 | K46: 134 | L46: 7.14 | M46: 0.22 | N46: 0.76 | O46: 0.27 | P46: 0.98 | Q46: 3.05 | R46: 4.69 | S46: 7.31 | T46: 10.3 | U46: 35.9 | V46: 46.2
A47: FERENCE, ANDREW | B47: Edmonton | C47: 65 | D47: 45.66597222 | E47: 2 | F47: 8 | G47: 0 | H47: 10 | I47: 50 | J47: 92 | K47: 144 | L47: 4 | M47: 0.11 | N47: 0.44 | O47: 0 | P47: 0.55 | Q47: 2.74 | R47: 5.04 | S47: 7.88 | T47: 5.9 | U47: 23.5 | V47: 29.4
A48: JOHNSON, JACK | B48: Columbus | C48: 64 | D48: 45.51597222 | E48: 2 | F48: 8 | G48: 3 | H48: 10 | I48: 71 | J48: 105 | K48: 148 | L48: 2.82 | M48: 0.11 | N48: 0.44 | O48: 0.16 | P48: 0.55 | Q48: 3.9 | R48: 5.77 | S48: 8.13 | T48: 4.9 | U48: 19.5 | V48: 24.4
A49: HICKEY, THOMAS | B49: NY Islanders | C49: 68 | D49: 45.37777778 | E49: 1 | F49: 15 | G49: 9 | H49: 16 | I49: 53 | J49: 74 | K49: 126 | L49: 1.89 | M49: 0.06 | N49: 0.83 | O49: 0.5 | P49: 0.88 | Q49: 2.92 | R49: 4.08 | S49: 6.94 | T49: 2.3 | U49: 34.1 | V49: 36.4
A50: BARRIE, TYSON | B50: Colorado | C50: 66 | D50: 45.36944444 | E50: 7 | F50: 19 | G50: 9 | H50: 26 | I50: 75 | J50: 106 | K50: 160 | L50: 9.33 | M50: 0.39 | N50: 1.05 | O50: 0.5 | P50: 1.43 | Q50: 4.13 | R50: 5.84 | S50: 8.82 | T50: 12.3 | U50: 33.3 | V50: 45.6
A51: LEDDY, NICK | B51: NY Islanders | C51: 68 | D51: 45.36111111 | E51: 9 | F51: 11 | G51: 5 | H51: 20 | I51: 81 | J51: 109 | K51: 150 | L51: 11.11 | M51: 0.5 | N51: 0.61 | O51: 0.28 | P51: 1.1 | Q51: 4.46 | R51: 6.01 | S51: 8.27 | T51: 17.6 | U51: 21.6 | V51: 39.2
A52: LETANG, KRIS | B52: Pittsburgh | C52: 61 | D52: 44.92222222 | E52: 5 | F52: 15 | G52: 6 | H52: 20 | I52: 115 | J52: 150 | K52: 237 | L52: 4.35 | M52: 0.28 | N52: 0.83 | O52: 0.33 | P52: 1.11 | Q52: 6.4 | R52: 8.35 | S52: 13.19 | T52: 10 | U52: 30 | V52: 40
A53: STRALMAN, ANTON | B53: Tampa Bay | C53: 69 | D53: 44.81388889 | E53: 4 | F53: 15 | G53: 7 | H53: 19 | I53: 91 | J53: 122 | K53: 177 | L53: 4.4 | M53: 0.22 | N53: 0.84 | O53: 0.39 | P53: 1.06 | Q53: 5.08 | R53: 6.81 | S53: 9.87 | T53: 6.5 | U53: 24.2 | V53: 30.6
A54: FOWLER, CAM | B54: Anaheim | C54: 67 | D54: 44.71597222 | E54: 3 | F54: 12 | G54: 6 | H54: 15 | I54: 40 | J54: 58 | K54: 93 | L54: 7.5 | M54: 0.17 | N54: 0.67 | O54: 0.34 | P54: 0.84 | Q54: 2.24 | R54: 3.24 | S54: 5.2 | T54: 7.3 | U54: 29.3 | V54: 36.6
A55: ODUYA, JOHNNY | B55: Chicago | C55: 61 | D55: 44.31736111 | E55: 2 | F55: 3 | G55: 2 | H55: 5 | I55: 63 | J55: 87 | K55: 158 | L55: 3.17 | M55: 0.11 | N55: 0.17 | O55: 0.11 | P55: 0.28 | Q55: 3.55 | R55: 4.91 | S55: 8.91 | T55: 7.7 | U55: 11.5 | V55: 19.2
A56: BYFUGLIEN, DUSTIN | B56: Winnipeg | C56: 65 | D56: 44.11736111 | E56: 10 | F56: 9 | G56: 2 | H56: 19 | I56: 119 | J56: 179 | K56: 228 | L56: 8.4 | M56: 0.57 | N56: 0.51 | O56: 0.11 | P56: 1.08 | Q56: 6.74 | R56: 10.14 | S56: 12.92 | T56: 23.3 | U56: 20.9 | V56: 44.2
A57: MYERS, TYLER | B57: Winnipeg | C57: 59 | D57: 44.11388889 | E57: 5 | F57: 10 | G57: 4 | H57: 15 | I57: 59 | J57: 79 | K57: 107 | L57: 8.47 | M57: 0.28 | N57: 0.57 | O57: 0.23 | P57: 0.85 | Q57: 3.34 | R57: 4.48 | S57: 6.06 | T57: 14.7 | U57: 29.4 | V57: 44.1
A58: KRONWALL, NIKLAS | B58: Detroit | C58: 65 | D58: 44.04861111 | E58: 3 | F58: 8 | G58: 2 | H58: 11 | I58: 43 | J58: 59 | K58: 94 | L58: 6.98 | M58: 0.17 | N58: 0.45 | O58: 0.11 | P58: 0.62 | Q58: 2.44 | R58: 3.35 | S58: 5.33 | T58: 8.8 | U58: 23.5 | V58: 32.4
A59: EKHOLM, MATTIAS | B59: Nashville | C59: 66 | D59: 43.90069444 | E59: 3 | F59: 9 | G59: 2 | H59: 12 | I59: 56 | J59: 71 | K59: 125 | L59: 5.36 | M59: 0.17 | N59: 0.51 | O59: 0.11 | P59: 0.68 | Q59: 3.19 | R59: 4.04 | S59: 7.12 | T59: 6.1 | U59: 18.4 | V59: 24.5
A60: GARDINER, JAKE | B60: Toronto | C60: 64 | D60: 43.89861111 | E60: 2 | F60: 7 | G60: 4 | H60: 9 | I60: 65 | J60: 102 | K60: 162 | L60: 3.08 | M60: 0.11 | N60: 0.4 | O60: 0.23 | P60: 0.51 | Q60: 3.7 | R60: 5.81 | S60: 9.23 | T60: 6.9 | U60: 24.1 | V60: 31
A61: HAMONIC, TRAVIS | B61: NY Islanders | C61: 59 | D61: 43.56875 | E61: 3 | F61: 16 | G61: 8 | H61: 19 | I61: 75 | J61: 116 | K61: 193 | L61: 4 | M61: 0.17 | N61: 0.92 | O61: 0.46 | P61: 1.09 | Q61: 4.3 | R61: 6.66 | S61: 11.07 | T61: 6.8 | U61: 36.4 | V61: 43.2
A62: RIELLY, MORGAN | B62: Toronto | C62: 66 | D62: 43.54861111 | E62: 6 | F62: 9 | G62: 5 | H62: 15 | I62: 96 | J62: 138 | K62: 209 | L62: 6.25 | M62: 0.34 | N62: 0.52 | O62: 0.29 | P62: 0.86 | Q62: 5.51 | R62: 7.92 | S62: 12 | T62: 15.8 | U62: 23.7 | V62: 39.5
A63: ERICSSON, JONATHAN | B63: Detroit | C63: 65 | D63: 43.36944444 | E63: 3 | F63: 7 | G63: 5 | H63: 10 | I63: 60 | J63: 85 | K63: 126 | L63: 5 | M63: 0.17 | N63: 0.4 | O63: 0.29 | P63: 0.58 | Q63: 3.46 | R63: 4.9 | S63: 7.26 | T63: 8.8 | U63: 20.6 | V63: 29.4
A64: EDLER, ALEXANDER | B64: Vancouver | C64: 59 | D64: 43.09722222 | E64: 0 | F64: 7 | G64: 2 | H64: 7 | I64: 99 | J64: 131 | K64: 200 | L64: 0 | M64: 0 | N64: 0.41 | O64: 0.12 | P64: 0.41 | Q64: 5.74 | R64: 7.6 | S64: 11.6 | T64: 0 | U64: 20 | V64: 20
A65: SCHULTZ, NICK | B65: Philadelphia | C65: 67 | D65: 42.99166667 | E65: 2 | F65: 11 | G65: 3 | H65: 13 | I65: 51 | J65: 86 | K65: 123 | L65: 3.92 | M65: 0.12 | N65: 0.64 | O65: 0.17 | P65: 0.76 | Q65: 2.97 | R65: 5 | S65: 7.15 | T65: 6.5 | U65: 35.5 | V65: 41.9
A66: DEMERS, JASON | B66: Dallas | C66: 67 | D66: 42.80694444 | E66: 2 | F66: 14 | G66: 6 | H66: 16 | I66: 64 | J66: 112 | K66: 170 | L66: 3.12 | M66: 0.12 | N66: 0.82 | O66: 0.35 | P66: 0.93 | Q66: 3.74 | R66: 6.54 | S66: 9.93 | T66: 6.5 | U66: 45.2 | V66: 51.6
A67: SUSTR, ANDREJ | B67: Tampa Bay | C67: 65 | D67: 42.56736111 | E67: 0 | F67: 10 | G67: 3 | H67: 10 | I67: 49 | J67: 72 | K67: 121 | L67: 0 | M67: 0 | N67: 0.59 | O67: 0.18 | P67: 0.59 | Q67: 2.88 | R67: 4.23 | S67: 7.11 | T67: 0 | U67: 26.3 | V67: 26.3
A68: KLEIN, KEVIN | B68: NY Rangers | C68: 64 | D68: 42.53333333 | E68: 7 | F68: 16 | G68: 5 | H68: 23 | I68: 68 | J68: 96 | K68: 161 | L68: 10.29 | M68: 0.41 | N68: 0.94 | O68: 0.29 | P68: 1.35 | Q68: 4 | R68: 5.64 | S68: 9.46 | T68: 12.7 | U68: 29.1 | V68: 41.8
A69: DEKEYSER, DANNY | B69: Detroit | C69: 63 | D69: 42.42361111 | E69: 2 | F69: 11 | G69: 1 | H69: 13 | I69: 57 | J69: 93 | K69: 127 | L69: 3.51 | M69: 0.12 | N69: 0.65 | O69: 0.06 | P69: 0.77 | Q69: 3.36 | R69: 5.48 | S69: 7.48 | T69: 5.3 | U69: 28.9 | V69: 34.2
A70: JONES, SETH | B70: Nashville | C70: 68 | D70: 42.39097222 | E70: 3 | F70: 8 | G70: 5 | H70: 11 | I70: 62 | J70: 87 | K70: 152 | L70: 4.84 | M70: 0.18 | N70: 0.47 | O70: 0.29 | P70: 0.65 | Q70: 3.66 | R70: 5.13 | S70: 8.96 | T70: 7.5 | U70: 20 | V70: 27.5
A71: FAYNE, MARK | B71: Edmonton | C71: 68 | D71: 42.33125 | E71: 2 | F71: 4 | G71: 1 | H71: 6 | I71: 58 | J71: 82 | K71: 156 | L71: 3.45 | M71: 0.12 | N71: 0.24 | O71: 0.06 | P71: 0.35 | Q71: 3.43 | R71: 4.84 | S71: 9.21 | T71: 8 | U71: 16 | V71: 24
A72: GILBERT, TOM | B72: Montreal | C72: 64 | D72: 42.23541667 | E72: 3 | F72: 7 | G72: 2 | H72: 10 | I72: 51 | J72: 78 | K72: 118 | L72: 5.88 | M72: 0.18 | N72: 0.41 | O72: 0.12 | P72: 0.59 | Q72: 3.02 | R72: 4.62 | S72: 6.98 | T72: 8.3 | U72: 19.4 | V72: 27.8
A73: MARTIN, PAUL | B73: Pittsburgh | C73: 59 | D73: 41.92569444 | E73: 2 | F73: 13 | G73: 9 | H73: 15 | I73: 36 | J73: 61 | K73: 94 | L73: 5.56 | M73: 0.12 | N73: 0.78 | O73: 0.54 | P73: 0.89 | Q73: 2.15 | R73: 3.64 | S73: 5.61 | T73: 4.3 | U73: 27.7 | V73: 31.9
A74: SCUDERI, ROB | B74: Pittsburgh | C74: 67 | D74: 41.84930556 | E74: 0 | F74: 6 | G74: 3 | H74: 6 | I74: 40 | J74: 54 | K74: 89 | L74: 0 | M74: 0 | N74: 0.36 | O74: 0.18 | P74: 0.36 | Q74: 2.39 | R74: 3.23 | S74: 5.32 | T74: 0 | U74: 18.2 | V74: 18.2
A75: BOUWMEESTER, JAY | B75: St. Louis | C75: 57 | D75: 41.64652778 | E75: 2 | F75: 3 | G75: 2 | H75: 5 | I75: 60 | J75: 93 | K75: 120 | L75: 3.33 | M75: 0.12 | N75: 0.18 | O75: 0.12 | P75: 0.3 | Q75: 3.6 | R75: 5.58 | S75: 7.2 | T75: 4.5 | U75: 6.8 | V75: 11.4
A76: RISTOLAINEN, RASMUS | B76: Buffalo | C76: 63 | D76: 41.32569444 | E76: 1 | F76: 4 | G76: 0 | H76: 5 | I76: 61 | J76: 83 | K76: 112 | L76: 1.64 | M76: 0.06 | N76: 0.24 | O76: 0 | P76: 0.3 | Q76: 3.69 | R76: 5.02 | S76: 6.78 | T76: 5.6 | U76: 22.2 | V76: 27.8
A77: BRAUN, JUSTIN | B77: San Jose | C77: 57 | D77: 41.24513889 | E77: 1 | F77: 16 | G77: 5 | H77: 17 | I77: 62 | J77: 91 | K77: 141 | L77: 1.61 | M77: 0.06 | N77: 0.97 | O77: 0.3 | P77: 1.03 | Q77: 3.76 | R77: 5.52 | S77: 8.55 | T77: 2.6 | U77: 42.1 | V77: 44.7
A78: FRANSON, CODY | B78: Nashville | C78: 65 | D78: 40.84652778 | E78: 2 | F78: 14 | G78: 7 | H78: 16 | I78: 67 | J78: 102 | K78: 144 | L78: 2.99 | M78: 0.12 | N78: 0.86 | O78: 0.43 | P78: 0.98 | Q78: 4.1 | R78: 6.24 | S78: 8.81 | T78: 4.3 | U78: 29.8 | V78: 34
A79: KRUG, TOREY | B79: Boston | C79: 63 | D79: 40.84375 | E79: 9 | F79: 8 | G79: 4 | H79: 17 | I79: 97 | J79: 147 | K79: 217 | L79: 9.28 | M79: 0.55 | N79: 0.49 | O79: 0.24 | P79: 1.04 | Q79: 5.94 | R79: 9 | S79: 13.28 | T79: 20.9 | U79: 18.6 | V79: 39.5
A80: DALEY, TREVOR | B80: Dallas | C80: 61 | D80: 40.79861111 | E80: 7 | F80: 11 | G80: 6 | H80: 18 | I80: 66 | J80: 102 | K80: 140 | L80: 10.61 | M80: 0.43 | N80: 0.67 | O80: 0.37 | P80: 1.1 | Q80: 4.04 | R80: 6.25 | S80: 8.58 | T80: 16.7 | U80: 26.2 | V80: 42.9
A81: GARRISON, JASON | B81: Tampa Bay | C81: 63 | D81: 40.58888889 | E81: 2 | F81: 14 | G81: 5 | H81: 16 | I81: 80 | J81: 118 | K81: 172 | L81: 2.5 | M81: 0.12 | N81: 0.86 | O81: 0.31 | P81: 0.99 | Q81: 4.93 | R81: 7.27 | S81: 10.59 | T81: 4.3 | U81: 29.8 | V81: 34
A82: SBISA, LUCA | B82: Vancouver | C82: 61 | D82: 40.47152778 | E82: 2 | F82: 5 | G82: 1 | H82: 7 | I82: 55 | J82: 75 | K82: 122 | L82: 3.64 | M82: 0.12 | N82: 0.31 | O82: 0.06 | P82: 0.43 | Q82: 3.4 | R82: 4.63 | S82: 7.54 | T82: 5.1 | U82: 12.8 | V82: 17.9
A83: DE_HAAN, CALVIN | B83: NY Islanders | C83: 59 | D83: 40.28333333 | E83: 0 | F83: 10 | G83: 5 | H83: 10 | I83: 75 | J83: 112 | K83: 175 | L83: 0 | M83: 0 | N83: 0.62 | O83: 0.31 | P83: 0.62 | Q83: 4.65 | R83: 6.95 | S83: 10.86 | T83: 0 | U83: 27 | V83: 27
A84: POLAK, ROMAN | B84: Toronto | C84: 56 | D84: 40.13194444 | E84: 4 | F84: 4 | G84: 1 | H84: 8 | I84: 54 | J84: 84 | K84: 120 | L84: 7.41 | M84: 0.25 | N84: 0.25 | O84: 0.06 | P84: 0.5 | Q84: 3.36 | R84: 5.23 | S84: 7.48 | T84: 15.4 | U84: 15.4 | V84: 30.8
A85: CECI, CODY | B85: Ottawa | C85: 65 | D85: 39.83888889 | E85: 4 | F85: 9 | G85: 4 | H85: 13 | I85: 76 | J85: 105 | K85: 156 | L85: 5.26 | M85: 0.25 | N85: 0.56 | O85: 0.25 | P85: 0.82 | Q85: 4.77 | R85: 6.59 | S85: 9.79 | T85: 10.8 | U85: 24.3 | V85: 35.1
A86: SCANDELLA, MARCO | B86: Minnesota | C86: 53 | D86: 39.61805556 | E86: 6 | F86: 5 | G86: 4 | H86: 11 | I86: 80 | J86: 120 | K86: 187 | L86: 7.5 | M86: 0.38 | N86: 0.32 | O86: 0.25 | P86: 0.69 | Q86: 5.05 | R86: 7.57 | S86: 11.8 | T86: 15.4 | U86: 12.8 | V86: 28.2
A87: JACKMAN, BARRET | B87: St. Louis | C87: 67 | D87: 39.51527778 | E87: 2 | F87: 10 | G87: 5 | H87: 12 | I87: 62 | J87: 83 | K87: 121 | L87: 3.23 | M87: 0.13 | N87: 0.63 | O87: 0.32 | P87: 0.76 | Q87: 3.92 | R87: 5.25 | S87: 7.66 | T87: 5.7 | U87: 28.6 | V87: 34.3
A88: SMITH, BRENDAN | B88: Detroit | C88: 60 | D88: 39.36388889 | E88: 2 | F88: 5 | G88: 2 | H88: 7 | I88: 57 | J88: 79 | K88: 125 | L88: 3.51 | M88: 0.13 | N88: 0.32 | O88: 0.13 | P88: 0.44 | Q88: 3.62 | R88: 5.02 | S88: 7.94 | T88: 7.7 | U88: 19.2 | V88: 26.9
A89: TANEV, CHRISTOPHER | B89: Vancouver | C89: 55 | D89: 39.23472222 | E89: 1 | F89: 5 | G89: 2 | H89: 6 | I89: 35 | J89: 55 | K89: 87 | L89: 2.86 | M89: 0.06 | N89: 0.32 | O89: 0.13 | P89: 0.38 | Q89: 2.23 | R89: 3.5 | S89: 5.54 | T89: 3.6 | U89: 17.9 | V89: 21.4
A90: MCDONAGH, RYAN | B90: NY Rangers | C90: 54 | D90: 39.11875 | E90: 5 | F90: 4 | G90: 2 | H90: 9 | I90: 81 | J90: 109 | K90: 150 | L90: 6.17 | M90: 0.32 | N90: 0.26 | O90: 0.13 | P90: 0.58 | Q90: 5.18 | R90: 6.97 | S90: 9.59 | T90: 12.2 | U90: 9.8 | V90: 22
A91: QUINCEY, KYLE | B91: Detroit | C91: 57 | D91: 38.98541667 | E91: 3 | F91: 7 | G91: 4 | H91: 10 | I91: 70 | J91: 96 | K91: 167 | L91: 4.29 | M91: 0.19 | N91: 0.45 | O91: 0.26 | P91: 0.64 | Q91: 4.49 | R91: 6.16 | S91: 10.71 | T91: 9.1 | U91: 21.2 | V91: 30.3
A92: BENN, JORDIE | B92: Dallas | C92: 62 | D92: 38.92777778 | E92: 1 | F92: 12 | G92: 5 | H92: 13 | I92: 59 | J92: 100 | K92: 150 | L92: 1.69 | M92: 0.06 | N92: 0.77 | O92: 0.32 | P92: 0.83 | Q92: 3.79 | R92: 6.42 | S92: 9.63 | T92: 2.7 | U92: 32.4 | V92: 35.1
A93: DESPRES, SIMON | B93: Anaheim | C93: 63 | D93: 38.88611111 | E93: 1 | F93: 13 | G93: 7 | H93: 14 | I93: 75 | J93: 105 | K93: 161 | L93: 1.33 | M93: 0.06 | N93: 0.84 | O93: 0.45 | P93: 0.9 | Q93: 4.82 | R93: 6.75 | S93: 10.35 | T93: 2.6 | U93: 33.3 | V93: 35.9
A94: BOGOSIAN, ZACH | B94: Buffalo | C94: 52 | D94: 38.85555556 | E94: 3 | F94: 12 | G94: 5 | H94: 15 | I94: 61 | J94: 92 | K94: 139 | L94: 4.92 | M94: 0.19 | N94: 0.77 | O94: 0.32 | P94: 0.97 | Q94: 3.92 | R94: 5.92 | S94: 8.94 | T94: 7.9 | U94: 31.6 | V94: 39.5
A95: KLINGBERG, JOHN | B95: Dallas | C95: 53 | D95: 38.69791667 | E95: 8 | F95: 15 | G95: 10 | H95: 23 | I95: 57 | J95: 81 | K95: 138 | L95: 14.04 | M95: 0.52 | N95: 0.97 | O95: 0.65 | P95: 1.49 | Q95: 3.68 | R95: 5.23 | S95: 8.92 | T95: 16.7 | U95: 31.2 | V95: 47.9
A96: BOYCHUK, JOHNNY | B96: NY Islanders | C96: 59 | D96: 38.60972222 | E96: 3 | F96: 14 | G96: 6 | H96: 17 | I96: 97 | J96: 145 | K96: 214 | L96: 3.09 | M96: 0.19 | N96: 0.91 | O96: 0.39 | P96: 1.1 | Q96: 6.28 | R96: 9.39 | S96: 13.86 | T96: 6.5 | U96: 30.4 | V96: 37
A97: KULIKOV, DMITRY | B97: Florida | C97: 58 | D97: 38.32708333 | E97: 2 | F97: 13 | G97: 4 | H97: 15 | I97: 47 | J97: 67 | K97: 106 | L97: 4.26 | M97: 0.13 | N97: 0.85 | O97: 0.26 | P97: 0.98 | Q97: 3.07 | R97: 4.37 | S97: 6.91 | T97: 5.4 | U97: 35.1 | V97: 40.5
A98: MERRILL, JON | B98: New Jersey | C98: 54 | D98: 38.10208333 | E98: 0 | F98: 8 | G98: 2 | H98: 8 | I98: 31 | J98: 47 | K98: 74 | L98: 0 | M98: 0 | N98: 0.52 | O98: 0.13 | P98: 0.52 | Q98: 2.03 | R98: 3.08 | S98: 4.86 | T98: 0 | U98: 33.3 | V98: 33.3
A99: HOLDEN, NICK | B99: Colorado | C99: 64 | D99: 38.06736111 | E99: 2 | F99: 4 | G99: 2 | H99: 6 | I99: 57 | J99: 78 | K99: 110 | L99: 3.51 | M99: 0.13 | N99: 0.26 | O99: 0.13 | P99: 0.39 | Q99: 3.74 | R99: 5.12 | S99: 7.22 | T99: 8.3 | U99: 16.7 | V99: 25
A100: DEL_ZOTTO, MICHAEL | B100: Philadelphia | C100: 54 | D100: 37.95694444 | E100: 7 | F100: 12 | G100: 8 | H100: 19 | I100: 80 | J100: 108 | K100: 145 | L100: 8.75 | M100: 0.46 | N100: 0.79 | O100: 0.53 | P100: 1.25 | Q100: 5.27 | R100: 7.11 | S100: 9.55 | T100: 19.4 | U100: 33.3 | V100: 52.8
A101: GUDBRANSON, ERIK | B101: Florida | C101: 63 | D101: 37.73611111 | E101: 4 | F101: 3 | G101: 0 | H101: 7 | I101: 64 | J101: 91 | K101: 137 | L101: 6.25 | M101: 0.27 | N101: 0.2 | O101: 0 | P101: 0.46 | Q101: 4.24 | R101: 6.03 | S101: 9.08 | T101: 11.8 | U101: 8.8 | V101: 20.6
A102: SPURGEON, JARED | B102: Minnesota | C102: 52 | D102: 37.59027778 | E102: 6 | F102: 9 | G102: 5 | H102: 15 | I102: 83 | J102: 112 | K102: 170 | L102: 7.23 | M102: 0.4 | N102: 0.6 | O102: 0.33 | P102: 1 | Q102: 5.52 | R102: 7.45 | S102: 11.31 | T102: 15 | U102: 22.5 | V102: 37.5
A103: STONER, CLAYTON | B103: Anaheim | C103: 59 | D103: 37.57708333 | E103: 1 | F103: 5 | G103: 5 | H103: 6 | I103: 59 | J103: 85 | K103: 129 | L103: 1.69 | M103: 0.07 | N103: 0.33 | O103: 0.33 | P103: 0.4 | Q103: 3.93 | R103: 5.66 | S103: 8.58 | T103: 3.6 | U103: 17.9 | V103: 21.4
A104: MICHALEK, ZBYNEK | B104: Arizona | C104: 53 | D104: 37.56319444 | E104: 2 | F104: 6 | G104: 2 | H104: 8 | I104: 61 | J104: 86 | K104: 141 | L104: 3.28 | M104: 0.13 | N104: 0.4 | O104: 0.13 | P104: 0.53 | Q104: 4.06 | R104: 5.72 | S104: 9.38 | T104: 6.5 | U104: 19.4 | V104: 25.8
A105: BEAUCHEMIN, FRANCOIS | B105: Anaheim | C105: 50 | D105: 37.46736111 | E105: 6 | F105: 5 | G105: 2 | H105: 11 | I105: 61 | J105: 84 | K105: 120 | L105: 9.84 | M105: 0.4 | N105: 0.33 | O105: 0.13 | P105: 0.73 | Q105: 4.07 | R105: 5.6 | S105: 8.01 | T105: 16.7 | U105: 13.9 | V105: 30.6
A106: EMELIN, ALEXEI | B106: Montreal | C106: 55 | D106: 37.44722222 | E106: 2 | F106: 10 | G106: 2 | H106: 12 | I106: 31 | J106: 47 | K106: 83 | L106: 6.45 | M106: 0.13 | N106: 0.67 | O106: 0.13 | P106: 0.8 | Q106: 2.07 | R106: 3.14 | S106: 5.54 | T106: 5.6 | U106: 27.8 | V106: 33.3
A107: GREENE, MATT | B107: Los Angeles | C107: 67 | D107: 37.40208333 | E107: 5 | F107: 4 | G107: 0 | H107: 9 | I107: 56 | J107: 92 | K107: 135 | L107: 8.93 | M107: 0.33 | N107: 0.27 | O107: 0 | P107: 0.6 | Q107: 3.74 | R107: 6.15 | S107: 9.02 | T107: 15.2 | U107: 12.1 | V107: 27.3
A108: VATANEN, SAMI | B108: Anaheim | C108: 57 | D108: 36.72430556 | E108: 4 | F108: 12 | G108: 4 | H108: 16 | I108: 49 | J108: 67 | K108: 97 | L108: 8.16 | M108: 0.27 | N108: 0.82 | O108: 0.27 | P108: 1.09 | Q108: 3.34 | R108: 4.56 | S108: 6.6 | T108: 10 | U108: 30 | V108: 40
A109: MURPHY, CONNOR | B109: Arizona | C109: 60 | D109: 36.57986111 | E109: 3 | F109: 3 | G109: 1 | H109: 6 | I109: 56 | J109: 83 | K109: 123 | L109: 5.36 | M109: 0.2 | N109: 0.2 | O109: 0.07 | P109: 0.41 | Q109: 3.83 | R109: 5.67 | S109: 8.41 | T109: 12.5 | U109: 12.5 | V109: 25
A110: MITCHELL, WILLIE | B110: Florida | C110: 51 | D110: 36.54305556 | E110: 2 | F110: 3 | G110: 2 | H110: 5 | I110: 47 | J110: 68 | K110: 123 | L110: 4.26 | M110: 0.14 | N110: 0.21 | O110: 0.14 | P110: 0.34 | Q110: 3.22 | R110: 4.65 | S110: 8.41 | T110: 5.9 | U110: 8.8 | V110: 14.7
A111: TROUBA, JACOB | B111: Winnipeg | C111: 52 | D111: 36.37569444 | E111: 3 | F111: 7 | G111: 3 | H111: 10 | I111: 77 | J111: 112 | K111: 185 | L111: 3.9 | M111: 0.21 | N111: 0.48 | O111: 0.21 | P111: 0.69 | Q111: 5.29 | R111: 7.7 | S111: 12.71 | T111: 11.5 | U111: 26.9 | V111: 38.5
A112: WISNIEWSKI, JAMES | B112: Anaheim | C112: 57 | D112: 36.36319444 | E112: 1 | F112: 11 | G112: 6 | H112: 12 | I112: 75 | J112: 102 | K112: 159 | L112: 1.33 | M112: 0.07 | N112: 0.76 | O112: 0.41 | P112: 0.82 | Q112: 5.16 | R112: 7.01 | S112: 10.93 | T112: 3 | U112: 33.3 | V112: 36.4
A113: PHANEUF, DION | B113: Toronto | C113: 55 | D113: 36.22291667 | E113: 1 | F113: 7 | G113: 5 | H113: 8 | I113: 57 | J113: 91 | K113: 127 | L113: 1.75 | M113: 0.07 | N113: 0.48 | O113: 0.35 | P113: 0.55 | Q113: 3.93 | R113: 6.28 | S113: 8.77 | T113: 2.7 | U113: 18.9 | V113: 21.6
A114: GLEASON, TIM | B114: Washington | C114: 59 | D114: 35.75972222 | E114: 1 | F114: 7 | G114: 3 | H114: 8 | I114: 42 | J114: 61 | K114: 86 | L114: 2.38 | M114: 0.07 | N114: 0.49 | O114: 0.21 | P114: 0.56 | Q114: 2.94 | R114: 4.26 | S114: 6.01 | T114: 4.2 | U114: 29.2 | V114: 33.3
A115: STUART, MARK | B115: Winnipeg | C115: 57 | D115: 35.74236111 | E115: 1 | F115: 7 | G115: 5 | H115: 8 | I115: 38 | J115: 56 | K115: 109 | L115: 2.63 | M115: 0.07 | N115: 0.49 | O115: 0.35 | P115: 0.56 | Q115: 2.66 | R115: 3.92 | S115: 7.62 | T115: 3.7 | U115: 25.9 | V115: 29.6
A116: REGEHR, ROBYN | B116: Los Angeles | C116: 52 | D116: 35.63402778 | E116: 1 | F116: 7 | G116: 3 | H116: 8 | I116: 47 | J116: 66 | K116: 91 | L116: 2.13 | M116: 0.07 | N116: 0.49 | O116: 0.21 | P116: 0.56 | Q116: 3.3 | R116: 4.63 | S116: 6.38 | T116: 3.2 | U116: 22.6 | V116: 25.8
A117: KLEFBOM, OSCAR | B117: Edmonton | C117: 46 | D117: 35.32430556 | E117: 2 | F117: 8 | G117: 1 | H117: 10 | I117: 58 | J117: 91 | K117: 133 | L117: 3.45 | M117: 0.14 | N117: 0.57 | O117: 0.07 | P117: 0.71 | Q117: 4.1 | R117: 6.44 | S117: 9.41 | T117: 7.4 | U117: 29.6 | V117: 37
A118: TYUTIN, FEDOR | B118: Columbus | C118: 54 | D118: 35.28263889 | E118: 3 | F118: 8 | G118: 3 | H118: 11 | I118: 42 | J118: 71 | K118: 95 | L118: 7.14 | M118: 0.21 | N118: 0.57 | O118: 0.21 | P118: 0.78 | Q118: 2.98 | R118: 5.03 | S118: 6.73 | T118: 10.3 | U118: 27.6 | V118: 37.9
A119: GUENIN, NATE | B119: Colorado | C119: 62 | D119: 35.13125 | E119: 2 | F119: 11 | G119: 2 | H119: 13 | I119: 30 | J119: 39 | K119: 69 | L119: 6.67 | M119: 0.14 | N119: 0.78 | O119: 0.14 | P119: 0.93 | Q119: 2.13 | R119: 2.78 | S119: 4.91 | T119: 5 | U119: 27.5 | V119: 32.5
A120: MACDONALD, ANDREW | B120: Philadelphia | C120: 52 | D120: 35.09930556 | E120: 1 | F120: 5 | G120: 2 | H120: 6 | I120: 34 | J120: 62 | K120: 100 | L120: 2.94 | M120: 0.07 | N120: 0.36 | O120: 0.14 | P120: 0.43 | Q120: 2.42 | R120: 4.42 | S120: 7.12 | T120: 4.5 | U120: 22.7 | V120: 27.3
A121: JOHNSON, ERIK | B121: Colorado | C121: 47 | D121: 35.07083333 | E121: 8 | F121: 5 | G121: 2 | H121: 13 | I121: 77 | J121: 102 | K121: 149 | L121: 10.39 | M121: 0.57 | N121: 0.36 | O121: 0.14 | P121: 0.93 | Q121: 5.49 | R121: 7.27 | S121: 10.62 | T121: 24.2 | U121: 15.2 | V121: 39.4
A122: STUART, BRAD | B122: Colorado | C122: 52 | D122: 34.78888889 | E122: 2 | F122: 6 | G122: 2 | H122: 8 | I122: 40 | J122: 59 | K122: 86 | L122: 5 | M122: 0.14 | N122: 0.43 | O122: 0.14 | P122: 0.57 | Q122: 2.87 | R122: 4.24 | S122: 6.18 | T122: 6.9 | U122: 20.7 | V122: 27.6
A123: ENSTROM, TOBIAS | B123: Winnipeg | C123: 49 | D123: 34.65902778 | E123: 3 | F123: 10 | G123: 5 | H123: 13 | I123: 36 | J123: 51 | K123: 75 | L123: 8.33 | M123: 0.22 | N123: 0.72 | O123: 0.36 | P123: 0.94 | Q123: 2.6 | R123: 3.68 | S123: 5.41 | T123: 8.6 | U123: 28.6 | V123: 37.1
A124: COLE, IAN | B124: Pittsburgh | C124: 59 | D124: 34.65347222 | E124: 3 | F124: 7 | G124: 2 | H124: 10 | I124: 53 | J124: 82 | K124: 121 | L124: 5.66 | M124: 0.22 | N124: 0.51 | O124: 0.14 | P124: 0.72 | Q124: 3.82 | R124: 5.92 | S124: 8.73 | T124: 9.7 | U124: 22.6 | V124: 32.3
A125: GREEN, MIKE | B125: Washington | C125: 58 | D125: 34.52708333 | E125: 4 | F125: 14 | G125: 8 | H125: 18 | I125: 80 | J125: 120 | K125: 166 | L125: 5 | M125: 0.29 | N125: 1.01 | O125: 0.58 | P125: 1.3 | Q125: 5.79 | R125: 8.69 | S125: 12.02 | T125: 12.5 | U125: 43.8 | V125: 56.2
A126: SCHENN, LUKE | B126: Philadelphia | C126: 54 | D126: 34.4625 | E126: 3 | F126: 9 | G126: 5 | H126: 12 | I126: 60 | J126: 77 | K126: 137 | L126: 5 | M126: 0.22 | N126: 0.65 | O126: 0.36 | P126: 0.87 | Q126: 4.35 | R126: 5.59 | S126: 9.94 | T126: 9.4 | U126: 28.1 | V126: 37.5
A127: MCNABB, BRAYDEN | B127: Los Angeles | C127: 61 | D127: 34.33958333 | E127: 2 | F127: 15 | G127: 6 | H127: 17 | I127: 52 | J127: 87 | K127: 137 | L127: 3.85 | M127: 0.15 | N127: 1.09 | O127: 0.44 | P127: 1.24 | Q127: 3.79 | R127: 6.33 | S127: 9.97 | T127: 6.1 | U127: 45.5 | V127: 51.5
A128: GROSSMANN, NICKLAS | B128: Philadelphia | C128: 55 | D128: 34.15555556 | E128: 4 | F128: 5 | G128: 0 | H128: 9 | I128: 28 | J128: 41 | K128: 74 | L128: 14.29 | M128: 0.29 | N128: 0.37 | O128: 0 | P128: 0.66 | Q128: 2.05 | R128: 3 | S128: 5.42 | T128: 15.4 | U128: 19.2 | V128: 34.6
A129: HEDMAN, VICTOR | B129: Tampa Bay | C129: 49 | D129: 33.78333333 | E129: 6 | F129: 12 | G129: 6 | H129: 18 | I129: 68 | J129: 97 | K129: 148 | L129: 8.82 | M129: 0.44 | N129: 0.89 | O129: 0.44 | P129: 1.33 | Q129: 5.03 | R129: 7.18 | S129: 10.95 | T129: 13 | U129: 26.1 | V129: 39.1
A130: SHATTENKIRK, KEVIN | B130: St. Louis | C130: 49 | D130: 33.6 | E130: 4 | F130: 10 | G130: 5 | H130: 14 | I130: 73 | J130: 102 | K130: 147 | L130: 5.48 | M130: 0.3 | N130: 0.74 | O130: 0.37 | P130: 1.04 | Q130: 5.43 | R130: 7.59 | S130: 10.94 | T130: 9.8 | U130: 24.4 | V130: 34.1
A131: LARSSON, ADAM | B131: New Jersey | C131: 50 | D131: 33.59722222 | E131: 3 | F131: 15 | G131: 7 | H131: 18 | I131: 62 | J131: 83 | K131: 123 | L131: 4.84 | M131: 0.22 | N131: 1.12 | O131: 0.52 | P131: 1.34 | Q131: 4.61 | R131: 6.18 | S131: 9.15 | T131: 11.1 | U131: 55.6 | V131: 66.7
A132: CHARA, ZDENO | B132: Boston | C132: 48 | D132: 33.46805556 | E132: 3 | F132: 5 | G132: 3 | H132: 8 | I132: 74 | J132: 98 | K132: 145 | L132: 4.05 | M132: 0.22 | N132: 0.37 | O132: 0.22 | P132: 0.6 | Q132: 5.53 | R132: 7.32 | S132: 10.83 | T132: 10 | U132: 16.7 | V132: 26.7
A133: GORGES, JOSH | B133: Buffalo | C133: 46 | D133: 33.45208333 | E133: 0 | F133: 5 | G133: 1 | H133: 5 | I133: 19 | J133: 37 | K133: 50 | L133: 0 | M133: 0 | N133: 0.37 | O133: 0.07 | P133: 0.37 | Q133: 1.42 | R133: 2.77 | S133: 3.74 | T133: 0 | U133: 29.4 | V133: 29.4
A134: WEBER, MIKE | B134: Buffalo | C134: 53 | D134: 33.25138889 | E134: 1 | F134: 5 | G134: 1 | H134: 6 | I134: 27 | J134: 45 | K134: 80 | L134: 3.7 | M134: 0.08 | N134: 0.38 | O134: 0.08 | P134: 0.45 | Q134: 2.03 | R134: 3.38 | S134: 6.01 | T134: 5.9 | U134: 29.4 | V134: 35.3
A135: ROZSIVAL, MICHAL | B135: Chicago | C135: 53 | D135: 32.94236111 | E135: 1 | F135: 7 | G135: 4 | H135: 8 | I135: 33 | J135: 51 | K135: 99 | L135: 3.03 | M135: 0.08 | N135: 0.53 | O135: 0.3 | P135: 0.61 | Q135: 2.5 | R135: 3.87 | S135: 7.51 | T135: 2.9 | U135: 20.6 | V135: 23.5
A136: GRYBA, ERIC | B136: Ottawa | C136: 62 | D136: 32.94097222 | E136: 0 | F136: 9 | G136: 6 | H136: 9 | I136: 52 | J136: 73 | K136: 118 | L136: 0 | M136: 0 | N136: 0.68 | O136: 0.46 | P136: 0.68 | Q136: 3.95 | R136: 5.54 | S136: 8.96 | T136: 0 | U136: 30 | V136: 30
A137: GUNNARSSON, CARL | B137: St. Louis | C137: 50 | D137: 32.52430556 | E137: 2 | F137: 8 | G137: 3 | H137: 10 | I137: 30 | J137: 47 | K137: 77 | L137: 6.67 | M137: 0.15 | N137: 0.61 | O137: 0.23 | P137: 0.77 | Q137: 2.31 | R137: 3.61 | S137: 5.92 | T137: 5.4 | U137: 21.6 | V137: 27
A138: CARLE, MATT | B138: Tampa Bay | C138: 46 | D138: 32.14861111 | E138: 3 | F138: 9 | G138: 5 | H138: 12 | I138: 54 | J138: 75 | K138: 106 | L138: 5.56 | M138: 0.23 | N138: 0.7 | O138: 0.39 | P138: 0.93 | Q138: 4.2 | R138: 5.83 | S138: 8.24 | T138: 9.1 | U138: 27.3 | V138: 36.4
A139: MCQUAID, ADAM | B139: Boston | C139: 48 | D139: 31.98958333 | E139: 1 | F139: 3 | G139: 1 | H139: 4 | I139: 39 | J139: 57 | K139: 95 | L139: 2.56 | M139: 0.08 | N139: 0.23 | O139: 0.08 | P139: 0.31 | Q139: 3.05 | R139: 4.45 | S139: 7.42 | T139: 5 | U139: 15 | V139: 20
A140: EHRHOFF, CHRISTIAN | B140: Pittsburgh | C140: 44 | D140: 31.71805556 | E140: 3 | F140: 8 | G140: 5 | H140: 11 | I140: 72 | J140: 99 | K140: 141 | L140: 4.17 | M140: 0.24 | N140: 0.63 | O140: 0.39 | P140: 0.87 | Q140: 5.67 | R140: 7.8 | S140: 11.11 | T140: 8.1 | U140: 21.6 | V140: 29.7
A141: BOYLE, DAN | B141: NY Rangers | C141: 48 | D141: 31.71319444 | E141: 5 | F141: 3 | G141: 0 | H141: 8 | I141: 57 | J141: 84 | K141: 119 | L141: 8.77 | M141: 0.39 | N141: 0.24 | O141: 0 | P141: 0.63 | Q141: 4.49 | R141: 6.62 | S141: 9.38 | T141: 17.2 | U141: 10.3 | V141: 27.6
A142: COWEN, JARED | B142: Ottawa | C142: 50 | D142: 31.69513889 | E142: 2 | F142: 4 | G142: 1 | H142: 6 | I142: 40 | J142: 52 | K142: 85 | L142: 5 | M142: 0.16 | N142: 0.32 | O142: 0.08 | P142: 0.47 | Q142: 3.16 | R142: 4.1 | S142: 6.7 | T142: 7.4 | U142: 14.8 | V142: 22.2
A143: HAMHUIS, DAN | B143: Vancouver | C143: 45 | D143: 31.54305556 | E143: 0 | F143: 11 | G143: 6 | H143: 11 | I143: 46 | J143: 66 | K143: 103 | L143: 0 | M143: 0 | N143: 0.87 | O143: 0.48 | P143: 0.87 | Q143: 3.65 | R143: 5.23 | S143: 8.16 | T143: 0 | U143: 36.7 | V143: 36.7
A144: BEAULIEU, NATHAN | B144: Montreal | C144: 53 | D144: 31.34583333 | E144: 1 | F144: 5 | G144: 2 | H144: 6 | I144: 40 | J144: 62 | K144: 105 | L144: 2.5 | M144: 0.08 | N144: 0.4 | O144: 0.16 | P144: 0.48 | Q144: 3.19 | R144: 4.94 | S144: 8.37 | T144: 4.8 | U144: 23.8 | V144: 28.6
A145: BIEKSA, KEVIN | B145: Vancouver | C145: 45 | D145: 31.22013889 | E145: 3 | F145: 4 | G145: 2 | H145: 7 | I145: 66 | J145: 90 | K145: 130 | L145: 4.55 | M145: 0.24 | N145: 0.32 | O145: 0.16 | P145: 0.56 | Q145: 5.29 | R145: 7.21 | S145: 10.41 | T145: 9.7 | U145: 12.9 | V145: 22.6
A146: STANTON, RYAN | B146: Vancouver | C146: 53 | D146: 31.19444444 | E146: 2 | F146: 8 | G146: 4 | H146: 10 | I146: 53 | J146: 74 | K146: 100 | L146: 3.77 | M146: 0.16 | N146: 0.64 | O146: 0.32 | P146: 0.8 | Q146: 4.25 | R146: 5.93 | S146: 8.01 | T146: 6.5 | U146: 25.8 | V146: 32.3
A147: HANNAN, SCOTT | B147: San Jose | C147: 53 | D147: 30.94652778 | E147: 1 | F147: 5 | G147: 3 | H147: 6 | I147: 38 | J147: 54 | K147: 76 | L147: 2.63 | M147: 0.08 | N147: 0.4 | O147: 0.24 | P147: 0.48 | Q147: 3.07 | R147: 4.36 | S147: 6.14 | T147: 3.8 | U147: 19.2 | V147: 23.1
A148: ROBIDAS, STEPHANE | B148: Toronto | C148: 52 | D148: 30.60694444 | E148: 1 | F148: 5 | G148: 1 | H148: 6 | I148: 31 | J148: 53 | K148: 81 | L148: 3.23 | M148: 0.08 | N148: 0.41 | O148: 0.08 | P148: 0.49 | Q148: 2.53 | R148: 4.33 | S148: 6.62 | T148: 3.7 | U148: 18.5 | V148: 22.2
A149: PROUT, DALTON | B149: Columbus | C149: 48 | D149: 30.50833333 | E149: 0 | F149: 6 | G149: 2 | H149: 6 | I149: 48 | J149: 57 | K149: 97 | L149: 0 | M149: 0 | N149: 0.49 | O149: 0.16 | P149: 0.49 | Q149: 3.93 | R149: 4.67 | S149: 7.95 | T149: 0 | U149: 33.3 | V149: 33.3
A150: ENGELLAND, DERYK | B150: Calgary | C150: 60 | D150: 29.94930556 | E150: 0 | F150: 5 | G150: 1 | H150: 5 | I150: 36 | J150: 59 | K150: 87 | L150: 0 | M150: 0 | N150: 0.42 | O150: 0.08 | P150: 0.42 | Q150: 3.01 | R150: 4.92 | S150: 7.26 | T150: 0 | U150: 29.4 | V150: 29.4
A151: VISNOVSKY, LUBOMIR | B151: NY Islanders | C151: 45 | D151: 29.85069444 | E151: 2 | F151: 9 | G151: 5 | H151: 11 | I151: 54 | J151: 75 | K151: 115 | L151: 3.7 | M151: 0.17 | N151: 0.75 | O151: 0.42 | P151: 0.92 | Q151: 4.52 | R151: 6.28 | S151: 9.63 | T151: 6.1 | U151: 27.3 | V151: 33.3
A152: LOVEJOY, BEN | B152: Pittsburgh | C152: 45 | D152: 29.77430556 | E152: 1 | F152: 9 | G152: 3 | H152: 10 | I152: 51 | J152: 77 | K152: 106 | L152: 1.96 | M152: 0.08 | N152: 0.76 | O152: 0.25 | P152: 0.84 | Q152: 4.28 | R152: 6.47 | S152: 8.9 | T152: 4.2 | U152: 37.5 | V152: 41.7
A153: ZADOROV, NIKITA | B153: Buffalo | C153: 45 | D153: 29.77222222 | E153: 0 | F153: 8 | G153: 4 | H153: 8 | I153: 33 | J153: 46 | K153: 60 | L153: 0 | M153: 0 | N153: 0.67 | O153: 0.34 | P153: 0.67 | Q153: 2.77 | R153: 3.86 | S153: 5.04 | T153: 0 | U153: 29.6 | V153: 29.6
A154: WEBER, YANNICK | B154: Vancouver | C154: 50 | D154: 29.44722222 | E154: 3 | F154: 7 | G154: 3 | H154: 10 | I154: 67 | J154: 92 | K154: 133 | L154: 4.48 | M154: 0.25 | N154: 0.59 | O154: 0.25 | P154: 0.85 | Q154: 5.69 | R154: 7.81 | S154: 11.29 | T154: 10.3 | U154: 24.1 | V154: 34.5
A155: MARTINEZ, ALEC | B155: Los Angeles | C155: 45 | D155: 29.01944444 | E155: 4 | F155: 7 | G155: 3 | H155: 11 | I155: 61 | J155: 89 | K155: 137 | L155: 6.56 | M155: 0.34 | N155: 0.6 | O155: 0.26 | P155: 0.95 | Q155: 5.26 | R155: 7.67 | S155: 11.8 | T155: 12.5 | U155: 21.9 | V155: 34.4
A156: BENOIT, ANDRE | B156: Buffalo | C156: 46 | D156: 29.01597222 | E156: 0 | F156: 6 | G156: 1 | H156: 6 | I156: 28 | J156: 38 | K156: 67 | L156: 0 | M156: 0 | N156: 0.52 | O156: 0.09 | P156: 0.52 | Q156: 2.41 | R156: 3.27 | S156: 5.77 | T156: 0 | U156: 25 | V156: 25
A157: ELLIS, RYAN | B157: Nashville | C157: 45 | D157: 28.95208333 | E157: 5 | F157: 11 | G157: 6 | H157: 16 | I157: 63 | J157: 84 | K157: 114 | L157: 7.94 | M157: 0.43 | N157: 0.95 | O157: 0.52 | P157: 1.38 | Q157: 5.44 | R157: 7.25 | S157: 9.84 | T157: 14.7 | U157: 32.4 | V157: 47.1
A158: COBURN, BRAYDON | B158: Tampa Bay | C158: 43 | D158: 28.91805556 | E158: 1 | F158: 8 | G158: 4 | H158: 9 | I158: 38 | J158: 64 | K158: 106 | L158: 2.63 | M158: 0.09 | N158: 0.69 | O158: 0.35 | P158: 0.78 | Q158: 3.29 | R158: 5.53 | S158: 9.16 | T158: 4.5 | U158: 36.4 | V158: 40.9
A159: GONCHAR, SERGEI | B159: Montreal | C159: 47 | D159: 28.66180556 | E159: 1 | F159: 9 | G159: 4 | H159: 10 | I159: 26 | J159: 45 | K159: 81 | L159: 3.85 | M159: 0.09 | N159: 0.79 | O159: 0.35 | P159: 0.87 | Q159: 2.27 | R159: 3.93 | S159: 7.07 | T159: 4.5 | U159: 40.9 | V159: 45.5
A160: CONNAUTON, KEVIN | B160: Columbus | C160: 49 | D160: 28.49513889 | E160: 5 | F160: 7 | G160: 3 | H160: 12 | I160: 55 | J160: 78 | K160: 118 | L160: 9.09 | M160: 0.44 | N160: 0.61 | O160: 0.26 | P160: 1.05 | Q160: 4.83 | R160: 6.84 | S160: 10.35 | T160: 16.7 | U160: 23.3 | V160: 40
A161: MESZAROS, ANDREJ | B161: Buffalo | C161: 46 | D161: 27.77777778 | E161: 3 | F161: 5 | G161: 3 | H161: 8 | I161: 29 | J161: 38 | K161: 66 | L161: 10.34 | M161: 0.27 | N161: 0.45 | O161: 0.27 | P161: 0.72 | Q161: 2.61 | R161: 3.42 | S161: 5.94 | T161: 13 | U161: 21.7 | V161: 34.8
A162: REDMOND, ZACH | B162: Colorado | C162: 45 | D162: 27.58402778 | E162: 4 | F162: 7 | G162: 3 | H162: 11 | I162: 54 | J162: 71 | K162: 107 | L162: 7.41 | M162: 0.36 | N162: 0.63 | O162: 0.27 | P162: 1 | Q162: 4.89 | R162: 6.43 | S162: 9.7 | T162: 14.3 | U162: 25 | V162: 39.3
A163: LILES, JOHN-MICHAEL | B163: Carolina | C163: 42 | D163: 27.40625 | E163: 2 | F163: 8 | G163: 1 | H163: 10 | I163: 48 | J163: 77 | K163: 112 | L163: 4.17 | M163: 0.18 | N163: 0.73 | O163: 0.09 | P163: 0.91 | Q163: 4.38 | R163: 7.02 | S163: 10.22 | T163: 10 | U163: 40 | V163: 50
A164: SEVERSON, DAMON | B164: New Jersey | C164: 37 | D164: 27.06527778 | E164: 4 | F164: 2 | G164: 0 | H164: 6 | I164: 59 | J164: 87 | K164: 127 | L164: 6.78 | M164: 0.37 | N164: 0.18 | O164: 0 | P164: 0.55 | Q164: 5.45 | R164: 8.04 | S164: 11.73 | T164: 22.2 | U164: 11.1 | V164: 33.3
A165: BOROWIECKI, MARK | B165: Ottawa | C165: 47 | D165: 26.14791667 | E165: 1 | F165: 7 | G165: 3 | H165: 8 | I165: 26 | J165: 39 | K165: 59 | L165: 3.85 | M165: 0.1 | N165: 0.67 | O165: 0.29 | P165: 0.76 | Q165: 2.49 | R165: 3.73 | S165: 5.64 | T165: 3.8 | U165: 26.9 | V165: 30.8
A166: PROSSER, NATE | B166: Minnesota | C166: 58 | D166: 26.01527778 | E166: 2 | F166: 4 | G166: 2 | H166: 6 | I166: 36 | J166: 50 | K166: 67 | L166: 5.56 | M166: 0.19 | N166: 0.38 | O166: 0.19 | P166: 0.58 | Q166: 3.46 | R166: 4.8 | S166: 6.44 | T166: 7.4 | U166: 14.8 | V166: 22.2
A167: STRAIT, BRIAN | B167: NY Islanders | C167: 39 | D167: 25.95069444 | E167: 2 | F167: 3 | G167: 0 | H167: 5 | I167: 46 | J167: 63 | K167: 86 | L167: 4.35 | M167: 0.19 | N167: 0.29 | O167: 0 | P167: 0.48 | Q167: 4.43 | R167: 6.07 | S167: 8.28 | T167: 6.7 | U167: 10 | V167: 16.7
A168: BARBERIO, MARK | B168: Tampa Bay | C168: 40 | D168: 25.9375 | E168: 1 | F168: 5 | G168: 2 | H168: 6 | I168: 43 | J168: 64 | K168: 98 | L168: 2.33 | M168: 0.1 | N168: 0.48 | O168: 0.19 | P168: 0.58 | Q168: 4.14 | R168: 6.17 | S168: 9.45 | T168: 4.8 | U168: 23.8 | V168: 28.6
A169: GELINAS, ERIC | B169: New Jersey | C169: 48 | D169: 25.82847222 | E169: 3 | F169: 4 | G169: 3 | H169: 7 | I169: 63 | J169: 82 | K169: 131 | L169: 4.76 | M169: 0.29 | N169: 0.39 | O169: 0.29 | P169: 0.68 | Q169: 6.1 | R169: 7.94 | S169: 12.68 | T169: 13.6 | U169: 18.2 | V169: 31.8
A170: MILLER, KEVAN | B170: Boston | C170: 41 | D170: 25.66875 | E170: 2 | F170: 5 | G170: 1 | H170: 7 | I170: 35 | J170: 54 | K170: 85 | L170: 5.71 | M170: 0.19 | N170: 0.49 | O170: 0.1 | P170: 0.68 | Q170: 3.41 | R170: 5.26 | S170: 8.28 | T170: 8 | U170: 20 | V170: 28
A171: HARRISON, JAY | B171: Winnipeg | C171: 44 | D171: 25.41527778 | E171: 2 | F171: 5 | G171: 4 | H171: 7 | I171: 37 | J171: 56 | K171: 96 | L171: 5.41 | M171: 0.2 | N171: 0.49 | O171: 0.39 | P171: 0.69 | Q171: 3.64 | R171: 5.51 | S171: 9.44 | T171: 10.5 | U171: 26.3 | V171: 36.8
A172: IRWIN, MATT | B172: San Jose | C172: 40 | D172: 24.99305556 | E172: 6 | F172: 7 | G172: 4 | H172: 13 | I172: 50 | J172: 67 | K172: 103 | L172: 12 | M172: 0.6 | N172: 0.7 | O172: 0.4 | P172: 1.3 | Q172: 5 | R172: 6.7 | S172: 10.3 | T172: 22.2 | U172: 25.9 | V172: 48.1
A173: PHILLIPS, CHRIS | B173: Ottawa | C173: 36 | D173: 24.7 | E173: 0 | F173: 2 | G173: 2 | H173: 2 | I173: 26 | J173: 37 | K173: 63 | L173: 0 | M173: 0 | N173: 0.2 | O173: 0.2 | P173: 0.2 | Q173: 2.63 | R173: 3.74 | S173: 6.38 | T173: 0 | U173: 11.8 | V173: 11.8
A174: MOORE, JOHN | B174: Arizona | C174: 43 | D174: 24.47430556 | E174: 1 | F174: 5 | G174: 2 | H174: 6 | I174: 48 | J174: 73 | K174: 111 | L174: 2.08 | M174: 0.1 | N174: 0.51 | O174: 0.2 | P174: 0.61 | Q174: 4.9 | R174: 7.46 | S174: 11.34 | T174: 3.8 | U174: 19.2 | V174: 23.1
A175: HUNWICK, MATT | B175: NY Rangers | C175: 40 | D175: 24.34722222 | E175: 0 | F175: 5 | G175: 4 | H175: 5 | I175: 45 | J175: 62 | K175: 88 | L175: 0 | M175: 0 | N175: 0.51 | O175: 0.41 | P175: 0.51 | Q175: 4.62 | R175: 6.37 | S175: 9.04 | T175: 0 | U175: 16.7 | V175: 16.7
A176: WIERCIOCH, PATRICK | B176: Ottawa | C176: 41 | D176: 24.27291667 | E176: 1 | F176: 5 | G176: 2 | H176: 6 | I176: 38 | J176: 61 | K176: 90 | L176: 2.63 | M176: 0.1 | N176: 0.52 | O176: 0.21 | P176: 0.62 | Q176: 3.91 | R176: 6.28 | S176: 9.27 | T176: 4 | U176: 20 | V176: 24
A177: OLSEN, DYLAN | B177: Florida | C177: 44 | D177: 23.99444444 | E177: 2 | F177: 5 | G177: 2 | H177: 7 | I177: 41 | J177: 55 | K177: 79 | L177: 4.88 | M177: 0.21 | N177: 0.52 | O177: 0.21 | P177: 0.73 | Q177: 4.27 | R177: 5.73 | S177: 8.23 | T177: 10.5 | U177: 26.3 | V177: 36.8
A178: BORTUZZO, ROBERT | B178: St. Louis | C178: 42 | D178: 23.91875 | E178: 2 | F178: 5 | G178: 3 | H178: 7 | I178: 41 | J178: 59 | K178: 90 | L178: 4.88 | M178: 0.21 | N178: 0.52 | O178: 0.31 | P178: 0.73 | Q178: 4.29 | R178: 6.17 | S178: 9.41 | T178: 11.1 | U178: 27.8 | V178: 38.9
A179: BELLEMORE, BRETT | B179: Carolina | C179: 38 | D179: 23.16597222 | E179: 1 | F179: 6 | G179: 3 | H179: 7 | I179: 20 | J179: 36 | K179: 49 | L179: 5 | M179: 0.11 | N179: 0.65 | O179: 0.32 | P179: 0.76 | Q179: 2.16 | R179: 3.88 | S179: 5.29 | T179: 5.3 | U179: 31.6 | V179: 36.8
A180: JOKIPAKKA, JYRKI | B180: Dallas | C180: 38 | D180: 23.11527778 | E180: 0 | F180: 7 | G180: 3 | H180: 7 | I180: 29 | J180: 45 | K180: 69 | L180: 0 | M180: 0 | N180: 0.76 | O180: 0.32 | P180: 0.76 | Q180: 3.14 | R180: 4.87 | S180: 7.46 | T180: 0 | U180: 26.9 | V180: 26.9
A181: METHOT, MARC | B181: Ottawa | C181: 29 | D181: 23.07777778 | E181: 1 | F181: 6 | G181: 2 | H181: 7 | I181: 25 | J181: 36 | K181: 56 | L181: 4 | M181: 0.11 | N181: 0.65 | O181: 0.22 | P181: 0.76 | Q181: 2.71 | R181: 3.9 | S181: 6.07 | T181: 3.6 | U181: 21.4 | V181: 25
A182: CHIAROT, BEN | B182: Winnipeg | C182: 36 | D182: 22.77361111 | E182: 2 | F182: 7 | G182: 4 | H182: 9 | I182: 33 | J182: 47 | K182: 76 | L182: 6.06 | M182: 0.22 | N182: 0.77 | O182: 0.44 | P182: 0.99 | Q182: 3.62 | R182: 5.16 | S182: 8.34 | T182: 8.3 | U182: 29.2 | V182: 37.5
A183: FOLIN, CHRISTIAN | B183: Minnesota | C183: 37 | D183: 21.80972222 | E183: 1 | F183: 7 | G183: 5 | H183: 8 | I183: 34 | J183: 51 | K183: 75 | L183: 2.94 | M183: 0.11 | N183: 0.8 | O183: 0.57 | P183: 0.92 | Q183: 3.9 | R183: 5.85 | S183: 8.6 | T183: 4.2 | U183: 29.2 | V183: 33.3
A184: MUELLER, MIRCO | B184: San Jose | C184: 34 | D184: 21.64375 | E184: 1 | F184: 2 | G184: 1 | H184: 3 | I184: 25 | J184: 36 | K184: 60 | L184: 4 | M184: 0.12 | N184: 0.23 | O184: 0.12 | P184: 0.35 | Q184: 2.89 | R184: 4.16 | S184: 6.93 | T184: 6.7 | U184: 13.3 | V184: 20
A185: STRACHAN, TYSON | B185: Buffalo | C185: 32 | D185: 21.61736111 | E185: 0 | F185: 4 | G185: 1 | H185: 4 | I185: 23 | J185: 30 | K185: 45 | L185: 0 | M185: 0 | N185: 0.46 | O185: 0.12 | P185: 0.46 | Q185: 2.66 | R185: 3.47 | S185: 5.2 | T185: 0 | U185: 40 | V185: 40
A186: DUMBA, MATT | B186: Minnesota | C186: 43 | D186: 21.54097222 | E186: 5 | F186: 2 | G186: 0 | H186: 7 | I186: 41 | J186: 56 | K186: 95 | L186: 12.2 | M186: 0.58 | N186: 0.23 | O186: 0 | P186: 0.81 | Q186: 4.76 | R186: 6.5 | S186: 11.03 | T186: 15.6 | U186: 6.2 | V186: 21.9
A187: NIKITIN, NIKITA | B187: Edmonton | C187: 34 | D187: 21.47222222 | E187: 1 | F187: 3 | G187: 2 | H187: 4 | I187: 55 | J187: 68 | K187: 91 | L187: 1.82 | M187: 0.12 | N187: 0.35 | O187: 0.23 | P187: 0.47 | Q187: 6.4 | R187: 7.92 | S187: 10.6 | T187: 6.7 | U187: 20 | V187: 26.7
A188: BARTKOWSKI, MATT | B188: Boston | C188: 32 | D188: 21.42291667 | E188: 0 | F188: 4 | G188: 4 | H188: 4 | I188: 42 | J188: 78 | K188: 100 | L188: 0 | M188: 0 | N188: 0.47 | O188: 0.47 | P188: 0.47 | Q188: 4.9 | R188: 9.1 | S188: 11.67 | T188: 0 | U188: 21.1 | V188: 21.1
A189: POSTMA, PAUL | B189: Winnipeg | C189: 41 | D189: 21.37986111 | E189: 0 | F189: 4 | G189: 1 | H189: 4 | I189: 34 | J189: 53 | K189: 93 | L189: 0 | M189: 0 | N189: 0.47 | O189: 0.12 | P189: 0.47 | Q189: 3.98 | R189: 6.2 | S189: 10.87 | T189: 0 | U189: 22.2 | V189: 22.2
A190: VOLCHENKOV, ANTON | B190: Nashville | C190: 42 | D190: 20.71666667 | E190: 0 | F190: 5 | G190: 0 | H190: 5 | I190: 30 | J190: 43 | K190: 67 | L190: 0 | M190: 0 | N190: 0.6 | O190: 0 | P190: 0.6 | Q190: 3.62 | R190: 5.19 | S190: 8.09 | T190: 0 | U190: 23.8 | V190: 23.8
A191: PARDY, ADAM | B191: Winnipeg | C191: 41 | D191: 20.71527778 | E191: 0 | F191: 5 | G191: 3 | H191: 5 | I191: 21 | J191: 29 | K191: 59 | L191: 0 | M191: 0 | N191: 0.6 | O191: 0.36 | P191: 0.6 | Q191: 2.53 | R191: 3.5 | S191: 7.12 | T191: 0 | U191: 27.8 | V191: 27.8
A192: RUNDBLAD, DAVID | B192: Chicago | C192: 43 | D192: 20.63680556 | E192: 3 | F192: 8 | G192: 5 | H192: 11 | I192: 47 | J192: 70 | K192: 113 | L192: 6.38 | M192: 0.36 | N192: 0.97 | O192: 0.61 | P192: 1.33 | Q192: 5.69 | R192: 8.48 | S192: 13.69 | T192: 11.1 | U192: 29.6 | V192: 40.7
A193: BUTLER, CHRIS | B193: St. Louis | C193: 31 | D193: 20.52708333 | E193: 2 | F193: 4 | G193: 2 | H193: 6 | I193: 45 | J193: 52 | K193: 77 | L193: 4.44 | M193: 0.24 | N193: 0.49 | O193: 0.24 | P193: 0.73 | Q193: 5.48 | R193: 6.33 | S193: 9.38 | T193: 7.1 | U193: 14.3 | V193: 21.4
A194: HOLZER, KORBINIAN | B194: Toronto | C194: 34 | D194: 20.11666667 | E194: 0 | F194: 6 | G194: 5 | H194: 6 | I194: 31 | J194: 41 | K194: 48 | L194: 0 | M194: 0 | N194: 0.75 | O194: 0.62 | P194: 0.75 | Q194: 3.85 | R194: 5.1 | S194: 5.97 | T194: 0 | U194: 30 | V194: 30
A195: HARROLD, PETER | B195: New Jersey | C195: 37 | D195: 20.01875 | E195: 3 | F195: 1 | G195: 1 | H195: 4 | I195: 25 | J195: 37 | K195: 50 | L195: 12 | M195: 0.37 | N195: 0.12 | O195: 0.12 | P195: 0.5 | Q195: 3.12 | R195: 4.62 | S195: 6.24 | T195: 25 | U195: 8.3 | V195: 33.3
A196: GUDAS, RADKO | B196: Tampa Bay | C196: 31 | D196: 19.97777778 | E196: 2 | F196: 3 | G196: 1 | H196: 5 | I196: 58 | J196: 93 | K196: 125 | L196: 3.45 | M196: 0.25 | N196: 0.38 | O196: 0.13 | P196: 0.63 | Q196: 7.26 | R196: 11.64 | S196: 15.64 | T196: 12.5 | U196: 18.8 | V196: 31.2
A197: HILLEN, JACK | B197: Carolina | C197: 38 | D197: 19.90069444 | E197: 0 | F197: 5 | G197: 1 | H197: 5 | I197: 24 | J197: 35 | K197: 71 | L197: 0 | M197: 0 | N197: 0.63 | O197: 0.13 | P197: 0.63 | Q197: 3.02 | R197: 4.4 | S197: 8.92 | T197: 0 | U197: 33.3 | V197: 33.3
A198: DIAZ, RAPHAEL | B198: Calgary | C198: 44 | D198: 19.41041667 | E198: 0 | F198: 1 | G198: 0 | H198: 1 | I198: 28 | J198: 43 | K198: 69 | L198: 0 | M198: 0 | N198: 0.13 | O198: 0 | P198: 0.13 | Q198: 3.61 | R198: 5.54 | S198: 8.89 | T198: 0 | U198: 7.7 | V198: 7.7
A199: MANSON, JOSH | B199: Anaheim | C199: 28 | D199: 18.70138889 | E199: 0 | F199: 3 | G199: 1 | H199: 3 | I199: 24 | J199: 30 | K199: 51 | L199: 0 | M199: 0 | N199: 0.4 | O199: 0.13 | P199: 0.4 | Q199: 3.21 | R199: 4.01 | S199: 6.82 | T199: 0 | U199: 20 | V199: 20
A200: SCHMIDT, NATE | B200: Washington | C200: 33 | D200: 18.45208333 | E200: 0 | F200: 3 | G200: 0 | H200: 3 | I200: 33 | J200: 43 | K200: 71 | L200: 0 | M200: 0 | N200: 0.41 | O200: 0 | P200: 0.41 | Q200: 4.47 | R200: 5.83 | S200: 9.62 | T200: 0 | U200: 17.6 | V200: 17.6
... 72 more rows
